Ref No,Fund Type,Dept,Cost Centre Description    ,Description    ,Creditor Name    ,GL Code Net Amount,Payment date        
2,Revenue,CCHD,Bed Purchasing - South,Permanent Residential,.,1571.88, 24-Nov-2015
3,Revenue,CCHD,Bed Purchasing - South,Permanent Nursing,.,861.32, 24-Nov-2015
4,Revenue,CCHD,Bed Purchasing - Southmead Hospital,Permanent Residential,.,736.40, 24-Nov-2015
5,Revenue,CCHD,18-25 Year Olds,Permanent Residential,1 St Georges House,13350.08, 24-Nov-2015
6,Revenue,CCHD,Breakthrough and Inclusion Work,Other Supplies & Services,121Turnaround Limited,2392.62, 18-Nov-2015
7,Revenue,CCHD,Breakthrough and Inclusion Work,Other Supplies & Services,121Turnaround Limited,1418.41, 17-Nov-2015
8,Revenue,CCHD,Bed Purchasing - Southmead Hospital,Permanent Nursing,2 Woodbrook Crescent,1554.80, 24-Nov-2015
9,Revenue,CCHD,Home Care - Elderly - South,Day Care / Social Activities,3 Trees Community Support Ltd,90.40, 03-Nov-2015
10,Revenue,CCHD,Home Care - Elderly - North,Day Care / Social Activities,3 Trees Community Support Ltd,2662.28, 03-Nov-2015
11,Revenue,CCHD,Home Care - Elderly - North,Other Small Contracts,3 Trees Community Support Ltd,2110.33, 03-Nov-2015
12,Revenue,CCHD,Home Care - Elderly - North,Supported Living,3 Trees Community Support Ltd,7403.40, 03-Nov-2015
13,Revenue,CCHD,Home Care - Elderly - South,Day Care / Social Activities,3 Trees Community Support Ltd,311.88, 13-Nov-2015
14,Revenue,CCHD,Home Care - Elderly - North,Day Care / Social Activities,3 Trees Community Support Ltd,2662.28, 13-Nov-2015
15,Revenue,CCHD,Home Care - Elderly - North,Other Small Contracts,3 Trees Community Support Ltd,108.48, 13-Nov-2015
16,Revenue,CCHD,Home Care - Elderly - North,Supported Living,3 Trees Community Support Ltd,9440.34, 13-Nov-2015
17,Revenue,CCHD,Home Care - Elderly - South,Day Care / Social Activities,3 Trees Community Support Ltd,203.40, 09-Nov-2015
18,Revenue,CCHD,Home Care - Elderly - North,Day Care / Social Activities,3 Trees Community Support Ltd,2662.28, 09-Nov-2015
19,Revenue,CCHD,Home Care - Elderly - North,Other Small Contracts,3 Trees Community Support Ltd,108.48, 09-Nov-2015
20,Revenue,CCHD,Home Care - Elderly - North,Supported Living,3 Trees Community Support Ltd,10124.58, 09-Nov-2015
21,Revenue,CCHD,Home Care - Elderly - South,Day Care / Social Activities,3 Trees Community Support Ltd,198.88, 13-Nov-2015
22,Revenue,CCHD,Home Care - Elderly - North,Day Care / Social Activities,3 Trees Community Support Ltd,2662.28, 13-Nov-2015
23,Revenue,CCHD,Home Care - Elderly - North,Other Small Contracts,3 Trees Community Support Ltd,108.48, 13-Nov-2015
24,Revenue,CCHD,Home Care - Elderly - North,Supported Living,3 Trees Community Support Ltd,9473.71, 13-Nov-2015
25,Revenue,CCHD,Home Care - Elderly - South,Day Care / Social Activities,3 Trees Community Support Ltd,198.88, 24-Nov-2015
26,Revenue,CCHD,Home Care - Elderly - North,Day Care / Social Activities,3 Trees Community Support Ltd,2671.32, 24-Nov-2015
27,Revenue,CCHD,Home Care - Elderly - North,Other Small Contracts,3 Trees Community Support Ltd,108.48, 24-Nov-2015
28,Revenue,CCHD,Home Care - Elderly - North,Supported Living,3 Trees Community Support Ltd,9508.52, 24-Nov-2015
29,Revenue,CCHD,Home Care - Elderly - South,Day Care / Social Activities,3 Trees Community Support Ltd,90.40, 24-Nov-2015
30,Revenue,CCHD,Home Care - Elderly - North,Day Care / Social Activities,3 Trees Community Support Ltd,2648.72, 24-Nov-2015
31,Revenue,CCHD,Home Care - Elderly - North,Other Small Contracts,3 Trees Community Support Ltd,108.48, 24-Nov-2015
32,Revenue,CCHD,Home Care - Elderly - North,Supported Living,3 Trees Community Support Ltd,9455.44, 24-Nov-2015
33,Revenue,CCHD,Bed Purchasing - South,Permanent Residential,5Th Floor Harlech Court,16236.56, 24-Nov-2015
34,Revenue,CCHD,18-25 Year Olds,Permanent Residential,5Th Floor Harlech Court,13837.80, 24-Nov-2015
35,Revenue,CCHD,18-25 Year Olds,Permanent Residential,5Th Floor Harlech Court,14114.08, 24-Nov-2015
36,Revenue,CCHD,18-25 Year Olds,Permanent Residential,5Th Floor Harlech Court,12656.32, 24-Nov-2015
37,Revenue,CCHD,Bed Purchasing - North,Permanent Residential,5Th Floor Harlech Court,16769.20, 24-Nov-2015
38,Revenue,CCHD,18-25 Year Olds,Permanent Residential,5Th Floor Harlech Court,15925.08, 24-Nov-2015
39,Revenue,CCHD,Bed Purchasing - South,Permanent Residential,5Th Floor Harlech Court,9403.36, 24-Nov-2015
40,Revenue,CCHD,Bed purchasing - S28A Under 65 - South,Permanent Residential,5Th Floor Harlech Court,9854.40, 24-Nov-2015
41,Revenue,CCHD,Bed purchasing - S28A Under 65 - South,Permanent Residential,5Th Floor Harlech Court,10834.28, 24-Nov-2015
42,Revenue,CCHD,Bed Purchasing - South,Permanent Residential,5Th Floor Harlech Court,10352.52, 24-Nov-2015
43,Revenue,CCHD,Bed Purchasing - North,Permanent Nursing,ABI Development Limited,7046.44, 24-Nov-2015
44,Revenue,CCHD,Day Care - South,Day Care / Social Activities,About Me Care and Support Limited,1058.35, 02-Nov-2015
45,Revenue,CCHD,Day Care - North,Day Care / Social Activities,About Me Care and Support Limited,699.04, 04-Nov-2015
46,Revenue,CCHD,Day Care - South,Day Care / Social Activities,About Me Care and Support Limited,723.73, 02-Nov-2015
47,Revenue,CCHD,Day Care - South,Day Care / Social Activities,About Me Care and Support Limited,1382.01, 23-Nov-2015
48,Revenue,CCHD,Day Care - North,Day Care / Social Activities,About Me Care and Support Limited,894.36, 19-Nov-2015
49,Revenue,CCHD,Day Care - South,Day Care / Social Activities,About Me Care and Support Limited,846.89, 23-Nov-2015
50,Revenue,CCHD,Day Care - South,Day Care / Social Activities,Action on Hearing Loss,750.40, 02-Nov-2015
51,Revenue,CCHD,Day Care - South,Day Care / Social Activities,Action on Hearing Loss,790.60, 26-Nov-2015
52,Revenue,CCHD,Home Care - Elderly - South,Other Small Contracts,Agincare Chippenham,1747.90, 09-Nov-2015
53,Revenue,CCHD,Home Care - Elderly - South,Other Small Contracts,Agincare Chippenham,1686.30, 17-Nov-2015
54,Revenue,CCHD,Home Care - Elderly - South,Other Small Contracts,Agincare Chippenham,1821.05, 25-Nov-2015
55,Revenue,CCHD,Home Care - Elderly - South,Other Small Contracts,Agincare Chippenham,1828.75, 25-Nov-2015
56,Revenue,CCHD,Home Care - Elderly - South,Other Small Contracts,Agincare UK Limited,1162.70, 11-Nov-2015
57,Revenue,CCHD,Home Care - Elderly - North,Other Small Contracts,Agincare UK Limited,500.50, 11-Nov-2015
58,Revenue,CCHD,Elderly MH Day Care North,Day Care / Social Activities,Agincare UK Limited,50.05, 11-Nov-2015
59,Revenue,CCHD,Home Care - Elderly - South,Other Small Contracts,Agincare UK Limited,1135.75, 17-Nov-2015
60,Revenue,CCHD,Home Care - Elderly - North,Other Small Contracts,Agincare UK Limited,427.35, 17-Nov-2015
61,Revenue,CCHD,Elderly MH Day Care North,Day Care / Social Activities,Agincare UK Limited,57.75, 17-Nov-2015
62,Revenue,CCHD,Home Care - Elderly - South,Other Small Contracts,Agincare UK Limited,1143.45, 17-Nov-2015
63,Revenue,CCHD,Home Care - Elderly - North,Other Small Contracts,Agincare UK Limited,496.65, 17-Nov-2015
64,Revenue,CCHD,Elderly MH Day Care North,Day Care / Social Activities,Agincare UK Limited,53.90, 17-Nov-2015
65,Revenue,CCHD,Home Care - Elderly - South,Other Small Contracts,Agincare UK Nutfield,53.90, 11-Nov-2015
66,Revenue,CCHD,Home Care - Elderly - North,Other Small Contracts,Agincare UK Nutfield,1016.40, 11-Nov-2015
67,Revenue,CCHD,Home Care - Elderly - South,Other Small Contracts,Agincare UK Nutfield,57.75, 11-Nov-2015
68,Revenue,CCHD,Home Care - Elderly - North,Other Small Contracts,Agincare UK Nutfield,1193.50, 11-Nov-2015
69,Revenue,CCHD,Home Care - Elderly - South,Other Small Contracts,Agincare UK Nutfield,65.45, 11-Nov-2015
70,Revenue,CCHD,Home Care - Elderly - North,Other Small Contracts,Agincare UK Nutfield,1316.70, 11-Nov-2015
71,Revenue,CCHD,Home Care - Elderly - South,Other Small Contracts,Agincare UK Nutfield,53.90, 25-Nov-2015
72,Revenue,CCHD,Home Care - Elderly - North,Other Small Contracts,Agincare UK Nutfield,1682.45, 25-Nov-2015
73,Revenue,CCHD,Home Care - Elderly - South,Other Small Contracts,Agincare UK Nutfield,53.90, 27-Nov-2015
74,Revenue,CCHD,Home Care - Elderly - North,Other Small Contracts,Agincare UK Nutfield,1709.40, 27-Nov-2015
75,Revenue,CCHD,Home Care - Elderly - South,Other Small Contracts,Agincare UK Nutfield,53.90, 27-Nov-2015
76,Revenue,CCHD,Home Care - Elderly - North,Other Small Contracts,Agincare UK Nutfield,1659.35, 27-Nov-2015
77,Revenue,CCHD,Access Team,Care Management/Assessment Staff Pay,Alexander Leigh Recruitment Ltd,1881.47, 11-Nov-2015
78,Revenue,CCHD,Access Team,Care Management/Assessment Staff Pay,Alexander Leigh Recruitment Ltd,1798.66, 11-Nov-2015
79,Revenue,CCHD,Access Team,Care Management/Assessment Staff Pay,Alexander Leigh Recruitment Ltd,1813.03, 11-Nov-2015
80,Revenue,CCHD,Access Team,Care Management/Assessment Staff Pay,Alexander Leigh Recruitment Ltd,1820.26, 11-Nov-2015
81,Revenue,CCHD,Access Team,Care Management/Assessment Staff Pay,Alexander Leigh Recruitment Ltd,1883.67, 06-Nov-2015
82,Revenue,CCHD,Supported Living - South,Private & Voluntary Home Care,Alexandra Homes (Bristol) Limited,2530.00, 13-Nov-2015
83,Revenue,CCHD,Home Care - Elderly - South,Other Small Contracts,AliMo Care Ltd,1228.92, 04-Nov-2015
84,Revenue,CCHD,Home Care - Elderly - South,Other Small Contracts,AliMo Care Ltd,1249.82, 11-Nov-2015
85,Revenue,CCHD,Home Care - Elderly - South,Other Small Contracts,AliMo Care Ltd,1212.20, 18-Nov-2015
86,Revenue,CCHD,Home Care - Elderly - South,Other Small Contracts,AliMo Care Ltd,1254.00, 26-Nov-2015
87,Revenue,CCHD,Bed Purchasing - South,Permanent Nursing,Ambleside Nusing Ho!,1526.08, 24-Nov-2015
88,Revenue,CCHD,Direct Payments - Phys Dis - North,Grants to Voluntary Bodies,Aquarium Card Management Solutions Ltd,2128.25, 27-Nov-2015
89,Revenue,CCHD,Bed Purchasing - North,Permanent Residential,Ark Care Homes Ltd,10348.28, 24-Nov-2015
90,Revenue,CCHD,Mental Capacity Act - Advocacy,Other Supplies & Services,Armadillo Youth Venue & Cafe,640.00, 10-Nov-2015
91,Revenue,CCHD,Mental Capacity Act - Advocacy,Other Supplies & Services,Armadillo Youth Venue & Cafe,800.00, 27-Nov-2015
92,Revenue,CCHD,NHS Health Checks & Tobacco Control,Drugs & Medical Supplies,Asda Stores Limited,556.96, 16-Nov-2015
93,Revenue,CCHD,NHS Health Checks & Tobacco Control,Drugs & Medical Supplies,Asda Stores Limited,778.24, 16-Nov-2015
94,Revenue,CCHD,S117 Placements PCT,Permanent Residential,Ash View House,7052.76, 24-Nov-2015
95,Revenue,CCHD,18-25 Year Olds,Permanent Residential,Ash View House,6225.80, 24-Nov-2015
96,Revenue,CCHD,Section 117 Placements MH Younger,Permanent Residential,Ash View House,6565.76, 24-Nov-2015
97,Revenue,CCHD,Bed purchasing - Elderly S117 - South,Permanent Residential,Ash View House,6246.76, 24-Nov-2015
98,Revenue,CCHD,DAT Treatment,Electricity,Ashville Asset Management Limited,876.52, 26-Nov-2015
99,Revenue,CCHD,Bed Purchasing - North,Permanent Residential,Aspects 2 Limited,6428.16, 24-Nov-2015
100,Revenue,CCHD,Bed Purchasing - South,Permanent Residential,Autism Specialised Care Homes,5672.64, 24-Nov-2015
101,Revenue,CCHD,Younger Adult Mental Health,Health Services (Third Party Payments),Avon & Wiltshire Mental Health,2857.51, 03-Nov-2015
102,Revenue,CCHD,Younger Adult Mental Health,Health Services (Third Party Payments),Avon & Wiltshire Mental Health,1667.00, 03-Nov-2015
103,Revenue,CCHD,Pathway 2 - (Interim Beds),Permanent Nursing,Avon Lodge Care Centre,10200.00, 16-Nov-2015
104,Revenue,CCHD,s256 - Additional Support Funding,Other Supplies & Services,Avon Telecare Ltd,5622.50, 30-Nov-2015
105,Revenue,CCHD,Community Support - North,Preventative Assistance,B & M Investments Limited T/A B & M Care,2417.87, 16-Nov-2015
106,Revenue,CCHD,Bed Purchasing - South,Permanent Residential,Banff Securities Limited,4800.00, 18-Nov-2015
107,Revenue,CCHD,Purchase of RAC places,Other L.A.'s - General,Bath & North East Somerset Dist Council,6603.65, 25-Nov-2015
108,Revenue,CCHD,Bed Purchasing - Southmead Hospital,Permanent Nursing,Bayview Nursing & Residential Home,1494.36, 24-Nov-2015
109,Revenue,CCHD,Pathway 3 - (Complex Beds),Permanent Nursing,Beaufort Care Ltd,5200.00, 30-Nov-2015
110,Revenue,CCHD,South Glos Users in South Glos Homes,Permanent Nursing,Beaufort Grange Care Home,1312.00, 24-Nov-2015
111,Revenue,CCHD,Bed Purchasing - North,Respite Planned - Residential,Beaufort Grange Care Home,1200.00, 24-Nov-2015
112,Revenue,CCHD,Bed Purchasing - North,Permanent Residential,Beaufort House,1686.44, 24-Nov-2015
113,Revenue,CCHD,Bed Purchasing - North,Permanent Residential,Beaufort House,1894.80, 24-Nov-2015
114,Revenue,CCHD,Bed Purchasing - North,Permanent Residential,Beaufort House,2425.92, 24-Nov-2015
115,Revenue,CCHD,Bed Purchasing - South,Respite Planned - Residential,Beaufort House,1714.29, 24-Nov-2015
116,Revenue,CCHD,Bed Purchasing - South,Respite Planned - Residential,Beaufort House,685.71, 24-Nov-2015
117,Revenue,CCHD,Bed Purchasing - North,Permanent Residential,Beaufort House,1395.68, 24-Nov-2015
118,Revenue,CCHD,Bed Purchasing - South,Permanent Residential,Beaufort House,1447.40, 24-Nov-2015
119,Revenue,CCHD,Bed Purchasing - North,Permanent Residential,Beaufort House,1822.84, 24-Nov-2015
120,Revenue,CCHD,Bed Purchasing - Southmead Hospital,Permanent Residential,Beaufort House,1270.48, 24-Nov-2015
121,Revenue,CCHD,Bed Purchasing - North,Permanent Residential,Beaufort House,1365.16, 24-Nov-2015
122,Revenue,CCHD,Bed Purchasing - Southmead Hospital,Permanent Residential,Beaufort House,1543.28, 24-Nov-2015
123,Revenue,CCHD,Bed Purchasing - North,Permanent Residential,Beaufort House,1960.72, 24-Nov-2015
124,Revenue,CCHD,Bed Purchasing - North,Permanent Residential,Beaufort House,1876.68, 24-Nov-2015
125,Revenue,CCHD,Bed Purchasing - North,Respite Emergency - Residential,Beaufort House,1542.86, 24-Nov-2015
126,Revenue,CCHD,Bed Purchasing - North,Respite Emergency - Residential,Beaufort House,2400.00, 24-Nov-2015
127,Revenue,CCHD,Bed Purchasing - South,Permanent Residential,Bedrock Lodge,3186.88, 24-Nov-2015
128,Revenue,CCHD,Bed Purchasing - South,Permanent Residential,Bedrock Lodge,2976.96, 24-Nov-2015
129,Revenue,CCHD,Section 117 Placements MH Younger,Permanent Residential,Bedrock Lodge,1885.04, 24-Nov-2015
130,Revenue,CCHD,Bed Purchasing - South,Permanent Residential,Beech House,1270.80, 24-Nov-2015
131,Revenue,CCHD,South Glos Users in South Glos Homes,Permanent Nursing,Beech House,1008.00, 24-Nov-2015
132,Revenue,CCHD,Bed Purchasing - North,Permanent Nursing,Beech House,1663.92, 24-Nov-2015
133,Revenue,CCHD,South Glos Users in South Glos Homes,Permanent Nursing,Beech House,1888.00, 24-Nov-2015
134,Revenue,CCHD,South Glos Users in South Glos Homes,Permanent Nursing,Beech House,3040.00, 24-Nov-2015
135,Revenue,CCHD,Bed Purchasing - North,Permanent Nursing,Beech House,2115.56, 24-Nov-2015
136,Revenue,CCHD,Bed Purchasing - North,Permanent Residential,Beech House,1442.80, 24-Nov-2015
137,Revenue,CCHD,South Glos Users in South Glos Homes,Permanent Nursing,Beech House,3552.00, 24-Nov-2015
138,Revenue,CCHD,South Glos Users in South Glos Homes,Permanent Nursing,Beech House,1568.00, 24-Nov-2015
139,Revenue,CCHD,South Glos Users in South Glos Homes,Permanent Nursing,Beech House,3552.00, 24-Nov-2015
140,Revenue,CCHD,South Glos Users in South Glos Homes,Permanent Nursing,Beech House,1013.85, 24-Nov-2015
141,Revenue,CCHD,Bed Purchasing - North,Permanent Residential,Beech House,1413.56, 24-Nov-2015
142,Revenue,CCHD,Home Care - Elderly - North,Other Small Contracts,Bibby Factors Bristol Limited,7929.60, 04-Nov-2015
143,Revenue,CCHD,Home Care - Elderly - North,Day Care / Social Activities,Bibby Factors Bristol Limited,134.40, 13-Nov-2015
144,Revenue,CCHD,Home Care - Elderly - North,Other Small Contracts,Bibby Factors Bristol Limited,7156.80, 13-Nov-2015
145,Revenue,CCHD,Home Care - Elderly - North,Day Care / Social Activities,Bibby Factors Bristol Limited,130.20, 27-Nov-2015
146,Revenue,CCHD,Home Care - Elderly - North,Other Small Contracts,Bibby Factors Bristol Limited,7144.20, 27-Nov-2015
147,Revenue,CCHD,Home Care - Elderly - North,Day Care / Social Activities,Bibby Factors Bristol Limited,134.40, 27-Nov-2015
148,Revenue,CCHD,Home Care - Elderly - North,Other Small Contracts,Bibby Factors Bristol Limited,7467.60, 27-Nov-2015
149,Revenue,CCHD,Home Care - Elderly - North,Day Care / Social Activities,Bibby Factors Bristol Limited,67.20, 27-Nov-2015
150,Revenue,CCHD,Home Care - Elderly - North,Other Small Contracts,Bibby Factors Bristol Limited,7593.60, 27-Nov-2015
151,Revenue,CCHD,Home Care - Elderly - North,Day Care / Social Activities,Bibby Factors Bristol Limited,138.60, 27-Nov-2015
152,Revenue,CCHD,Home Care - Elderly - North,Other Small Contracts,Bibby Factors Bristol Limited,7585.20, 27-Nov-2015
153,Revenue,CCHD,Home Care - Elderly - North,Day Care / Social Activities,Bibby Factors Bristol Limited,134.40, 27-Nov-2015
154,Revenue,CCHD,Home Care - Elderly - North,Other Small Contracts,Bibby Factors Bristol Limited,7530.60, 27-Nov-2015
155,Revenue,CCHD,Home Care - Elderly - North,Day Care / Social Activities,Bibby Factors Bristol Limited,134.40, 24-Nov-2015
156,Revenue,CCHD,Home Care - Elderly - North,Other Small Contracts,Bibby Factors Bristol Limited,7795.20, 24-Nov-2015
157,Revenue,CCHD,Bed Purchasing - North,Permanent Nursing,Blossom Field,2747.96, 24-Nov-2015
158,Revenue,CCHD,Bed Purchasing - North,Permanent Nursing,Blossom Field,1835.00, 24-Nov-2015
159,Revenue,CCHD,Bed Purchasing - Elderly S117- North,Permanent Nursing,Blossom Field,2012.00, 24-Nov-2015
160,Revenue,CCHD,South Glos Users in South Glos Homes,Permanent Nursing,Blossom Field,784.00, 24-Nov-2015
161,Revenue,CCHD,Bed Purchasing - North,Permanent Nursing,Blossom Field,1393.52, 24-Nov-2015
162,Revenue,CCHD,Bed purchasing - Elderly S117 - South,Permanent Nursing,Blossom Field,9585.71, 24-Nov-2015
163,Revenue,CCHD,Bed purchasing - Elderly S117 - South,Permanent Nursing,Blossom Field,4352.00, 24-Nov-2015
164,Revenue,CCHD,Bed Purchasing - North,Permanent Nursing,Blossom Field,2850.96, 24-Nov-2015
165,Revenue,CCHD,Bed Purchasing - North,Permanent Nursing,Blossom Field,2729.24, 24-Nov-2015
166,Revenue,CCHD,Bed Purchasing - Southmead Hospital,Permanent Nursing,Blossom Field,2586.92, 24-Nov-2015
167,Revenue,CCHD,Bed Purchasing - North,Permanent Nursing,Blossom Fields,1874.48, 23-Nov-2015
168,Revenue,CCHD,Bed Purchasing - Southmead Hospital,Permanent Nursing,Blossom Fields,2111.72, 23-Nov-2015
169,Revenue,CCHD,Bed Purchasing - North,Permanent Nursing,Blossom Fields,2616.92, 23-Nov-2015
170,Revenue,CCHD,Home Care - Elderly - North,Other Small Contracts,Bluebird Care (South Gloucestershire),2064.64, 17-Nov-2015
171,Revenue,CCHD,Home Care - Elderly - North,Other Small Contracts,Bluebird Care (South Gloucestershire),2173.54, 09-Nov-2015
172,Revenue,CCHD,Home Care - Elderly - North,Other Small Contracts,Bluebird Care (South Gloucestershire),2218.09, 11-Nov-2015
173,Revenue,CCHD,Home Care - Elderly - North,Other Small Contracts,Bluebird Care (South Gloucestershire),1970.59, 12-Nov-2015
174,Revenue,CCHD,Training - Adult Services,Training Expenses,Bob Dawson,1425.00, 16-Nov-2015
175,Revenue,CCHD,NTS Grant - Trainee Social Wor,Training Expenses,Bournemouth University,595.00, 26-Nov-2015
176,Revenue,CCHD,18-25 Year Olds,Permanent Residential,Bradbury House,8855.64, 24-Nov-2015
177,Revenue,CCHD,Bed Purchasing - North,Permanent Residential,Bradley House,1546.32, 24-Nov-2015
178,Revenue,CCHD,Home Care - Elderly - North,Other Small Contracts,Bradley House Home Care Services,777.60, 04-Nov-2015
179,Revenue,CCHD,Home Care - Elderly - North,Other Small Contracts,Bradley House Home Care Services,617.76, 11-Nov-2015
180,Revenue,CCHD,Home Care - Elderly - North,Other Small Contracts,Bradley House Home Care Services,622.08, 17-Nov-2015
181,Revenue,CCHD,Home Care - Elderly - North,Other Small Contracts,Bradley House Home Care Services,648.00, 24-Nov-2015
182,Revenue,CCHD,Alexandra Way,"Provisions (Food, etc)",Brake Bros,755.79, 16-Nov-2015
183,Revenue,CCHD,Alexandra Way,"Provisions (Food, etc)",Brake Bros,581.39, 16-Nov-2015
184,Revenue,CCHD,Bed Purchasing - S28A - Over 65- North,Permanent Residential,Brandon Trust,3126.48, 24-Nov-2015
185,Revenue,CCHD,Bed Purchasing - South,Permanent Residential,Brandon Trust,10380.40, 24-Nov-2015
186,Revenue,CCHD,Bed Purchasing - South,Permanent Residential,Brandon Trust,4080.76, 24-Nov-2015
187,Revenue,CCHD,Bed Purchasing - South,Permanent Residential,Brandon Trust,3493.24, 24-Nov-2015
188,Revenue,CCHD,Bed Purchasing - Southmead Hospital,Permanent Nursing,Brandon Trust,4603.08, 24-Nov-2015
189,Revenue,CCHD,Bed Purchasing - LD S28A- Over 65- South,Permanent Nursing,Brandon Trust,38536.34, 24-Nov-2015
190,Revenue,CCHD,Bed Purchasing - South,Permanent Nursing,Brandon Trust,5092.48, 24-Nov-2015
191,Revenue,CCHD,Bed purchasing - S28A Under 65 - South,Permanent Nursing,Brandon Trust,5474.04, 24-Nov-2015
192,Revenue,CCHD,Bed purchasing - S28A Under 65 - South,Permanent Residential,Brandon Trust,4956.60, 24-Nov-2015
193,Revenue,CCHD,Bed Purchasing - LD S28A- Over 65- South,Permanent Nursing,Brandon Trust,5190.64, 24-Nov-2015
194,Revenue,CCHD,Bed Purchasing - LD S28A- Over 65- South,Permanent Nursing,Brandon Trust,4904.80, 24-Nov-2015
195,Revenue,CCHD,Bed Purchasing - South,Permanent Residential,Brandon Trust,3309.88, 24-Nov-2015
196,Revenue,CCHD,Bed purchasing - S28A Under 65 - South,Permanent Residential,Brandon Trust,5260.00, 24-Nov-2015
197,Revenue,CCHD,Bed purchasing - S28A Under 65 - South,Permanent Residential,Brandon Trust,5316.28, 24-Nov-2015
198,Revenue,CCHD,Bed purchasing - S28A Under 65 - South,Permanent Nursing,Brandon Trust,5418.04, 24-Nov-2015
199,Revenue,CCHD,Bed purchasing -S28A  Under 65 - North,Permanent Nursing,Brandon Trust,4835.88, 24-Nov-2015
200,Revenue,CCHD,Bed purchasing - S28A Under 65 - South,Permanent Residential,Brandon Trust,5316.28, 24-Nov-2015
201,Revenue,CCHD,Bed Purchasing - LD S28A- Over 65- South,Permanent Residential,Brandon Trust,4795.44, 24-Nov-2015
202,Revenue,CCHD,Bed Purchasing - North,Permanent Residential,Bridge House Care Home,1533.60, 24-Nov-2015
203,Revenue,CCHD,Bed Purchasing - North,Permanent Residential,Bridge House Care Home,1079.20, 24-Nov-2015
204,Revenue,CCHD,Bed Purchasing - North,Permanent Residential,Bridge House Care Home,1531.48, 24-Nov-2015
205,Revenue,CCHD,Bed Purchasing - North,Permanent Residential,Bridge House Care Home,1544.60, 24-Nov-2015
206,Revenue,CCHD,TSG Practice Placements,Training Expenses,Bridget Rothwell,1050.00, 20-Nov-2015
207,Revenue,CCHD,Bed Purchasing - North,Permanent Residential,Bridgwater Court,20111.36, 24-Nov-2015
208,Revenue,CCHD,Bed Purchasing - South,Permanent Residential,Brightbow,2113.88, 24-Nov-2015
209,Revenue,CCHD,MH Purchasing - Younger,Permanent Residential,Brightbow,1503.92, 24-Nov-2015
210,Revenue,CCHD,Community Support - North,Preventative Assistance,Bristol Ambulance EMS,1293.11, 10-Nov-2015
211,Revenue,CCHD,TSG Practice Placements,Training Expenses,Bristol City Council,650.00, 09-Nov-2015
212,Revenue,CCHD,Supported Living - North,Private & Voluntary Home Care,Bristol Houses UK Limited,613.04, 27-Nov-2015
213,Revenue,CCHD,Purchase of Non-Res Care - South,Day Care / Social Activities,Bristol Houses UK Limited,1164.00, 27-Nov-2015
214,Revenue,CCHD,Purchase of Non-Res Care - South,Day Care / Social Activities,Bristol Houses UK Limited,1129.08, 27-Nov-2015
215,Revenue,CCHD,Bed and Breakfast,Bed & Breakfast,Bristol Housing & Support Limited,490.00, 24-Nov-2015
216,Revenue,CCHD,Bed and Breakfast,Bed & Breakfast,Bristol Housing & Support Limited,490.00, 17-Nov-2015
217,Revenue,CCHD,Bed and Breakfast,Bed & Breakfast,Bristol Housing & Support Limited,490.00, 16-Nov-2015
218,Revenue,CCHD,Alexandra Way,Water Charges,Bristol Wessex Billing Services Limited,5405.14, 09-Nov-2015
219,Revenue,CCHD,Home Care - Elderly - North,SU Employment Support,Britannia House,693.60, 24-Nov-2015
220,Revenue,CCHD,Home Care - Elderly - North,Day Care / Social Activities,Britannia House,924.80, 24-Nov-2015
221,Revenue,CCHD,Home Care - Elderly - North,Day Care / Social Activities,Britannia House,693.60, 24-Nov-2015
222,Revenue,CCHD,Home Care - Elderly - North,Day Care / Social Activities,Britannia House,693.60, 24-Nov-2015
223,Revenue,CCHD,Home Care - Elderly - South,Day Care / Social Activities,Britannia House,693.60, 24-Nov-2015
224,Revenue,CCHD,Home Care - Elderly - North,Day Care / Social Activities,Britannia House,924.80, 24-Nov-2015
225,Revenue,CCHD,Home Care - Elderly - South,Day Care / Social Activities,Britannia House,1156.00, 24-Nov-2015
226,Revenue,CCHD,Home Care - Elderly - South,Day Care / Social Activities,Britannia House,693.60, 24-Nov-2015
227,Revenue,CCHD,Home Care - Elderly - South,Day Care / Social Activities,Britannia House,693.60, 24-Nov-2015
228,Revenue,CCHD,Home Care - Elderly - South,Day Care / Social Activities,Britannia House,693.60, 24-Nov-2015
229,Revenue,CCHD,Bed Purchasing - South,Permanent Nursing,Brunel Care  Saffron Gardens,2011.96, 24-Nov-2015
230,Revenue,CCHD,Bed Purchasing - South,Permanent Nursing,Brunel Care  Saffron Gardens,8310.00, 24-Nov-2015
231,Revenue,CCHD,Bed Purchasing - South,Permanent Nursing,Brunel Care  Saffron Gardens,2326.80, 24-Nov-2015
232,Revenue,CCHD,Bed Purchasing - Southmead Hospital,Permanent Nursing,Brunel Care  Saffron Gardens,2003.92, 24-Nov-2015
233,Revenue,CCHD,South Glos Users in South Glos Homes,Permanent Nursing,Brunel Care  Saffron Gardens,1504.00, 24-Nov-2015
234,Revenue,CCHD,Bed Purchasing - Southmead Hospital,Permanent Nursing,Brunel Care  Saffron Gardens,1166.80, 24-Nov-2015
235,Revenue,CCHD,Bed Purchasing - Southmead Hospital,Permanent Nursing,Brunel Care  Saffron Gardens,1176.04, 24-Nov-2015
236,Revenue,CCHD,Bed Purchasing - Southmead Hospital,Permanent Nursing,Brunel Care  Saffron Gardens,663.25, 24-Nov-2015
237,Revenue,CCHD,Bed Purchasing - South,Permanent Nursing,Brunel Care  Saffron Gardens,2090.64, 24-Nov-2015
238,Revenue,CCHD,Bed Purchasing - Southmead Hospital,Permanent Nursing,Brunel Care  Saffron Gardens,2072.60, 24-Nov-2015
239,Revenue,CCHD,Bed Purchasing - South,Permanent Nursing,Brunel Care  Saffron Gardens,2378.80, 24-Nov-2015
240,Revenue,CCHD,Bed Purchasing - South,Permanent Nursing,Brunel Care  Saffron Gardens,1889.32, 24-Nov-2015
241,Revenue,CCHD,Bed Purchasing - South,Permanent Residential,Brunel Care  Saffron Gardens,1308.56, 24-Nov-2015
242,Revenue,CCHD,Day Care - North,Day Care / Social Activities,Brunel House Care Home,15171.43, 16-Nov-2015
243,Revenue,CCHD,Home Care - Elderly - North,Private & Voluntary Home Care,Brunelcare,23503.00, 02-Nov-2015
244,Revenue,CCHD,Home Care - Elderly - North,Private & Voluntary Home Care,Brunelcare,23503.00, 09-Nov-2015
245,Revenue,CCHD,Home Care - Elderly - North,Private & Voluntary Home Care,Brunelcare,23503.00, 16-Nov-2015
246,Revenue,CCHD,Home Care - Elderly - North,Private & Voluntary Home Care,Brunelcare,23503.00, 23-Nov-2015
247,Revenue,CCHD,Home Care - Elderly - North,Private & Voluntary Home Care,Brunelcare,23503.00, 30-Nov-2015
248,Revenue,CCHD,Pathway 2 - (Interim Beds),Permanent Nursing,Brunelcare,54600.00, 13-Nov-2015
249,Revenue,CCHD,Bed Purchasing - South,Permanent Nursing,Brunelcare,2484.12, 16-Nov-2015
250,Revenue,CCHD,Bed Purchasing - Southmead Hospital,Permanent Nursing,Brunelcare,2253.74, 16-Nov-2015
251,Revenue,CCHD,Bed Purchasing - South,Permanent Nursing,Brunelcare,2147.59, 16-Nov-2015
252,Revenue,CCHD,Bed Purchasing - South,Permanent Nursing,Brunelcare,2530.57, 16-Nov-2015
253,Revenue,CCHD,Bed Purchasing - Elderly S117- North,Permanent Nursing,Brunelcare,3135.43, 16-Nov-2015
254,Revenue,CCHD,Bed Purchasing - Elderly S117- North,Permanent Nursing,Brunelcare,3135.43, 16-Nov-2015
255,Revenue,CCHD,Bed Purchasing - South,Permanent Nursing,Brunelcare,2320.39, 16-Nov-2015
256,Revenue,CCHD,Bed Purchasing - Southmead Hospital,Permanent Nursing,Brunelcare,2498.20, 16-Nov-2015
257,Revenue,CCHD,Bed Purchasing - Southmead Hospital,Permanent Nursing,Brunelcare,1435.39, 16-Nov-2015
258,Revenue,CCHD,Bed Purchasing - Southmead Hospital,Permanent Nursing,Brunelcare,2461.13, 16-Nov-2015
259,Revenue,CCHD,Bed Purchasing - South,Permanent Nursing,Brunelcare,2576.11, 16-Nov-2015
260,Revenue,CCHD,Bed Purchasing - South,Permanent Nursing,Brunelcare,2285.50, 16-Nov-2015
261,Revenue,CCHD,Bed purchasing - Elderly S117 - South,Permanent Nursing,Brunelcare,3135.43, 16-Nov-2015
262,Revenue,CCHD,Bed Purchasing - North,Permanent Nursing,Brunelcare,2501.61, 16-Nov-2015
263,Revenue,CCHD,Bed Purchasing - Southmead Hospital,Permanent Nursing,Brunelcare,2400.42, 16-Nov-2015
264,Revenue,CCHD,Bed Purchasing - North,Permanent Nursing,Brunelcare,2516.31, 16-Nov-2015
265,Revenue,CCHD,Bed Purchasing - North,Permanent Nursing,Brunelcare,2576.10, 16-Nov-2015
266,Revenue,CCHD,Bed Purchasing - Southmead Hospital,Permanent Nursing,Brunelcare,2576.10, 16-Nov-2015
267,Revenue,CCHD,Bed Purchasing - Southmead Hospital,Permanent Nursing,Brunelcare,2478.23, 16-Nov-2015
268,Revenue,CCHD,Bed Purchasing - Elderly S117- North,Permanent Nursing,Brunelcare,3135.43, 16-Nov-2015
269,Revenue,CCHD,Bed Purchasing - North,Respite Planned - Nursing,Brunelcare,809.14, 16-Nov-2015
270,Revenue,CCHD,Bed Purchasing - North,Respite Planned - Nursing,Brunelcare,809.14, 16-Nov-2015
271,Revenue,CCHD,Pathway 2 - (Interim Beds),Permanent Nursing,Brunelcare,15200.00, 30-Nov-2015
272,Revenue,CCHD,Home Care - Elderly - South,Other Small Contracts,Brunelcare,2804.27, 09-Nov-2015
273,Revenue,CCHD,Home Care - Elderly - North,Other Small Contracts,Brunelcare,2667.98, 09-Nov-2015
274,Revenue,CCHD,Day Care - South,Day Care / Social Activities,Brunelcare,24.78, 09-Nov-2015
275,Revenue,CCHD,Home Care - Elderly - South,Other Small Contracts,Brunelcare,2800.14, 09-Nov-2015
276,Revenue,CCHD,Home Care - Elderly - North,Other Small Contracts,Brunelcare,2444.96, 09-Nov-2015
277,Revenue,CCHD,Day Care - South,Day Care / Social Activities,Brunelcare,28.91, 09-Nov-2015
278,Revenue,CCHD,Home Care - Elderly - South,Other Small Contracts,Brunelcare,2812.53, 09-Nov-2015
279,Revenue,CCHD,Home Care - Elderly - North,Other Small Contracts,Brunelcare,2403.66, 09-Nov-2015
280,Revenue,CCHD,Day Care - South,Day Care / Social Activities,Brunelcare,28.91, 09-Nov-2015
281,Revenue,CCHD,Home Care - Elderly - South,Other Small Contracts,Brunelcare,2767.10, 09-Nov-2015
282,Revenue,CCHD,Home Care - Elderly - North,Other Small Contracts,Brunelcare,2325.19, 09-Nov-2015
283,Revenue,CCHD,Day Care - South,Day Care / Social Activities,Brunelcare,24.78, 09-Nov-2015
284,Revenue,CCHD,Home Care - Elderly - South,Other Small Contracts,Brunelcare,2758.84, 11-Nov-2015
285,Revenue,CCHD,Home Care - Elderly - North,Other Small Contracts,Brunelcare,2304.54, 11-Nov-2015
286,Revenue,CCHD,Day Care - South,Day Care / Social Activities,Brunelcare,28.91, 11-Nov-2015
287,Revenue,CCHD,Home Care - Elderly - South,Other Small Contracts,Brunelcare,2796.01, 24-Nov-2015
288,Revenue,CCHD,Home Care - Elderly - North,Other Small Contracts,Brunelcare,2349.97, 24-Nov-2015
289,Revenue,CCHD,Day Care - South,Day Care / Social Activities,Brunelcare,28.91, 24-Nov-2015
290,Revenue,CCHD,Woodleaze,Agency Staff (Admin/Support Staff) Pay,BS Project Services Limited,526.17, 18-Nov-2015
291,Revenue,CCHD,Information Systems - Software,Computer Equipment - Purchase,BT Global Services Solutions,985.98, 20-Nov-2015
292,Revenue,CCHD,Bed Purchasing - North,Permanent Nursing,Bupa Care Services  Bridge House,6002.40, 24-Nov-2015
293,Revenue,CCHD,South Glos Users in all other LA Homes,Permanent Nursing,Bupa Care Services  Bridge House,616.56, 24-Nov-2015
294,Revenue,CCHD,Bed Purchasing - North,Permanent Residential,Bupa Care Services  Bridge House,1949.68, 24-Nov-2015
295,Revenue,CCHD,Swift Dump Code,Permanent Residential,Bupa Care Services  Bridge House,1388.57, 24-Nov-2015
296,Revenue,CCHD,Home Care - Elderly - South,Supported Living,Camphill Communities Thornbury Limited,216.70, 04-Nov-2015
297,Revenue,CCHD,Home Care - Elderly - North,Day Care / Social Activities,Camphill Communities Thornbury Limited,1126.84, 04-Nov-2015
298,Revenue,CCHD,Home Care - Elderly - North,Other Small Contracts,Camphill Communities Thornbury Limited,197.00, 04-Nov-2015
299,Revenue,CCHD,Home Care - Elderly - North,Supported Living,Camphill Communities Thornbury Limited,1205.64, 04-Nov-2015
300,Revenue,CCHD,Home Care - Elderly - South,Supported Living,Camphill Communities Thornbury Limited,220.64, 11-Nov-2015
301,Revenue,CCHD,Home Care - Elderly - North,Day Care / Social Activities,Camphill Communities Thornbury Limited,1245.04, 11-Nov-2015
302,Revenue,CCHD,Home Care - Elderly - North,Other Small Contracts,Camphill Communities Thornbury Limited,185.18, 11-Nov-2015
303,Revenue,CCHD,Home Care - Elderly - North,Supported Living,Camphill Communities Thornbury Limited,1063.80, 11-Nov-2015
304,Revenue,CCHD,Home Care - Elderly - South,Supported Living,Camphill Communities Thornbury Limited,220.64, 18-Nov-2015
305,Revenue,CCHD,Home Care - Elderly - North,Day Care / Social Activities,Camphill Communities Thornbury Limited,1095.32, 18-Nov-2015
306,Revenue,CCHD,Home Care - Elderly - North,Other Small Contracts,Camphill Communities Thornbury Limited,200.94, 18-Nov-2015
307,Revenue,CCHD,Home Care - Elderly - North,Supported Living,Camphill Communities Thornbury Limited,1008.64, 18-Nov-2015
308,Revenue,CCHD,Home Care - Elderly - South,Supported Living,Camphill Communities Thornbury Limited,220.64, 25-Nov-2015
309,Revenue,CCHD,Home Care - Elderly - North,Day Care / Social Activities,Camphill Communities Thornbury Limited,1233.22, 25-Nov-2015
310,Revenue,CCHD,Home Care - Elderly - North,Other Small Contracts,Camphill Communities Thornbury Limited,197.00, 25-Nov-2015
311,Revenue,CCHD,Home Care - Elderly - North,Supported Living,Camphill Communities Thornbury Limited,1312.02, 25-Nov-2015
312,Revenue,CCHD,Bed Purchasing - Elderly S117- North,Permanent Residential,Canjayor,2359.24, 24-Nov-2015
313,Revenue,CCHD,Information Systems - Software,Software Support & Maintenance,Capita Business Services Ltd,5500.00, 26-Nov-2015
314,Revenue,CCHD,Home Care - Elderly - South,Other Small Contracts,Care 1st Homecare,4679.25, 03-Nov-2015
315,Revenue,CCHD,Home Care - Elderly - South,Supported Living,Care 1st Homecare,25.50, 03-Nov-2015
316,Revenue,CCHD,Home Care - Elderly - North,One-off Planned Direct Payment,Care 1st Homecare,42.50, 03-Nov-2015
317,Revenue,CCHD,Home Care - Elderly - North,Other Small Contracts,Care 1st Homecare,3578.50, 03-Nov-2015
318,Revenue,CCHD,Home Care - Elderly - South,Other Small Contracts,Care 1st Homecare,4743.00, 03-Nov-2015
319,Revenue,CCHD,Home Care - Elderly - South,Supported Living,Care 1st Homecare,25.50, 03-Nov-2015
320,Revenue,CCHD,Home Care - Elderly - North,One-off Planned Direct Payment,Care 1st Homecare,42.50, 03-Nov-2015
321,Revenue,CCHD,Home Care - Elderly - North,Other Small Contracts,Care 1st Homecare,3591.25, 03-Nov-2015
322,Revenue,CCHD,Home Care - Elderly - South,Other Small Contracts,Care 1st Homecare,4717.50, 11-Nov-2015
323,Revenue,CCHD,Home Care - Elderly - South,Supported Living,Care 1st Homecare,21.25, 11-Nov-2015
324,Revenue,CCHD,Home Care - Elderly - North,One-off Planned Direct Payment,Care 1st Homecare,17.00, 11-Nov-2015
325,Revenue,CCHD,Home Care - Elderly - North,Other Small Contracts,Care 1st Homecare,3565.75, 11-Nov-2015
326,Revenue,CCHD,Home Care - Elderly - South,Other Small Contracts,Care 1st Homecare,4551.75, 11-Nov-2015
327,Revenue,CCHD,Home Care - Elderly - South,Supported Living,Care 1st Homecare,25.50, 11-Nov-2015
328,Revenue,CCHD,Home Care - Elderly - North,One-off Planned Direct Payment,Care 1st Homecare,38.25, 11-Nov-2015
329,Revenue,CCHD,Home Care - Elderly - North,Other Small Contracts,Care 1st Homecare,3582.75, 11-Nov-2015
330,Revenue,CCHD,Home Care - Elderly - South,Other Small Contracts,Care 1st Homecare,4577.25, 13-Nov-2015
331,Revenue,CCHD,Home Care - Elderly - South,Supported Living,Care 1st Homecare,25.50, 13-Nov-2015
332,Revenue,CCHD,Home Care - Elderly - North,One-off Planned Direct Payment,Care 1st Homecare,38.25, 13-Nov-2015
333,Revenue,CCHD,Home Care - Elderly - North,Other Small Contracts,Care 1st Homecare,3570.00, 13-Nov-2015
334,Revenue,CCHD,Home Care - Elderly - South,Other Small Contracts,Care 1st Homecare,4700.50, 13-Nov-2015
335,Revenue,CCHD,Home Care - Elderly - South,Supported Living,Care 1st Homecare,21.25, 13-Nov-2015
336,Revenue,CCHD,Home Care - Elderly - North,One-off Planned Direct Payment,Care 1st Homecare,38.25, 13-Nov-2015
337,Revenue,CCHD,Home Care - Elderly - North,Other Small Contracts,Care 1st Homecare,3340.50, 13-Nov-2015
338,Revenue,CCHD,Home Care - Elderly - South,Other Small Contracts,Care 1st Homecare,4653.75, 13-Nov-2015
339,Revenue,CCHD,Home Care - Elderly - South,Supported Living,Care 1st Homecare,21.25, 13-Nov-2015
340,Revenue,CCHD,Home Care - Elderly - North,One-off Planned Direct Payment,Care 1st Homecare,21.25, 13-Nov-2015
341,Revenue,CCHD,Home Care - Elderly - North,Other Small Contracts,Care 1st Homecare,3442.50, 13-Nov-2015
342,Revenue,CCHD,Home Care - Elderly - South,Other Small Contracts,Care 1st Homecare,4500.75, 13-Nov-2015
343,Revenue,CCHD,Home Care - Elderly - South,Supported Living,Care 1st Homecare,21.25, 13-Nov-2015
344,Revenue,CCHD,Home Care - Elderly - North,One-off Planned Direct Payment,Care 1st Homecare,42.50, 13-Nov-2015
345,Revenue,CCHD,Home Care - Elderly - North,Other Small Contracts,Care 1st Homecare,3523.25, 13-Nov-2015
346,Revenue,CCHD,Purchase of Non-Res Care - South,Day Care / Social Activities,Care Futures,2358.36, 13-Nov-2015
347,Revenue,CCHD,Home Care - Elderly - South,Other Small Contracts,Care Horizons Limited,436.50, 03-Nov-2015
348,Revenue,CCHD,Home Care - Elderly - North,Day Care / Social Activities,Care Horizons Limited,162.00, 03-Nov-2015
349,Revenue,CCHD,Home Care - Elderly - North,Other Small Contracts,Care Horizons Limited,387.00, 03-Nov-2015
350,Revenue,CCHD,Home Care - Elderly - South,Other Small Contracts,Care Horizons Limited,319.50, 03-Nov-2015
351,Revenue,CCHD,Home Care - Elderly - North,Day Care / Social Activities,Care Horizons Limited,162.00, 03-Nov-2015
352,Revenue,CCHD,Home Care - Elderly - North,Other Small Contracts,Care Horizons Limited,801.00, 03-Nov-2015
353,Revenue,CCHD,Home Care - Elderly - South,Other Small Contracts,Care Horizons Limited,396.00, 03-Nov-2015
354,Revenue,CCHD,Home Care - Elderly - North,Day Care / Social Activities,Care Horizons Limited,166.50, 03-Nov-2015
355,Revenue,CCHD,Home Care - Elderly - North,Other Small Contracts,Care Horizons Limited,873.00, 03-Nov-2015
356,Revenue,CCHD,Home Care - Elderly - South,Other Small Contracts,Care Horizons Limited,378.00, 03-Nov-2015
357,Revenue,CCHD,Home Care - Elderly - North,Day Care / Social Activities,Care Horizons Limited,162.00, 03-Nov-2015
358,Revenue,CCHD,Home Care - Elderly - North,Other Small Contracts,Care Horizons Limited,958.50, 03-Nov-2015
359,Revenue,CCHD,Home Care - Elderly - South,Other Small Contracts,Care Horizons Limited,450.00, 09-Nov-2015
360,Revenue,CCHD,Home Care - Elderly - North,Day Care / Social Activities,Care Horizons Limited,166.50, 09-Nov-2015
361,Revenue,CCHD,Home Care - Elderly - North,Other Small Contracts,Care Horizons Limited,639.00, 09-Nov-2015
362,Revenue,CCHD,Home Care - Elderly - South,Other Small Contracts,Care Horizons Limited,445.50, 17-Nov-2015
363,Revenue,CCHD,Home Care - Elderly - North,Day Care / Social Activities,Care Horizons Limited,175.50, 17-Nov-2015
364,Revenue,CCHD,Home Care - Elderly - North,Other Small Contracts,Care Horizons Limited,346.50, 17-Nov-2015
365,Revenue,CCHD,Home Care - Elderly - South,Other Small Contracts,Care Horizons Limited,364.50, 24-Nov-2015
366,Revenue,CCHD,Home Care - Elderly - North,Day Care / Social Activities,Care Horizons Limited,157.50, 24-Nov-2015
367,Revenue,CCHD,Home Care - Elderly - North,Other Small Contracts,Care Horizons Limited,490.50, 24-Nov-2015
368,Revenue,CCHD,Home Care - Elderly - South,Other Small Contracts,Care Horizons Limited,432.00, 24-Nov-2015
369,Revenue,CCHD,Home Care - Elderly - North,Day Care / Social Activities,Care Horizons Limited,157.50, 24-Nov-2015
370,Revenue,CCHD,Home Care - Elderly - North,Other Small Contracts,Care Horizons Limited,423.00, 24-Nov-2015
371,Revenue,CCHD,Supported Living - North,Private & Voluntary Home Care,Care Horizons Limited,5089.76, 05-Nov-2015
372,Revenue,CCHD,Home Care - Elderly - South,Other Small Contracts,Care UK,3886.63, 09-Nov-2015
373,Revenue,CCHD,Home Care - Elderly - North,Other Small Contracts,Care UK,1488.75, 09-Nov-2015
374,Revenue,CCHD,Home Care - Elderly - South,Other Small Contracts,Care UK,3878.69, 09-Nov-2015
375,Revenue,CCHD,Home Care - Elderly - North,Other Small Contracts,Care UK,1476.84, 09-Nov-2015
376,Revenue,CCHD,Home Care - Elderly - South,Other Small Contracts,Care UK,3918.39, 12-Nov-2015
377,Revenue,CCHD,Home Care - Elderly - North,Other Small Contracts,Care UK,1421.26, 12-Nov-2015
378,Revenue,CCHD,Home Care - Elderly - South,Other Small Contracts,Care UK,3886.63, 18-Nov-2015
379,Revenue,CCHD,Home Care - Elderly - North,Other Small Contracts,Care UK,1333.92, 18-Nov-2015
380,Revenue,CCHD,Home Care - Elderly - South,Other Small Contracts,Carers R Us (Bristol) Limited,735.28, 09-Nov-2015
381,Revenue,CCHD,Home Care - Elderly - North,Other Small Contracts,Carers R Us (Bristol) Limited,177.76, 09-Nov-2015
382,Revenue,CCHD,Home Care - Elderly - South,Other Small Contracts,Carers R Us (Bristol) Limited,674.68, 09-Nov-2015
383,Revenue,CCHD,Home Care - Elderly - North,Other Small Contracts,Carers R Us (Bristol) Limited,145.44, 09-Nov-2015
384,Revenue,CCHD,Home Care - Elderly - South,Other Small Contracts,Caring Comes 1st Ltd,1006.20, 06-Nov-2015
385,Revenue,CCHD,Home Care - Elderly - South,Other Small Contracts,Caring Comes 1st Ltd,1269.00, 06-Nov-2015
386,Revenue,CCHD,Bed Purchasing - North,Permanent Residential,Charlton House,919.52, 24-Nov-2015
387,Revenue,CCHD,Training - Adult Services,Training Expenses,Chartered Management Institute,1190.00, 06-Nov-2015
388,Revenue,CCHD,Home Care - Elderly - South,Other Small Contracts,Cherish Able Care Limited,5038.68, 05-Nov-2015
389,Revenue,CCHD,Home Care - Elderly - North,Other Small Contracts,Cherish Able Care Limited,2342.66, 05-Nov-2015
390,Revenue,CCHD,Home Care - Elderly - South,Other Small Contracts,Cherish Able Care Limited,4962.72, 12-Nov-2015
391,Revenue,CCHD,Home Care - Elderly - North,Other Small Contracts,Cherish Able Care Limited,2363.76, 12-Nov-2015
392,Revenue,CCHD,Home Care - Elderly - South,Other Small Contracts,Cherish Able Care Limited,5203.26, 19-Nov-2015
393,Revenue,CCHD,Home Care - Elderly - North,Other Small Contracts,Cherish Able Care Limited,2373.95, 19-Nov-2015
394,Revenue,CCHD,Home Care - Elderly - South,Other Small Contracts,Cherish Able Care Limited,5165.28, 26-Nov-2015
395,Revenue,CCHD,Home Care - Elderly - North,Other Small Contracts,Cherish Able Care Limited,530.18, 26-Nov-2015
396,Revenue,CCHD,Bed purchasing -S28A  Under 65 - North,Permanent Residential,Chescombe Lodge,8791.96, 24-Nov-2015
397,Revenue,CCHD,Bed Purchasing - Southmead Hospital,Permanent Nursing,Cholwell House Nursing Home Ltd,1989.76, 24-Nov-2015
398,Revenue,CCHD,Training - Adult Services,Training Expenses,Individual,750.00, 30-Nov-2015
399,Revenue,CCHD,Section 117 Placements MH Younger,Permanent Residential,Church House,7649.04, 24-Nov-2015
400,Revenue,CCHD,Bed Purchasing - Southmead Hospital,Permanent Nursing,Churchill Property Services,1698.04, 24-Nov-2015
401,Revenue,CCHD,18-25 Year Olds,Permanent Residential,Citibase Watford,7088.60, 24-Nov-2015
402,Revenue,CCHD,Bed Purchasing - Elderly S117- North,Permanent Residential,Citibase Watford,9028.60, 24-Nov-2015
403,Revenue,CCHD,18-25 Year Olds,Permanent Residential,Citibase Watford,5514.44, 24-Nov-2015
404,Revenue,CCHD,Training - Adult Services,Training Expenses,City & Guilds,828.00, 06-Nov-2015
405,Revenue,CCHD,Bed Purchasing - South,Permanent Residential,Cleeve Lodge,568.08, 24-Nov-2015
406,Revenue,CCHD,Bed Purchasing - Southmead Hospital,Permanent Residential,Cleeve Lodge,1475.80, 24-Nov-2015
407,Revenue,CCHD,Bed Purchasing - South,Respite Planned - Residential,Cleeve Lodge,2460.00, 24-Nov-2015
408,Revenue,CCHD,Bed Purchasing - South,Respite Planned - Residential,Cleeve Lodge,2460.00, 24-Nov-2015
409,Revenue,CCHD,Bed Purchasing - South,Permanent Residential,Cleeve Lodge,1954.80, 24-Nov-2015
410,Revenue,CCHD,Bed Purchasing - South,Permanent Residential,Cleeve Lodge,1827.76, 24-Nov-2015
411,Revenue,CCHD,Bed Purchasing - South,Permanent Residential,Collingwood Residential Home,1456.80, 24-Nov-2015
412,Revenue,CCHD,Bed Purchasing - South,Permanent Residential,Collingwood Residential Home,1466.04, 24-Nov-2015
413,Revenue,CCHD,Bed Purchasing - South,Permanent Residential,Collingwood Residential Home,1079.12, 24-Nov-2015
414,Revenue,CCHD,Bed Purchasing - South,Permanent Residential,Collingwood Residential Home,1333.28, 24-Nov-2015
415,Revenue,CCHD,Bed Purchasing - South,Permanent Residential,Collingwood Residential Home,1327.16, 24-Nov-2015
416,Revenue,CCHD,Bed Purchasing - South,Permanent Nursing,Community Integrated Care,664.84, 24-Nov-2015
417,Revenue,CCHD,Bed and Breakfast,Bed & Breakfast,Connolly & Callaghan Limited,441.00, 12-Nov-2015
418,Revenue,CCHD,Homeless - Private Sector Leasing,Bed & Breakfast,Connolly & Callaghan Limited,441.00, 25-Nov-2015
419,Revenue,CCHD,Bed and Breakfast,Bed & Breakfast,Connolly & Callaghan Limited,616.00, 25-Nov-2015
420,Revenue,CCHD,Bed and Breakfast,Bed & Breakfast,Connolly & Callaghan Limited,511.00, 25-Nov-2015
421,Revenue,CCHD,Bed and Breakfast,Bed & Breakfast,Connolly & Callaghan Limited,616.00, 25-Nov-2015
422,Revenue,CCHD,Bed and Breakfast,Bed & Breakfast,Connolly & Callaghan Limited,441.00, 06-Nov-2015
423,Revenue,CCHD,Bed and Breakfast,Bed & Breakfast,Connolly & Callaghan Limited,546.00, 25-Nov-2015
424,Revenue,CCHD,Bed and Breakfast,Bed & Breakfast,Connolly & Callaghan Limited,511.00, 25-Nov-2015
425,Revenue,CCHD,Bed and Breakfast,Bed & Breakfast,Connolly & Callaghan Limited,511.00, 25-Nov-2015
426,Revenue,CCHD,Bed and Breakfast,Bed & Breakfast,Connolly & Callaghan Limited,616.00, 25-Nov-2015
427,Revenue,CCHD,Bed and Breakfast,Bed & Breakfast,Connolly & Callaghan Limited,476.00, 06-Nov-2015
428,Revenue,CCHD,Bed and Breakfast,Bed & Breakfast,Connolly & Callaghan Limited,546.00, 09-Nov-2015
429,Revenue,CCHD,Bed and Breakfast,Bed & Breakfast,Connolly & Callaghan Limited,700.00, 06-Nov-2015
430,Revenue,CCHD,Bed and Breakfast,Bed & Breakfast,Connolly & Callaghan Limited,511.00, 09-Nov-2015
431,Revenue,CCHD,Bed and Breakfast,Bed & Breakfast,Connolly & Callaghan Limited,686.00, 06-Nov-2015
432,Revenue,CCHD,Bed and Breakfast,Bed & Breakfast,Connolly & Callaghan Limited,581.00, 06-Nov-2015
433,Revenue,CCHD,Bed and Breakfast,Bed & Breakfast,Connolly & Callaghan Limited,511.00, 09-Nov-2015
434,Revenue,CCHD,Bed and Breakfast,Bed & Breakfast,Connolly & Callaghan Limited,686.00, 06-Nov-2015
435,Revenue,CCHD,Bed and Breakfast,Bed & Breakfast,Connolly & Callaghan Limited,511.00, 06-Nov-2015
436,Revenue,CCHD,Bed and Breakfast,Bed & Breakfast,Connolly & Callaghan Limited,616.00, 09-Nov-2015
437,Revenue,CCHD,Bed and Breakfast,Bed & Breakfast,Connolly & Callaghan Limited,476.00, 12-Nov-2015
438,Revenue,CCHD,Bed and Breakfast,Bed & Breakfast,Connolly & Callaghan Limited,476.00, 12-Nov-2015
439,Revenue,CCHD,Bed and Breakfast,Bed & Breakfast,Connolly & Callaghan Limited,546.00, 12-Nov-2015
440,Revenue,CCHD,Bed and Breakfast,Bed & Breakfast,Connolly & Callaghan Limited,700.00, 12-Nov-2015
441,Revenue,CCHD,Bed and Breakfast,Bed & Breakfast,Connolly & Callaghan Limited,511.00, 12-Nov-2015
442,Revenue,CCHD,Bed and Breakfast,Bed & Breakfast,Connolly & Callaghan Limited,686.00, 12-Nov-2015
443,Revenue,CCHD,Bed and Breakfast,Bed & Breakfast,Connolly & Callaghan Limited,581.00, 12-Nov-2015
444,Revenue,CCHD,Bed and Breakfast,Bed & Breakfast,Connolly & Callaghan Limited,511.00, 12-Nov-2015
445,Revenue,CCHD,Bed and Breakfast,Bed & Breakfast,Connolly & Callaghan Limited,686.00, 12-Nov-2015
446,Revenue,CCHD,Bed and Breakfast,Bed & Breakfast,Connolly & Callaghan Limited,511.00, 12-Nov-2015
447,Revenue,CCHD,Bed and Breakfast,Bed & Breakfast,Connolly & Callaghan Limited,616.00, 25-Nov-2015
448,Revenue,CCHD,Bed and Breakfast,Bed & Breakfast,Connolly & Callaghan Limited,476.00, 25-Nov-2015
449,Revenue,CCHD,Bed and Breakfast,Bed & Breakfast,Connolly & Callaghan Limited,476.00, 20-Nov-2015
450,Revenue,CCHD,Bed and Breakfast,Bed & Breakfast,Connolly & Callaghan Limited,546.00, 25-Nov-2015
451,Revenue,CCHD,Bed and Breakfast,Bed & Breakfast,Connolly & Callaghan Limited,700.00, 20-Nov-2015
452,Revenue,CCHD,Bed and Breakfast,Bed & Breakfast,Connolly & Callaghan Limited,511.00, 25-Nov-2015
453,Revenue,CCHD,Bed and Breakfast,Bed & Breakfast,Connolly & Callaghan Limited,686.00, 20-Nov-2015
454,Revenue,CCHD,Bed and Breakfast,Bed & Breakfast,Connolly & Callaghan Limited,476.00, 25-Nov-2015
455,Revenue,CCHD,Bed and Breakfast,Bed & Breakfast,Connolly & Callaghan Limited,511.00, 20-Nov-2015
456,Revenue,CCHD,Bed and Breakfast,Bed & Breakfast,Connolly & Callaghan Limited,511.00, 20-Nov-2015
457,Revenue,CCHD,Bed and Breakfast,Bed & Breakfast,Connolly & Callaghan Limited,616.00, 25-Nov-2015
458,Revenue,CCHD,Bed and Breakfast,Bed & Breakfast,Connolly & Callaghan Limited,476.00, 25-Nov-2015
459,Revenue,CCHD,Bed and Breakfast,Bed & Breakfast,Connolly & Callaghan Limited,476.00, 27-Nov-2015
460,Revenue,CCHD,Bed and Breakfast,Bed & Breakfast,Connolly & Callaghan Limited,546.00, 25-Nov-2015
461,Revenue,CCHD,Bed and Breakfast,Bed & Breakfast,Connolly & Callaghan Limited,511.00, 25-Nov-2015
462,Revenue,CCHD,Bed and Breakfast,Bed & Breakfast,Connolly & Callaghan Limited,441.00, 25-Nov-2015
463,Revenue,CCHD,Bed and Breakfast,Bed & Breakfast,Connolly & Callaghan Limited,476.00, 27-Nov-2015
464,Revenue,CCHD,Bed and Breakfast,Bed & Breakfast,Connolly & Callaghan Limited,476.00, 25-Nov-2015
465,Revenue,CCHD,Bed and Breakfast,Bed & Breakfast,Connolly & Callaghan Limited,511.00, 27-Nov-2015
466,Revenue,CCHD,Bed and Breakfast,Bed & Breakfast,Connolly & Callaghan Limited,511.00, 27-Nov-2015
467,Revenue,CCHD,Bed and Breakfast,Bed & Breakfast,Connolly & Callaghan Limited,616.00, 25-Nov-2015
468,Revenue,CCHD,Bed Purchasing - Southmead Hospital,Permanent Residential,Coombs Wood House,1192.80, 24-Nov-2015
469,Revenue,CCHD,Bed Purchasing - S28A - Over 65- North,Permanent Residential,Cream Ii Ltd  Longrun House,8102.76, 24-Nov-2015
470,Revenue,CCHD,Bed Purchasing - South,Permanent Residential,Cream Ii Ltd  Longrun House,5689.32, 24-Nov-2015
471,Revenue,CCHD,Bed purchasing -S28A  Under 65 - North,Permanent Residential,Creedy Court,9392.72, 24-Nov-2015
472,Revenue,CCHD,Bed Purchasing - S28A - Over 65- North,Permanent Residential,Creedy Court,7806.28, 24-Nov-2015
473,Revenue,CCHD,Bed Purchasing - North,Permanent Residential,Creedy Court,12716.84, 24-Nov-2015
474,Revenue,CCHD,Bed Purchasing - South,Permanent Residential,Daneswood,22227.28, 24-Nov-2015
475,Revenue,CCHD,Bed Purchasing - North,Permanent Residential,Daneswood,18427.28, 24-Nov-2015
476,Revenue,CCHD,Bed Purchasing - Elderly S117- North,Permanent Nursing,Danshell Healthcare Group,11653.52, 24-Nov-2015
477,Revenue,CCHD,Learning Difficulties PSL,Other Supplies & Services,Individual,2105.50, 20-Nov-2015
478,Revenue,CCHD,Purchase of Non-Res Care - North,Day Care / Social Activities,Design 4 Life Ltd,3233.73, 24-Nov-2015
479,Revenue,CCHD,Community Support - South,Preventative Assistance,Design 4 Life Ltd,2401.20, 30-Nov-2015
480,Revenue,CCHD,Home Care - Elderly - South,Supported Living,Design House,3177.76, 24-Nov-2015
481,Revenue,CCHD,Home Care - Elderly - South,Supported Living,Design House,3246.88, 24-Nov-2015
482,Revenue,CCHD,Home Care - Elderly - South,Supported Living,Design House,2794.08, 24-Nov-2015
483,Revenue,CCHD,Home Care - Elderly - South,Supported Living,Design House,2463.04, 24-Nov-2015
484,Revenue,CCHD,Home Care - Elderly - South,Supported Living,Design House,2463.04, 24-Nov-2015
485,Revenue,CCHD,Home Care - Elderly - South,Supported Living,Design House,3972.52, 24-Nov-2015
486,Revenue,CCHD,Home Care - Elderly - South,Supported Living,Design House,2707.24, 24-Nov-2015
487,Revenue,CCHD,Home Care - Elderly - South,Supported Living,Design House,2756.08, 24-Nov-2015
488,Revenue,CCHD,Home Care - Elderly - South,Supported Living,Design House,2107.28, 24-Nov-2015
489,Revenue,CCHD,Home Care - Elderly - South,Supported Living,Design House,2186.24, 24-Nov-2015
490,Revenue,CCHD,Home Care - Elderly - South,Supported Living,Design House,2107.28, 24-Nov-2015
491,Revenue,CCHD,Bed Purchasing - South,Permanent Residential,Devon & Cornwall Autistic Community Trus,8880.84, 24-Nov-2015
492,Revenue,CCHD,Home Care - Elderly - South,Day Care / Social Activities,Dhek Bhal,196.00, 12-Nov-2015
493,Revenue,CCHD,Home Care - Elderly - South,Other Small Contracts,Dhek Bhal,274.40, 12-Nov-2015
494,Revenue,CCHD,Home Care - Elderly - North,Other Small Contracts,Dhek Bhal,78.40, 12-Nov-2015
495,Revenue,CCHD,Home Care - Elderly - South,Day Care / Social Activities,Dhek Bhal,196.00, 12-Nov-2015
496,Revenue,CCHD,Home Care - Elderly - South,Other Small Contracts,Dhek Bhal,274.40, 12-Nov-2015
497,Revenue,CCHD,Home Care - Elderly - North,Other Small Contracts,Dhek Bhal,112.70, 12-Nov-2015
498,Revenue,CCHD,Home Care - Elderly - South,Day Care / Social Activities,Dhek Bhal,196.00, 03-Nov-2015
499,Revenue,CCHD,Home Care - Elderly - South,Other Small Contracts,Dhek Bhal,274.40, 03-Nov-2015
500,Revenue,CCHD,Home Care - Elderly - North,Other Small Contracts,Dhek Bhal,122.50, 03-Nov-2015
501,Revenue,CCHD,Home Care - Elderly - South,Day Care / Social Activities,Dhek Bhal,196.00, 03-Nov-2015
502,Revenue,CCHD,Home Care - Elderly - South,Other Small Contracts,Dhek Bhal,269.50, 03-Nov-2015
503,Revenue,CCHD,Home Care - Elderly - North,Other Small Contracts,Dhek Bhal,78.40, 03-Nov-2015
504,Revenue,CCHD,Home Care - Elderly - South,Day Care / Social Activities,Dhek Bhal,210.70, 03-Nov-2015
505,Revenue,CCHD,Home Care - Elderly - South,Other Small Contracts,Dhek Bhal,269.50, 03-Nov-2015
506,Revenue,CCHD,Home Care - Elderly - North,Other Small Contracts,Dhek Bhal,117.60, 03-Nov-2015
507,Revenue,CCHD,Home Care - Elderly - South,Day Care / Social Activities,Dhek Bhal,186.20, 13-Nov-2015
508,Revenue,CCHD,Home Care - Elderly - South,Other Small Contracts,Dhek Bhal,274.40, 13-Nov-2015
509,Revenue,CCHD,Home Care - Elderly - North,Other Small Contracts,Dhek Bhal,117.60, 13-Nov-2015
510,Revenue,CCHD,Home Care - Elderly - South,Day Care / Social Activities,Dhek Bhal,196.00, 24-Nov-2015
511,Revenue,CCHD,Home Care - Elderly - South,Other Small Contracts,Dhek Bhal,274.40, 24-Nov-2015
512,Revenue,CCHD,Home Care - Elderly - North,Other Small Contracts,Dhek Bhal,117.60, 24-Nov-2015
513,Revenue,CCHD,Home Care - Elderly - South,Day Care / Social Activities,Dhek Bhal,196.00, 24-Nov-2015
514,Revenue,CCHD,Home Care - Elderly - South,Other Small Contracts,Dhek Bhal,274.40, 24-Nov-2015
515,Revenue,CCHD,Home Care - Elderly - North,Other Small Contracts,Dhek Bhal,117.60, 24-Nov-2015
516,Revenue,CCHD,Bed Purchasing - South,Permanent Residential,Dimensions  Suite 2,4933.76, 24-Nov-2015
517,Revenue,CCHD,Supported Living - South,Private & Voluntary Home Care,Dimensions (UK) Ltd,7748.40, 27-Nov-2015
518,Revenue,CCHD,Home Care - Elderly - South,Day Care / Social Activities,DoCare Ltd,40.24, 04-Nov-2015
519,Revenue,CCHD,Home Care - Elderly - South,Other Small Contracts,DoCare Ltd,1886.25, 04-Nov-2015
520,Revenue,CCHD,Home Care - Elderly - North,Other Small Contracts,DoCare Ltd,5467.61, 04-Nov-2015
521,Revenue,CCHD,Home Care - Elderly - South,Day Care / Social Activities,DoCare Ltd,40.24, 04-Nov-2015
522,Revenue,CCHD,Home Care - Elderly - South,Other Small Contracts,DoCare Ltd,1946.62, 04-Nov-2015
523,Revenue,CCHD,Home Care - Elderly - North,Other Small Contracts,DoCare Ltd,5734.20, 04-Nov-2015
524,Revenue,CCHD,Home Care - Elderly - South,Other Small Contracts,DoCare Ltd,1856.07, 04-Nov-2015
525,Revenue,CCHD,Home Care - Elderly - North,Other Small Contracts,DoCare Ltd,5799.59, 04-Nov-2015
526,Revenue,CCHD,Home Care - Elderly - South,Other Small Contracts,DoCare Ltd,1886.26, 24-Nov-2015
527,Revenue,CCHD,Home Care - Elderly - North,Other Small Contracts,DoCare Ltd,5729.17, 24-Nov-2015
528,Revenue,CCHD,Home Care - Elderly - South,Day Care / Social Activities,DoCare Ltd,45.27, 24-Nov-2015
529,Revenue,CCHD,Home Care - Elderly - South,Other Small Contracts,DoCare Ltd,1946.62, 24-Nov-2015
530,Revenue,CCHD,Home Care - Elderly - North,Other Small Contracts,DoCare Ltd,5216.11, 24-Nov-2015
531,Revenue,CCHD,Social Lettings Agency,Other Supplies & Services,Individual,605.64, 24-Nov-2015
532,Revenue,CCHD,MH Purchasing - Younger,Permanent Residential,Dunraven House,1875.40, 24-Nov-2015
533,Revenue,CCHD,Bed and Breakfast,Bed & Breakfast,E J Bartlett,504.00, 03-Nov-2015
534,Revenue,CCHD,Bed and Breakfast,Bed & Breakfast,E J Bartlett,434.00, 06-Nov-2015
535,Revenue,CCHD,Bed and Breakfast,Bed & Breakfast,E J Bartlett,420.00, 09-Nov-2015
536,Revenue,CCHD,Bed and Breakfast,Bed & Breakfast,E J Bartlett,455.00, 06-Nov-2015
537,Revenue,CCHD,Bed and Breakfast,Bed & Breakfast,E J Bartlett,504.00, 06-Nov-2015
538,Revenue,CCHD,Bed and Breakfast,Bed & Breakfast,E J Bartlett,434.00, 16-Nov-2015
539,Revenue,CCHD,Bed and Breakfast,Bed & Breakfast,E J Bartlett,420.00, 16-Nov-2015
540,Revenue,CCHD,Bed and Breakfast,Bed & Breakfast,E J Bartlett,455.00, 16-Nov-2015
541,Revenue,CCHD,Bed and Breakfast,Bed & Breakfast,E J Bartlett,560.00, 16-Nov-2015
542,Revenue,CCHD,Bed and Breakfast,Bed & Breakfast,E J Bartlett,434.00, 17-Nov-2015
543,Revenue,CCHD,Bed and Breakfast,Bed & Breakfast,E J Bartlett,420.00, 17-Nov-2015
544,Revenue,CCHD,Bed and Breakfast,Bed & Breakfast,E J Bartlett,455.00, 18-Nov-2015
545,Revenue,CCHD,Bed and Breakfast,Bed & Breakfast,E J Bartlett,490.00, 18-Nov-2015
546,Revenue,CCHD,Bed and Breakfast,Bed & Breakfast,E J Bartlett,434.00, 27-Nov-2015
547,Revenue,CCHD,Bed and Breakfast,Bed & Breakfast,E J Bartlett,420.00, 27-Nov-2015
548,Revenue,CCHD,Bed and Breakfast,Bed & Breakfast,E J Bartlett,455.00, 27-Nov-2015
549,Revenue,CCHD,Bed and Breakfast,Bed & Breakfast,E J Bartlett,1512.00, 30-Nov-2015
550,Revenue,CCHD,Bed and Breakfast,Bed & Breakfast,E J Bartlett,490.00, 27-Nov-2015
551,Revenue,CCHD,Bed Purchasing - North,Permanent Residential,East Court,2238.40, 24-Nov-2015
552,Revenue,CCHD,Minor Adaptations Service,Operational Equipment,Eastman & Co (Timber) Limited,1139.60, 17-Nov-2015
553,Revenue,CCHD,Home Care - Elderly - South,Day Care / Social Activities,Easton Community Centre,526.08, 24-Nov-2015
554,Revenue,CCHD,Home Care - Elderly - South,Day Care / Social Activities,Easton Community Centre,526.08, 24-Nov-2015
555,Revenue,CCHD,Home Care - Elderly - North,Day Care / Social Activities,Easton Community Centre,526.08, 24-Nov-2015
556,Revenue,CCHD,Home Care - Elderly - North,Day Care / Social Activities,Easton Community Centre,526.08, 24-Nov-2015
557,Revenue,CCHD,Hospital Promoting Independence Team,Other Supplies & Services,Eastwood Park Limited,69.12, 27-Nov-2015
558,Revenue,CCHD,Training - Adult Services,Training Expenses,Eastwood Park Limited,398.12, 27-Nov-2015
559,Revenue,CCHD,Home Care - Elderly - South,Day Care / Social Activities,Eclipse Office Park,743.04, 24-Nov-2015
560,Revenue,CCHD,Home Care - Elderly - North,Day Care / Social Activities,Eclipse Office Park,990.72, 24-Nov-2015
561,Revenue,CCHD,Home Care - Elderly - South,Day Care / Social Activities,Eclipse Office Park,619.20, 24-Nov-2015
562,Revenue,CCHD,Home Care - Elderly - South,Day Care / Social Activities,Eclipse Office Park,743.04, 24-Nov-2015
563,Revenue,CCHD,Home Care - Elderly - South,Day Care / Social Activities,Eclipse Office Park,866.88, 24-Nov-2015
564,Revenue,CCHD,Home Care - Elderly - South,Day Care / Social Activities,Eclipse Office Park,743.04, 24-Nov-2015
565,Revenue,CCHD,Home Care - Elderly - South,Day Care / Social Activities,Eclipse Office Park,866.88, 24-Nov-2015
566,Revenue,CCHD,Home Care - Elderly - South,Day Care / Social Activities,Eclipse Office Park,1238.40, 24-Nov-2015
567,Revenue,CCHD,Home Care - Elderly - South,Day Care / Social Activities,Eclipse Office Park,743.04, 24-Nov-2015
568,Revenue,CCHD,Home Care - Elderly - South,Day Care / Social Activities,Eclipse Office Park,866.88, 24-Nov-2015
569,Revenue,CCHD,Home Care - Elderly - South,Day Care / Social Activities,Eclipse Office Park,990.72, 24-Nov-2015
570,Revenue,CCHD,Training - Adult Services,Training Expenses,Edge Training & Consultancy Limited,3285.00, 20-Nov-2015
571,Revenue,CCHD,Bed Purchasing - Southmead Hospital,Permanent Residential,Edgecumbe Lodge,1776.00, 24-Nov-2015
572,Revenue,CCHD,Bed Purchasing - South,Permanent Residential,Edgecumbe Lodge,1201.56, 24-Nov-2015
573,Revenue,CCHD,Bed Purchasing - South,Permanent Residential,Edgecumbe Lodge,1060.40, 24-Nov-2015
574,Revenue,CCHD,Bed Purchasing - Southmead Hospital,Permanent Residential,Edgecumbe Lodge,1617.48, 24-Nov-2015
575,Revenue,CCHD,Bed Purchasing - Southmead Hospital,Permanent Residential,Edgecumbe Lodge,2021.60, 24-Nov-2015
576,Revenue,CCHD,Bed Purchasing - North,Permanent Residential,Edgecumbe Lodge,519.93, 24-Nov-2015
577,Revenue,CCHD,Bed Purchasing - South,Permanent Residential,Edgecumbe Lodge,1444.84, 24-Nov-2015
578,Revenue,CCHD,Bed Purchasing - South,Permanent Residential,Edgecumbe Lodge,5664.00, 24-Nov-2015
579,Revenue,CCHD,Bed Purchasing - South,Permanent Residential,Edgecumbe Lodge,1569.60, 24-Nov-2015
580,Revenue,CCHD,Swift Dump Code,Permanent Residential,Edgecumbe Lodge,940.57, 24-Nov-2015
581,Revenue,CCHD,Bed Purchasing - Southmead Hospital,Permanent Residential,Edgecumbe Lodge,1546.32, 24-Nov-2015
582,Revenue,CCHD,Bed Purchasing - South,Permanent Residential,Edgecumbe Lodge,1145.92, 24-Nov-2015
583,Revenue,CCHD,Bed Purchasing - North,Permanent Residential,Edgecumbe Lodge,1144.03, 24-Nov-2015
584,Revenue,CCHD,Bed Purchasing - North,Permanent Residential,Edgecumbe Lodge,1378.20, 24-Nov-2015
585,Revenue,CCHD,Bed Purchasing - South,Permanent Residential,Edgemont House Ltd,1150.20, 24-Nov-2015
586,Revenue,CCHD,Bed Purchasing - Southmead Hospital,Permanent Residential,Edgemont House Ltd,10058.84, 24-Nov-2015
587,Revenue,CCHD,Bed Purchasing - North,Permanent Residential,Edgemont House Ltd,1270.80, 24-Nov-2015
588,Revenue,CCHD,Bed Purchasing - South,Permanent Residential,Edgemont House Ltd,1311.36, 24-Nov-2015
589,Revenue,CCHD,Bed Purchasing - South,Permanent Nursing,Edgemont View Nursing Home,1402.24, 24-Nov-2015
590,Revenue,CCHD,Bed Purchasing - North,Permanent Nursing,Edgemont View Nursing Home,1232.16, 24-Nov-2015
591,Revenue,CCHD,Bed Purchasing - South,Permanent Nursing,Edgemont View Nursing Home,1763.04, 24-Nov-2015
592,Revenue,CCHD,Bed Purchasing - South,Permanent Nursing,Edgemont View Nursing Home,1457.44, 24-Nov-2015
593,Revenue,CCHD,Bed Purchasing - South,Permanent Nursing,Edgemont View Nursing Home,1648.40, 24-Nov-2015
594,Revenue,CCHD,Bed Purchasing - South,Permanent Nursing,Edgemont View Nursing Home,1209.88, 24-Nov-2015
595,Revenue,CCHD,Planning and Partnerships Procurement,Other Supplies & Services,Eldercare,1519.99, 10-Nov-2015
596,Revenue,CCHD,Planning and Partnerships Procurement,Other Supplies & Services,Eldercare,1509.32, 30-Nov-2015
597,Revenue,CCHD,Home Care - Elderly - South,Day Care / Social Activities,Elite Home Care Ltd,35.36, 13-Nov-2015
598,Revenue,CCHD,Home Care - Elderly - South,Other Small Contracts,Elite Home Care Ltd,6148.22, 13-Nov-2015
599,Revenue,CCHD,Home Care - Elderly - North,Other Small Contracts,Elite Home Care Ltd,331.50, 13-Nov-2015
600,Revenue,CCHD,Home Care - Elderly - South,Day Care / Social Activities,Elite Home Care Ltd,35.36, 13-Nov-2015
601,Revenue,CCHD,Home Care - Elderly - South,Other Small Contracts,Elite Home Care Ltd,5980.26, 13-Nov-2015
602,Revenue,CCHD,Home Care - Elderly - North,Other Small Contracts,Elite Home Care Ltd,327.08, 13-Nov-2015
603,Revenue,CCHD,Home Care - Elderly - South,Day Care / Social Activities,Elite Home Care Ltd,35.36, 27-Nov-2015
604,Revenue,CCHD,Home Care - Elderly - South,Other Small Contracts,Elite Home Care Ltd,5662.02, 27-Nov-2015
605,Revenue,CCHD,Home Care - Elderly - North,Other Small Contracts,Elite Home Care Ltd,335.92, 27-Nov-2015
606,Revenue,CCHD,Home Care - Elderly - South,Day Care / Social Activities,Elite Home Care Ltd,35.36, 27-Nov-2015
607,Revenue,CCHD,Home Care - Elderly - South,Other Small Contracts,Elite Home Care Ltd,6254.30, 27-Nov-2015
608,Revenue,CCHD,Home Care - Elderly - North,Other Small Contracts,Elite Home Care Ltd,340.34, 27-Nov-2015
609,Revenue,CCHD,Home Care - Elderly - South,Day Care / Social Activities,Elite Home Care Ltd,35.36, 27-Nov-2015
610,Revenue,CCHD,Home Care - Elderly - South,Other Small Contracts,Elite Home Care Ltd,6373.64, 27-Nov-2015
611,Revenue,CCHD,Home Care - Elderly - North,Other Small Contracts,Elite Home Care Ltd,340.34, 27-Nov-2015
612,Revenue,CCHD,Bed Purchasing - North,Permanent Residential,Epworth House,1053.36, 24-Nov-2015
613,Revenue,CCHD,Home Care - Elderly - South,Other Small Contracts,Everycare (Bristol) Ltd,4381.70, 03-Nov-2015
614,Revenue,CCHD,Home Care - Elderly - North,Day Care / Social Activities,Everycare (Bristol) Ltd,98.90, 03-Nov-2015
615,Revenue,CCHD,Home Care - Elderly - North,Other Small Contracts,Everycare (Bristol) Ltd,1186.80, 03-Nov-2015
616,Revenue,CCHD,Home Care - Elderly - South,Other Small Contracts,Everycare (Bristol) Ltd,4373.10, 03-Nov-2015
617,Revenue,CCHD,Home Care - Elderly - North,Day Care / Social Activities,Everycare (Bristol) Ltd,111.80, 03-Nov-2015
618,Revenue,CCHD,Home Care - Elderly - North,Other Small Contracts,Everycare (Bristol) Ltd,1277.10, 03-Nov-2015
619,Revenue,CCHD,Home Care - Elderly - South,Other Small Contracts,Everycare (Bristol) Ltd,4106.50, 03-Nov-2015
620,Revenue,CCHD,Home Care - Elderly - North,Day Care / Social Activities,Everycare (Bristol) Ltd,133.30, 03-Nov-2015
621,Revenue,CCHD,Home Care - Elderly - North,Other Small Contracts,Everycare (Bristol) Ltd,1100.80, 03-Nov-2015
622,Revenue,CCHD,Home Care - Elderly - South,Other Small Contracts,Everycare (Bristol) Ltd,4226.90, 03-Nov-2015
623,Revenue,CCHD,Home Care - Elderly - North,Day Care / Social Activities,Everycare (Bristol) Ltd,111.80, 03-Nov-2015
624,Revenue,CCHD,Home Care - Elderly - North,Other Small Contracts,Everycare (Bristol) Ltd,1100.80, 03-Nov-2015
625,Revenue,CCHD,Home Care - Elderly - South,Other Small Contracts,Everycare (Bristol) Ltd,4158.10, 17-Nov-2015
626,Revenue,CCHD,Home Care - Elderly - North,Day Care / Social Activities,Everycare (Bristol) Ltd,120.40, 17-Nov-2015
627,Revenue,CCHD,Home Care - Elderly - North,Other Small Contracts,Everycare (Bristol) Ltd,885.80, 17-Nov-2015
628,Revenue,CCHD,Home Care - Elderly - South,Other Small Contracts,Everycare (Bristol) Ltd,3990.40, 17-Nov-2015
629,Revenue,CCHD,Home Care - Elderly - North,Day Care / Social Activities,Everycare (Bristol) Ltd,107.50, 17-Nov-2015
630,Revenue,CCHD,Home Care - Elderly - North,Other Small Contracts,Everycare (Bristol) Ltd,1113.70, 17-Nov-2015
631,Revenue,CCHD,Home Care - Elderly - South,Other Small Contracts,Everycare (Bristol) Ltd,4153.80, 24-Nov-2015
632,Revenue,CCHD,Home Care - Elderly - North,Day Care / Social Activities,Everycare (Bristol) Ltd,81.70, 24-Nov-2015
633,Revenue,CCHD,Home Care - Elderly - North,Other Small Contracts,Everycare (Bristol) Ltd,1105.10, 24-Nov-2015
634,Revenue,CCHD,Information Systems - Software,Telephones,Evolving Networks Ltd,865.00, 06-Nov-2015
635,Revenue,CCHD,Bed Purchasing - South,Permanent Nursing,Fairview Court,14418.64, 24-Nov-2015
636,Revenue,CCHD,Bed Purchasing - South,Permanent Nursing,Fairview Court,2446.80, 24-Nov-2015
637,Revenue,CCHD,Bed Purchasing - Southmead Hospital,Permanent Nursing,Fairview Court,1896.04, 24-Nov-2015
638,Revenue,CCHD,Bed Purchasing - Southmead Hospital,Permanent Nursing,Fairview Court,1204.96, 24-Nov-2015
639,Revenue,CCHD,Bed purchasing - Elderly S117 - South,Permanent Nursing,Fairview Court,2012.00, 24-Nov-2015
640,Revenue,CCHD,Bed Purchasing - North,Permanent Nursing,Fairview Court,2446.80, 24-Nov-2015
641,Revenue,CCHD,Bed Purchasing - South,Permanent Nursing,Fairview Court,1655.12, 24-Nov-2015
642,Revenue,CCHD,Bed Purchasing - South,Permanent Nursing,Fairview Court,1786.36, 24-Nov-2015
643,Revenue,CCHD,Bed Purchasing - South,Permanent Nursing,Fairview Court,2019.04, 24-Nov-2015
644,Revenue,CCHD,Bed Purchasing - Southmead Hospital,Permanent Nursing,Fairview Court,4363.77, 24-Nov-2015
645,Revenue,CCHD,Bed Purchasing - Southmead Hospital,Permanent Nursing,Fairview Court,2349.72, 24-Nov-2015
646,Revenue,CCHD,Pathway 2 - (Interim Beds),Permanent Nursing,Fairview Court Care Home,10200.00, 05-Nov-2015
647,Revenue,CCHD,Bed purchasing - Elderly S117 - South,Permanent Residential,Fairview House,1937.56, 24-Nov-2015
648,Revenue,CCHD,Bed Purchasing - Southmead Hospital,Permanent Residential,Fairview House,1043.16, 24-Nov-2015
649,Revenue,CCHD,Bed Purchasing - South,Permanent Residential,Fairview House,868.80, 24-Nov-2015
650,Revenue,CCHD,Bed Purchasing - South,Permanent Residential,Fairview House,669.04, 24-Nov-2015
651,Revenue,CCHD,Bed Purchasing - South,Permanent Residential,Fairview House,1270.80, 24-Nov-2015
652,Revenue,CCHD,Bed Purchasing - South,Permanent Residential,Fairview House,1222.60, 24-Nov-2015
653,Revenue,CCHD,Bed Purchasing - South,Permanent Residential,Fairview House,1134.96, 24-Nov-2015
654,Revenue,CCHD,Bed Purchasing - Southmead Hospital,Permanent Residential,Fairview House,1270.80, 24-Nov-2015
655,Revenue,CCHD,Bed Purchasing - South,Permanent Residential,Fairview House,1044.00, 24-Nov-2015
656,Revenue,CCHD,Bed Purchasing - South,Permanent Residential,Fairview House,1455.56, 24-Nov-2015
657,Revenue,CCHD,Bed Purchasing - Southmead Hospital,Permanent Residential,Fairview House,1407.12, 24-Nov-2015
658,Revenue,CCHD,Bed Purchasing - Southmead Hospital,Permanent Residential,Faith House,560.04, 24-Nov-2015
659,Revenue,CCHD,Bed Purchasing - Southmead Hospital,Permanent Residential,Faith House,1252.12, 24-Nov-2015
660,Revenue,CCHD,Bed Purchasing - North,Permanent Residential,Fernbank,7790.28, 24-Nov-2015
661,Revenue,CCHD,Bed Purchasing - North,Permanent Nursing,Field House Care Home,8586.65, 24-Nov-2015
662,Revenue,CCHD,Home Care - Elderly - South,Other Small Contracts,Firstpoint Homecare Ltd,1923.61, 24-Nov-2015
663,Revenue,CCHD,Home Care - Elderly - North,Day Care / Social Activities,Firstpoint Homecare Ltd,46.68, 24-Nov-2015
664,Revenue,CCHD,Home Care - Elderly - North,Other Small Contracts,Firstpoint Homecare Ltd,1093.11, 24-Nov-2015
665,Revenue,CCHD,Training - Adult Services,Training Expenses,Focal Point UK,439.00, 06-Nov-2015
666,Revenue,CCHD,Home Care - Elderly - South,Day Care / Social Activities,Fourways Care Limited,351.50, 17-Nov-2015
667,Revenue,CCHD,Home Care - Elderly - South,Other Small Contracts,Fourways Care Limited,669.75, 17-Nov-2015
668,Revenue,CCHD,Home Care - Elderly - North,Other Small Contracts,Fourways Care Limited,365.75, 17-Nov-2015
669,Revenue,CCHD,Home Care - Elderly - South,Day Care / Social Activities,Fourways Care Limited,351.50, 17-Nov-2015
670,Revenue,CCHD,Home Care - Elderly - South,Other Small Contracts,Fourways Care Limited,1087.75, 17-Nov-2015
671,Revenue,CCHD,Home Care - Elderly - North,Other Small Contracts,Fourways Care Limited,384.75, 17-Nov-2015
672,Revenue,CCHD,Home Care - Elderly - South,Day Care / Social Activities,Fourways Care Limited,351.50, 24-Nov-2015
673,Revenue,CCHD,Home Care - Elderly - South,Other Small Contracts,Fourways Care Limited,1353.75, 24-Nov-2015
674,Revenue,CCHD,Home Care - Elderly - North,Other Small Contracts,Fourways Care Limited,403.75, 24-Nov-2015
675,Revenue,CCHD,Freeways,Permanent Residential,Freeways Trust Limited,3651.28, 18-Nov-2015
676,Revenue,CCHD,Freeways,Permanent Residential,Freeways Trust Limited,2294.48, 18-Nov-2015
677,Revenue,CCHD,Freeways,Permanent Residential,Freeways Trust Limited,3026.48, 18-Nov-2015
678,Revenue,CCHD,Freeways,Permanent Residential,Freeways Trust Limited,2373.28, 18-Nov-2015
679,Revenue,CCHD,Freeways,Permanent Residential,Freeways Trust Limited,3395.68, 18-Nov-2015
680,Revenue,CCHD,Freeways,Permanent Residential,Freeways Trust Limited,3278.08, 18-Nov-2015
681,Revenue,CCHD,Freeways,Permanent Residential,Freeways Trust Limited,3560.84, 18-Nov-2015
682,Revenue,CCHD,Freeways,Permanent Residential,Freeways Trust Limited,2695.08, 18-Nov-2015
683,Revenue,CCHD,Freeways,Permanent Residential,Freeways Trust Limited,2711.48, 18-Nov-2015
684,Revenue,CCHD,Freeways,Permanent Residential,Freeways Trust Limited,3549.60, 18-Nov-2015
685,Revenue,CCHD,Freeways,Permanent Residential,Freeways Trust Limited,3111.64, 18-Nov-2015
686,Revenue,CCHD,Freeways,Permanent Residential,Freeways Trust Limited,3608.28, 18-Nov-2015
687,Revenue,CCHD,Freeways,Permanent Residential,Freeways Trust Limited,2451.72, 18-Nov-2015
688,Revenue,CCHD,Freeways,Permanent Residential,Freeways Trust Limited,2451.72, 18-Nov-2015
689,Revenue,CCHD,Freeways,Permanent Residential,Freeways Trust Limited,2451.72, 18-Nov-2015
690,Revenue,CCHD,Freeways,Permanent Residential,Freeways Trust Limited,2372.68, 18-Nov-2015
691,Revenue,CCHD,Supported Living - South,Private & Voluntary Home Care,Freeways Trust Limited,1340.82, 13-Nov-2015
692,Revenue,CCHD,Bed Purchasing - North,Permanent Residential,Freeways Trust Ltd,2891.96, 24-Nov-2015
693,Revenue,CCHD,Bed purchasing - S28A Under 65 - South,Permanent Residential,Freeways Trust Ltd,2959.48, 24-Nov-2015
694,Revenue,CCHD,Bed Purchasing - North,Permanent Residential,Freeways Trust Ltd,3164.68, 24-Nov-2015
695,Revenue,CCHD,Bed Purchasing - North,Permanent Residential,Freeways Trust Ltd,2312.72, 24-Nov-2015
696,Revenue,CCHD,Bed Purchasing - North,Permanent Residential,Freeways Trust Ltd,2761.92, 24-Nov-2015
697,Revenue,CCHD,Bed Purchasing - South,Permanent Residential,Freeways Trust Ltd,3375.88, 24-Nov-2015
698,Revenue,CCHD,Bed Purchasing - North,Permanent Residential,Freeways Trust Ltd,2286.84, 24-Nov-2015
699,Revenue,CCHD,Bed Purchasing - South,Permanent Residential,Freeways Trust Ltd,2426.72, 24-Nov-2015
700,Revenue,CCHD,Bed Purchasing - North,Permanent Residential,Freeways Trust Ltd,2683.12, 24-Nov-2015
701,Revenue,CCHD,Bed Purchasing - North,Permanent Residential,Freeways Trust Ltd,3185.76, 24-Nov-2015
702,Revenue,CCHD,18-25 Year Olds,Permanent Residential,Freeways Trust Ltd,3409.64, 24-Nov-2015
703,Revenue,CCHD,Bed Purchasing - North,Permanent Residential,Freeways Trust Ltd,3866.08, 24-Nov-2015
704,Revenue,CCHD,Bed Purchasing - Southmead Hospital,Permanent Nursing,Frenchay Park Nursing Home,2200.00, 24-Nov-2015
705,Revenue,CCHD,Health Inequalities,Conference Expenses,"Friends, Families and Travellers",750.00, 06-Nov-2015
706,Revenue,CCHD,Bed Purchasing - South,Permanent Nursing,Fshc  1St Floor,900.32, 24-Nov-2015
707,Revenue,CCHD,Bed Purchasing - South,Permanent Nursing,Fshc  1St Floor,1398.80, 24-Nov-2015
708,Revenue,CCHD,Bed Purchasing - Southmead Hospital,Permanent Residential,Fshc  1St Floor,896.92, 24-Nov-2015
709,Revenue,CCHD,Bed Purchasing - South,Permanent Nursing,Fshc  1St Floor,1013.96, 24-Nov-2015
710,Revenue,CCHD,Bed Purchasing - Southmead Hospital,Permanent Nursing,Fshc  1St Floor,1308.48, 24-Nov-2015
711,Revenue,CCHD,Bed Purchasing - Southmead Hospital,Permanent Nursing,Fshc  1St Floor,1362.80, 24-Nov-2015
712,Revenue,CCHD,Bed Purchasing - Southmead Hospital,Permanent Nursing,Fshc  1St Floor,1398.80, 24-Nov-2015
713,Revenue,CCHD,Bed Purchasing - Southmead Hospital,Permanent Nursing,Fshc  1St Floor,1398.80, 24-Nov-2015
714,Revenue,CCHD,Bed Purchasing - Southmead Hospital,Permanent Nursing,Fshc  1St Floor,1064.28, 24-Nov-2015
715,Revenue,CCHD,Bed Purchasing - South,Permanent Nursing,Fshc  1St Floor,1261.32, 24-Nov-2015
716,Revenue,CCHD,Bed Purchasing - Southmead Hospital,Permanent Residential,Fshc  1St Floor,1161.32, 24-Nov-2015
717,Revenue,CCHD,Bed Purchasing - Southmead Hospital,Permanent Nursing,Fshc  1St Floor,1398.80, 24-Nov-2015
718,Revenue,CCHD,Bed Purchasing - South,Permanent Nursing,Fshc  1St Floor,1142.76, 24-Nov-2015
719,Revenue,CCHD,Bed Purchasing - Southmead Hospital,Permanent Nursing,Fshc  1St Floor,1382.44, 24-Nov-2015
720,Revenue,CCHD,Bed Purchasing - Southmead Hospital,Permanent Nursing,Fshc  1St Floor,1398.80, 24-Nov-2015
721,Revenue,CCHD,Bed Purchasing - Southmead Hospital,Permanent Residential,Fshc  1St Floor,546.36, 24-Nov-2015
722,Revenue,CCHD,Bed Purchasing - Southmead Hospital,Permanent Nursing,Fshc  1St Floor,1398.80, 24-Nov-2015
723,Revenue,CCHD,Bed Purchasing - North,Permanent Nursing,Fshc  1St Floor,1904.00, 24-Nov-2015
724,Revenue,CCHD,Bed Purchasing - Southmead Hospital,Permanent Nursing,Fshc  1St Floor,1398.80, 24-Nov-2015
725,Revenue,CCHD,Bed Purchasing - Southmead Hospital,Permanent Nursing,Fshc  1St Floor,1207.68, 24-Nov-2015
726,Revenue,CCHD,Bed Purchasing - South,Permanent Nursing,Fshc  1St Floor,1398.80, 24-Nov-2015
727,Revenue,CCHD,Bed Purchasing - South,Permanent Nursing,Fshc  1St Floor,1354.20, 24-Nov-2015
728,Revenue,CCHD,Bed Purchasing - Southmead Hospital,Permanent Nursing,Fshc  1St Floor,1398.80, 24-Nov-2015
729,Revenue,CCHD,Bed Purchasing - North,Permanent Nursing,Fshc  1St Floor,1097.68, 24-Nov-2015
730,Revenue,CCHD,Bed Purchasing - North,Permanent Residential,Fshc  1St Floor,1270.80, 24-Nov-2015
731,Revenue,CCHD,Bed Purchasing - Southmead Hospital,Permanent Nursing,Fshc  1St Floor,1023.00, 24-Nov-2015
732,Revenue,CCHD,Bed Purchasing - Southmead Hospital,Permanent Nursing,Fshc  1St Floor,1622.04, 24-Nov-2015
733,Revenue,CCHD,Bed Purchasing - Southmead Hospital,Permanent Nursing,Fshc  1St Floor,1237.56, 24-Nov-2015
734,Revenue,CCHD,Bed Purchasing - Southmead Hospital,Permanent Nursing,Fshc  1St Floor,935.04, 24-Nov-2015
735,Revenue,CCHD,Bed Purchasing - Southmead Hospital,Permanent Residential,Fshc  1St Floor,1158.00, 24-Nov-2015
736,Revenue,CCHD,Bed Purchasing - North,Permanent Nursing,Fshc  1St Floor,1026.60, 24-Nov-2015
737,Revenue,CCHD,Bed Purchasing - Southmead Hospital,Permanent Nursing,Fshc  1St Floor,1112.44, 24-Nov-2015
738,Revenue,CCHD,Bed Purchasing - Southmead Hospital,Permanent Nursing,Fshc  1St Floor,1132.12, 24-Nov-2015
739,Revenue,CCHD,Bed Purchasing - Southmead Hospital,Permanent Nursing,Fshc  1St Floor,1304.24, 24-Nov-2015
740,Revenue,CCHD,Bed Purchasing - Southmead Hospital,Permanent Nursing,Fshc  1St Floor,1398.80, 24-Nov-2015
741,Revenue,CCHD,Bed Purchasing - North,Permanent Nursing,Fshc  1St Floor,1398.80, 24-Nov-2015
742,Revenue,CCHD,Bed Purchasing - North,Permanent Nursing,Fshc  1St Floor,949.19, 24-Nov-2015
743,Revenue,CCHD,Bed Purchasing - Southmead Hospital,Permanent Nursing,Fshc  1St Floor,1130.76, 24-Nov-2015
744,Revenue,CCHD,Bed Purchasing - North,Permanent Residential,Fshc  1St Floor,1248.40, 24-Nov-2015
745,Revenue,CCHD,Bed Purchasing - South,Permanent Residential,Fshc  1St Floor,1148.76, 24-Nov-2015
746,Revenue,CCHD,Bed Purchasing - Southmead Hospital,Permanent Nursing,Fshc  1St Floor,2080.00, 24-Nov-2015
747,Revenue,CCHD,Bed Purchasing - Southmead Hospital,Permanent Nursing,Fshc  1St Floor,1393.24, 24-Nov-2015
748,Revenue,CCHD,Bed Purchasing - Southmead Hospital,Permanent Nursing,Fshc  1St Floor,1398.80, 24-Nov-2015
749,Revenue,CCHD,Bed Purchasing - North,Permanent Nursing,Fshc  1St Floor,545.84, 24-Nov-2015
750,Revenue,CCHD,Bed Purchasing - North,Permanent Nursing,Fshc  1St Floor,1501.92, 24-Nov-2015
751,Revenue,CCHD,Bed Purchasing - Southmead Hospital,Permanent Residential,Fshc  1St Floor,619.48, 24-Nov-2015
752,Revenue,CCHD,Bed Purchasing - Southmead Hospital,Permanent Nursing,Fshc  1St Floor,1385.72, 24-Nov-2015
753,Revenue,CCHD,Bed Purchasing - North,Permanent Nursing,Fshc  1St Floor,1270.20, 24-Nov-2015
754,Revenue,CCHD,Bed Purchasing - North,Permanent Nursing,Fshc  1St Floor,908.28, 24-Nov-2015
755,Revenue,CCHD,South Glos Users in South Glos Homes,Permanent Nursing,Fshc  1St Floor,2224.00, 24-Nov-2015
756,Revenue,CCHD,Bed Purchasing - North,Permanent Nursing,Fshc  1St Floor,1398.80, 24-Nov-2015
757,Revenue,CCHD,Bed Purchasing - North,Permanent Nursing,Fshc  1St Floor,1489.56, 24-Nov-2015
758,Revenue,CCHD,Bed Purchasing - North,Permanent Residential,Fshc  1St Floor,1421.84, 24-Nov-2015
759,Revenue,CCHD,Bed Purchasing - North,Permanent Nursing,Fshc  1St Floor,1007.00, 24-Nov-2015
760,Revenue,CCHD,Bed Purchasing - North,Permanent Residential,Fshc  1St Floor,1268.08, 24-Nov-2015
761,Revenue,CCHD,Bed Purchasing - North,Permanent Residential,Fshc  1St Floor,731.16, 24-Nov-2015
762,Revenue,CCHD,Bed Purchasing - Southmead Hospital,Permanent Nursing,Fshc  1St Floor,1108.28, 24-Nov-2015
763,Revenue,CCHD,Bed Purchasing - North,Permanent Nursing,Fshc  1St Floor,4046.53, 24-Nov-2015
764,Revenue,CCHD,Bed Purchasing - North,Permanent Nursing,Fshc  1St Floor,1398.80, 24-Nov-2015
765,Revenue,CCHD,Bed Purchasing - North,Permanent Residential,Fshc  1St Floor,1421.60, 24-Nov-2015
766,Revenue,CCHD,Bed Purchasing - North,Permanent Nursing,Fshc  1St Floor,1602.80, 24-Nov-2015
767,Revenue,CCHD,Bed Purchasing - North,Permanent Nursing,Fshc  1St Floor,1398.80, 24-Nov-2015
768,Revenue,CCHD,Bed Purchasing - Southmead Hospital,Permanent Nursing,Fshc  1St Floor,1197.88, 24-Nov-2015
769,Revenue,CCHD,Bed Purchasing - Southmead Hospital,Respite Planned - Nursing,Fshc  1St Floor,1904.00, 24-Nov-2015
770,Revenue,CCHD,Bed Purchasing - Southmead Hospital,Permanent Residential,Fshc  1St Floor,1171.20, 24-Nov-2015
771,Revenue,CCHD,Bed Purchasing - North,Permanent Nursing,Fshc  1St Floor,573.61, 24-Nov-2015
772,Revenue,CCHD,Bed Purchasing - Southmead Hospital,Permanent Nursing,Fshc  1St Floor,1344.04, 24-Nov-2015
773,Revenue,CCHD,Bed Purchasing - North,Permanent Nursing,Fshc  1St Floor,1019.44, 24-Nov-2015
774,Revenue,CCHD,Bed Purchasing - North,Permanent Nursing,Fshc  1St Floor,1433.84, 24-Nov-2015
775,Revenue,CCHD,Bed Purchasing - Southmead Hospital,Permanent Nursing,Fshc  1St Floor,1398.80, 24-Nov-2015
776,Revenue,CCHD,Bed Purchasing - Southmead Hospital,Permanent Nursing,Fshc  1St Floor,582.08, 24-Nov-2015
777,Revenue,CCHD,Bed Purchasing - Southmead Hospital,Permanent Nursing,Fshc  1St Floor,1398.80, 24-Nov-2015
778,Revenue,CCHD,Bed Purchasing - Southmead Hospital,Permanent Nursing,Fshc  1St Floor,1398.80, 24-Nov-2015
779,Revenue,CCHD,South Glos Users in South Glos Homes,Permanent Nursing,Fshc  1St Floor,1392.00, 24-Nov-2015
780,Revenue,CCHD,Bed Purchasing - Southmead Hospital,Permanent Nursing,Fshc  1St Floor,874.00, 24-Nov-2015
781,Revenue,CCHD,Bed Purchasing - Southmead Hospital,Permanent Nursing,Fshc  1St Floor,1398.80, 24-Nov-2015
782,Revenue,CCHD,South Glos Users in South Glos Homes,Permanent Nursing,Fshc  1St Floor,960.00, 24-Nov-2015
783,Revenue,CCHD,Bed Purchasing - North,Permanent Nursing,Fshc  1St Floor,1503.40, 24-Nov-2015
784,Revenue,CCHD,Bed Purchasing - Southmead Hospital,Permanent Nursing,Fshc  1St Floor,1329.40, 24-Nov-2015
785,Revenue,CCHD,Bed Purchasing - North,Permanent Nursing,Fshc  1St Floor,1287.04, 24-Nov-2015
786,Revenue,CCHD,Bed Purchasing - Southmead Hospital,Permanent Nursing,Fshc  1St Floor,1271.84, 24-Nov-2015
787,Revenue,CCHD,Bed Purchasing - North,Permanent Nursing,Fshc  1St Floor,1023.84, 24-Nov-2015
788,Revenue,CCHD,Bed Purchasing - Southmead Hospital,Permanent Nursing,Fshc  1St Floor,1848.92, 24-Nov-2015
789,Revenue,CCHD,Bed Purchasing - North,Permanent Residential,Fshc  1St Floor,3034.68, 24-Nov-2015
790,Revenue,CCHD,Bed Purchasing - North,Permanent Nursing,Fshc  1St Floor,1405.04, 24-Nov-2015
791,Revenue,CCHD,Bed Purchasing - South,Respite Planned - Residential,Fshc  1St Floor,1972.00, 24-Nov-2015
792,Revenue,CCHD,Bed Purchasing - South,Respite Planned - Residential,Fshc  1St Floor,845.14, 24-Nov-2015
793,Revenue,CCHD,Bed Purchasing - South,Permanent Nursing,Fshc  1St Floor,1198.76, 24-Nov-2015
794,Revenue,CCHD,Bed Purchasing - Southmead Hospital,Permanent Nursing,Fshc  1St Floor,1335.04, 24-Nov-2015
795,Revenue,CCHD,Bed Purchasing - North,Respite Emergency - Residential,Fshc  1St Floor,1700.00, 24-Nov-2015
796,Revenue,CCHD,Bed Purchasing - North,Respite Emergency - Nursing,Fshc  1St Floor,1614.86, 24-Nov-2015
797,Revenue,CCHD,Bed Purchasing - North,Permanent Nursing,Fshc  1St Floor,689.48, 24-Nov-2015
798,Revenue,CCHD,Bed Purchasing - South,Permanent Nursing,Fshc  1St Floor,1904.00, 24-Nov-2015
799,Revenue,CCHD,Bed Purchasing - Southmead Hospital,Permanent Residential,Fshc  1St Floor,1494.80, 24-Nov-2015
800,Revenue,CCHD,Bed Purchasing - South,Permanent Residential,Fshc  1St Floor,949.60, 24-Nov-2015
801,Revenue,CCHD,Bed Purchasing - North,Permanent Residential,Fshc  1St Floor,1179.64, 24-Nov-2015
802,Revenue,CCHD,Bed Purchasing - North,Permanent Nursing,Fshc  1St Floor,1144.52, 24-Nov-2015
803,Revenue,CCHD,Bed Purchasing - South,Permanent Nursing,Fshc  1St Floor,1374.80, 24-Nov-2015
804,Revenue,CCHD,Bed Purchasing - Southmead Hospital,Permanent Nursing,Fshc  1St Floor,1398.80, 24-Nov-2015
805,Revenue,CCHD,Bed Purchasing - North,Permanent Residential,Fshc  1St Floor,1446.24, 24-Nov-2015
806,Revenue,CCHD,Bed Purchasing - Southmead Hospital,Permanent Nursing,Fshc  1St Floor,1252.64, 24-Nov-2015
807,Revenue,CCHD,Bed Purchasing - South,Permanent Nursing,Fshc  1St Floor,1240.84, 24-Nov-2015
808,Revenue,CCHD,Bed Purchasing - South,Respite Emergency - Residential,Fshc  1St Floor,1972.00, 24-Nov-2015
809,Revenue,CCHD,Bed Purchasing - Southmead Hospital,Permanent Nursing,Fshc  1St Floor,1304.40, 24-Nov-2015
810,Revenue,CCHD,Bed Purchasing - South,Permanent Residential,Fshc  1St Floor,1270.80, 24-Nov-2015
811,Revenue,CCHD,Bed Purchasing - Southmead Hospital,Permanent Nursing,Fshc  1St Floor,1398.80, 24-Nov-2015
812,Revenue,CCHD,Bed Purchasing - Southmead Hospital,Permanent Nursing,Fshc  1St Floor,1398.80, 24-Nov-2015
813,Revenue,CCHD,Bed Purchasing - Southmead Hospital,Permanent Nursing,Fshc  1St Floor,1324.72, 24-Nov-2015
814,Revenue,CCHD,Bed Purchasing - South,Permanent Nursing,Fshc  1St Floor,1240.16, 24-Nov-2015
815,Revenue,CCHD,Bed Purchasing - Southmead Hospital,Permanent Residential,Fshc  1St Floor,1484.16, 24-Nov-2015
816,Revenue,CCHD,Bed Purchasing - Southmead Hospital,Permanent Nursing,Fshc  1St Floor,1398.80, 24-Nov-2015
817,Revenue,CCHD,Bed purchasing - Elderly S117 - South,Permanent Nursing,Fshc  1St Floor,1904.00, 24-Nov-2015
818,Revenue,CCHD,Bed Purchasing - Southmead Hospital,Permanent Residential,Fshc  1St Floor,1131.52, 24-Nov-2015
819,Revenue,CCHD,Bed Purchasing - South,Permanent Nursing,Fshc  1St Floor,1402.52, 24-Nov-2015
820,Revenue,CCHD,Bed Purchasing - South,Permanent Residential,Fshc  1St Floor,1386.96, 24-Nov-2015
821,Revenue,CCHD,Bed Purchasing - Southmead Hospital,Permanent Nursing,Fshc  1St Floor,813.60, 24-Nov-2015
822,Revenue,CCHD,Bed Purchasing - South,Permanent Nursing,Fshc  1St Floor,1398.80, 24-Nov-2015
823,Revenue,CCHD,Bed Purchasing - North,Permanent Residential,Fshc  1St Floor,1233.32, 24-Nov-2015
824,Revenue,CCHD,Bed Purchasing - South,Permanent Nursing,Fshc  1St Floor,1267.20, 24-Nov-2015
825,Revenue,CCHD,Bed Purchasing - South,Permanent Nursing,Fshc  1St Floor,1352.12, 24-Nov-2015
826,Revenue,CCHD,Bed Purchasing - South,Permanent Nursing,Fshc  1St Floor,1681.08, 24-Nov-2015
827,Revenue,CCHD,Bed Purchasing - South,Permanent Nursing,Fshc  1St Floor,1132.64, 24-Nov-2015
828,Revenue,CCHD,Bed Purchasing - Southmead Hospital,Permanent Nursing,Fshc  1St Floor,1240.64, 24-Nov-2015
829,Revenue,CCHD,Bed Purchasing - Southmead Hospital,Permanent Nursing,Fshc  1St Floor,956.72, 24-Nov-2015
830,Revenue,CCHD,Bed Purchasing - Southmead Hospital,Permanent Nursing,Fshc  1St Floor,1566.40, 24-Nov-2015
831,Revenue,CCHD,Bed Purchasing - Southmead Hospital,Permanent Nursing,Fshc  1St Floor,1398.80, 24-Nov-2015
832,Revenue,CCHD,Bed Purchasing - Southmead Hospital,Permanent Nursing,Fshc  1St Floor,894.72, 24-Nov-2015
833,Revenue,CCHD,Bed Purchasing - South,Permanent Nursing,Fshc  1St Floor,1255.12, 24-Nov-2015
834,Revenue,CCHD,Bed Purchasing - North,Permanent Nursing,Fshc  1St Floor,1356.20, 24-Nov-2015
835,Revenue,CCHD,Bed Purchasing - North,Permanent Nursing,Fshc  1St Floor,823.41, 24-Nov-2015
836,Revenue,CCHD,Bed Purchasing - Southmead Hospital,Permanent Nursing,Fshc  1St Floor,936.48, 24-Nov-2015
837,Revenue,CCHD,Bed Purchasing - Southmead Hospital,Respite Planned - Nursing,Fshc  1St Floor,3880.29, 24-Nov-2015
838,Revenue,CCHD,Bed Purchasing - North,Respite Emergency - Residential,Fshc  1St Floor,1918.72, 24-Nov-2015
839,Revenue,CCHD,Bed Purchasing - North,Permanent Nursing,Fshc  1St Floor,1364.16, 24-Nov-2015
840,Revenue,CCHD,Bed Purchasing - North,Permanent Nursing,Fshc  1St Floor,845.84, 24-Nov-2015
841,Revenue,CCHD,Bed Purchasing - North,Permanent Nursing,Fshc  1St Floor,1506.80, 24-Nov-2015
842,Revenue,CCHD,Bed Purchasing - North,Permanent Nursing,Fshc  1St Floor,1245.80, 24-Nov-2015
843,Revenue,CCHD,Bed purchasing - Elderly S117 - South,Permanent Nursing,Fshc  1St Floor,2080.00, 24-Nov-2015
844,Revenue,CCHD,Bed Purchasing - Southmead Hospital,Respite Emergency - Residential,Fshc  1St Floor,12296.86, 24-Nov-2015
845,Revenue,CCHD,Bed Purchasing - Southmead Hospital,Respite Emergency - Residential,Fshc  1St Floor,1784.00, 24-Nov-2015
846,Revenue,CCHD,Bed Purchasing - Southmead Hospital,Permanent Nursing,Fshc  1St Floor,1355.76, 24-Nov-2015
847,Revenue,CCHD,Bed Purchasing - Southmead Hospital,Permanent Nursing,Fshc  1St Floor,1506.80, 24-Nov-2015
848,Revenue,CCHD,Bed Purchasing - North,Permanent Nursing,Fshc  1St Floor,1374.32, 24-Nov-2015
849,Revenue,CCHD,Bed Purchasing - North,Respite Planned - Nursing,Fshc  1St Floor,790.43, 24-Nov-2015
850,Revenue,CCHD,Bed Purchasing - North,Respite Planned - Residential,Fshc  1St Floor,765.29, 24-Nov-2015
851,Revenue,CCHD,Bed Purchasing - North,Permanent Nursing,Fshc  1St Floor,1302.52, 24-Nov-2015
852,Revenue,CCHD,Bed Purchasing - North,Permanent Nursing,Fshc  1St Floor,1411.28, 24-Nov-2015
853,Revenue,CCHD,Bed Purchasing - Southmead Hospital,Permanent Nursing,Fshc  1St Floor,1574.80, 24-Nov-2015
854,Revenue,CCHD,Bed Purchasing - South,Permanent Nursing,Fshc  1St Floor,9465.85, 24-Nov-2015
855,Revenue,CCHD,Bed Purchasing - South,Permanent Nursing,Fshc  1St Floor,1221.40, 24-Nov-2015
856,Revenue,CCHD,Bed Purchasing - Southmead Hospital,Permanent Residential,Fshc  1St Floor,1250.68, 24-Nov-2015
857,Revenue,CCHD,Bed Purchasing - Southmead Hospital,Permanent Nursing,Fshc  1St Floor,2224.66, 24-Nov-2015
858,Revenue,CCHD,Bed Purchasing - Southmead Hospital,Permanent Nursing,Fshc  1St Floor,1382.28, 24-Nov-2015
859,Revenue,CCHD,Bed Purchasing - Southmead Hospital,Permanent Nursing,Fshc  1St Floor,1242.28, 24-Nov-2015
860,Revenue,CCHD,Bed Purchasing - North,Permanent Residential,Fshc  1St Floor,1128.92, 24-Nov-2015
861,Revenue,CCHD,Bed Purchasing - Southmead Hospital,Permanent Nursing,Fshc  1St Floor,950.80, 24-Nov-2015
862,Revenue,CCHD,Bed Purchasing - Elderly S117- North,Permanent Nursing,Fshc  1St Floor,2012.00, 24-Nov-2015
863,Revenue,CCHD,Bed Purchasing - Southmead Hospital,Permanent Nursing,Fshc  1St Floor,1694.80, 24-Nov-2015
864,Revenue,CCHD,Bed Purchasing - North,Permanent Nursing,Fshc  1St Floor,1330.80, 24-Nov-2015
865,Revenue,CCHD,Bed Purchasing - North,Permanent Nursing,Fshc  1St Floor,1506.80, 24-Nov-2015
866,Revenue,CCHD,Bed Purchasing - Southmead Hospital,Permanent Nursing,Fshc  1St Floor,2080.00, 24-Nov-2015
867,Revenue,CCHD,Bed Purchasing - Southmead Hospital,Permanent Nursing,Fshc  1St Floor,1677.99, 24-Nov-2015
868,Revenue,CCHD,Bed Purchasing - Southmead Hospital,Permanent Nursing,Fshc  1St Floor,594.29, 24-Nov-2015
869,Revenue,CCHD,Bed Purchasing - Southmead Hospital,Permanent Nursing,Fshc  1St Floor,1101.28, 24-Nov-2015
870,Revenue,CCHD,Bed Purchasing - North,Permanent Residential,Fshc  1St Floor,1050.88, 24-Nov-2015
871,Revenue,CCHD,Bed Purchasing - Southmead Hospital,Permanent Residential,Fshc  1St Floor,808.44, 24-Nov-2015
872,Revenue,CCHD,CAH Assistant Directors,Agency Staff (Admin/Support Staff) Pay,Gatenby Sanderson Limited,6136.00, 17-Nov-2015
873,Revenue,CCHD,Section 117 Placements MH Younger,Permanent Residential,Gladstone House,2792.00, 24-Nov-2015
874,Revenue,CCHD,Bed Purchasing - South,Permanent Residential,Glasallt Fawr,4666.48, 24-Nov-2015
875,Revenue,CCHD,Bed Purchasing - North,Permanent Residential,Glebe House Nursing Home,2163.16, 24-Nov-2015
876,Revenue,CCHD,Bed Purchasing - North,Permanent Nursing,Glebe House Nursing Home,2140.68, 24-Nov-2015
877,Revenue,CCHD,Bed Purchasing - South,Permanent Residential,Glebe House Nursing Home,2073.76, 24-Nov-2015
878,Revenue,CCHD,Bed Purchasing - North,Permanent Nursing,Glebe House Nursing Home,2257.08, 24-Nov-2015
879,Revenue,CCHD,Bed Purchasing - North,Permanent Nursing,Glebe House Nursing Home,2186.96, 24-Nov-2015
880,Revenue,CCHD,Bed Purchasing - North,Permanent Residential,Glebe House Nursing Home,2628.08, 24-Nov-2015
881,Revenue,CCHD,Hospital Promoting Independence Team,Care Management/Assessment Staff Pay,Gloucestershire Hospitals NHSFT,1000.00, 03-Nov-2015
882,Revenue,CCHD,Bed Purchasing - South,Permanent Residential,Gordena Care Home,2137.52, 24-Nov-2015
883,Revenue,CCHD,Bed Purchasing - South,Permanent Residential,Gordena Care Home,3189.84, 24-Nov-2015
884,Revenue,CCHD,Bed Purchasing - South,Permanent Residential,Gordena Care Home,2996.16, 24-Nov-2015
885,Revenue,CCHD,Bed Purchasing - South,Permanent Residential,Gordena Care Home,1950.08, 24-Nov-2015
886,Revenue,CCHD,Bed Purchasing - South,Permanent Residential,Gordena Care Limited,4264.60, 24-Nov-2015
887,Revenue,CCHD,Bed purchasing - S28A Under 65 - South,Permanent Residential,Gordena Care Limited,4161.28, 24-Nov-2015
888,Revenue,CCHD,Bed Purchasing - North,Permanent Residential,Gordena Care Limited,4260.48, 24-Nov-2015
889,Revenue,CCHD,Bed Purchasing - Southmead Hospital,Respite Emergency - Residential,Gracefields Nursing Home,1044.74, 11-Nov-2015
890,Revenue,CCHD,Bed Purchasing - South,Permanent Nursing,Gracefields Nursing Home,1712.72, 24-Nov-2015
891,Revenue,CCHD,South Glos Users in South Glos Homes,Permanent Nursing,Gracefields Nursing Home,2064.00, 24-Nov-2015
892,Revenue,CCHD,Bed Purchasing - Southmead Hospital,Permanent Nursing,Gracefields Nursing Home,1733.76, 24-Nov-2015
893,Revenue,CCHD,South Glos Users in South Glos Homes,Permanent Nursing,Gracefields Nursing Home,896.00, 24-Nov-2015
894,Revenue,CCHD,Bed Purchasing - Southmead Hospital,Permanent Nursing,Gracefields Nursing Home,1655.96, 24-Nov-2015
895,Revenue,CCHD,Bed Purchasing - Southmead Hospital,Permanent Nursing,Gracefields Nursing Home,883.28, 24-Nov-2015
896,Revenue,CCHD,Bed purchasing - Elderly S117 - South,Permanent Nursing,Gracefields Nursing Home,2381.88, 24-Nov-2015
897,Revenue,CCHD,South Glos Users in South Glos Homes,Permanent Nursing,Gracefields Nursing Home,832.00, 24-Nov-2015
898,Revenue,CCHD,Bed Purchasing - Southmead Hospital,Permanent Nursing,Gracefields Nursing Home,1586.56, 24-Nov-2015
899,Revenue,CCHD,Bed Purchasing - South,Permanent Nursing,Gracefields Nursing Home,2658.88, 24-Nov-2015
900,Revenue,CCHD,South Glos Users in South Glos Homes,Permanent Nursing,Gracefields Nursing Home,864.00, 24-Nov-2015
901,Revenue,CCHD,Bed Purchasing - South,Permanent Nursing,Gracefields Nursing Home,1601.96, 24-Nov-2015
902,Revenue,CCHD,Bed Purchasing - South,Permanent Nursing,Gracefields Nursing Home,1330.80, 24-Nov-2015
903,Revenue,CCHD,Bed Purchasing - Southmead Hospital,Permanent Nursing,Gracefields Nursing Home,1539.00, 24-Nov-2015
904,Revenue,CCHD,Bed Purchasing - Southmead Hospital,Permanent Residential,Granada House Residential Home,1043.36, 24-Nov-2015
905,Revenue,CCHD,Sexual Health,Other Supplies & Services,Great Western Hospitals NHS FT,521.78, 30-Nov-2015
906,Revenue,CCHD,Bed Purchasing - North,Permanent Residential,Greensleeves,1344.52, 24-Nov-2015
907,Revenue,CCHD,Bed Purchasing - South,Permanent Residential,Grove Care,1883.40, 24-Nov-2015
908,Revenue,CCHD,Bed Purchasing - South,Permanent Residential,Gwendoline House,846.44, 24-Nov-2015
909,Revenue,CCHD,Bed Purchasing - Southmead Hospital,Permanent Residential,Gwendoline House,1282.04, 24-Nov-2015
910,Revenue,CCHD,Bed Purchasing - South,Permanent Residential,Gwendoline House,955.96, 24-Nov-2015
911,Revenue,CCHD,Bed Purchasing - South,Permanent Residential,Gwendoline House,1159.80, 24-Nov-2015
912,Revenue,CCHD,Bed Purchasing - South,Permanent Residential,Gwendoline House,578.56, 24-Nov-2015
913,Revenue,CCHD,Bed Purchasing - North,Permanent Nursing,Hambledon House,2988.36, 24-Nov-2015
914,Revenue,CCHD,Social Lettings Agency,Fees - General,Individual,16.46, 27-Nov-2015
915,Revenue,CCHD,Social Lettings Agency,Other Supplies & Services,Individual,559.60, 27-Nov-2015
916,Revenue,CCHD,Sexual Health,Other Small Contracts,Hanham Health,2364.10, 30-Nov-2015
917,Revenue,CCHD,Bed Purchasing - South,Permanent Residential,Harefield Hall,1683.90, 24-Nov-2015
918,Revenue,CCHD,Bed Purchasing - South,Permanent Residential,Harefield Hall,1219.24, 24-Nov-2015
919,Revenue,CCHD,Bed Purchasing - South,Permanent Residential,Harefield Hall,1150.52, 24-Nov-2015
920,Revenue,CCHD,Bed Purchasing - South,Respite Planned - Residential,Harefield Hall,700.00, 24-Nov-2015
921,Revenue,CCHD,Bed Purchasing - South,Respite Planned - Residential,Harefield Hall,2100.00, 24-Nov-2015
922,Revenue,CCHD,Bed Purchasing - South,Permanent Residential,Harefield Hall,1039.04, 24-Nov-2015
923,Revenue,CCHD,Bed Purchasing - South,Permanent Residential,Harefield Hall,1313.12, 24-Nov-2015
924,Revenue,CCHD,Bed Purchasing - South,Permanent Residential,Harefield Hall,1254.36, 24-Nov-2015
925,Revenue,CCHD,Planning and Partnerships Team,Agency Staff (Admin/Support Staff) Pay,Hays Specialist Recruitment,872.04, 27-Nov-2015
926,Revenue,CCHD,Bed Purchasing - Southmead Hospital,Permanent Nursing,Hc-One Ltd,1648.40, 24-Nov-2015
927,Revenue,CCHD,Bed Purchasing - North,Permanent Nursing,Hc-One Ltd,1511.16, 24-Nov-2015
928,Revenue,CCHD,Bed Purchasing - North,Permanent Residential,Hc-One Ltd,1112.44, 24-Nov-2015
929,Revenue,CCHD,Bed Purchasing - North,Permanent Nursing,Hc-One Ltd,822.84, 24-Nov-2015
930,Revenue,CCHD,Bed Purchasing - Southmead Hospital,Permanent Nursing,Hc-One Ltd,1540.80, 24-Nov-2015
931,Revenue,CCHD,Bed Purchasing - Southmead Hospital,Permanent Residential,Head Office,3631.72, 24-Nov-2015
932,Revenue,CCHD,Home Care - Elderly - South,Day Care / Social Activities,Headway Bristol,357.68, 02-Nov-2015
933,Revenue,CCHD,Home Care - Elderly - North,Day Care / Social Activities,Headway Bristol,736.40, 02-Nov-2015
934,Revenue,CCHD,Home Care - Elderly - South,Day Care / Social Activities,Headway Bristol,420.80, 10-Nov-2015
935,Revenue,CCHD,Home Care - Elderly - North,Day Care / Social Activities,Headway Bristol,631.20, 10-Nov-2015
936,Revenue,CCHD,Home Care - Elderly - South,Day Care / Social Activities,Headway Bristol,504.96, 17-Nov-2015
937,Revenue,CCHD,Home Care - Elderly - North,Day Care / Social Activities,Headway Bristol,883.68, 17-Nov-2015
938,Revenue,CCHD,Home Care - Elderly - South,Day Care / Social Activities,Helping Hands Homecare,158.40, 11-Nov-2015
939,Revenue,CCHD,Home Care - Elderly - South,Other Small Contracts,Helping Hands Homecare,1750.32, 11-Nov-2015
940,Revenue,CCHD,Home Care - Elderly - North,Day Care / Social Activities,Helping Hands Homecare,201.96, 11-Nov-2015
941,Revenue,CCHD,Home Care - Elderly - North,Other Small Contracts,Helping Hands Homecare,2229.48, 11-Nov-2015
942,Revenue,CCHD,Day Care - North,Day Care / Social Activities,Helping Hands Homecare,71.28, 11-Nov-2015
943,Revenue,CCHD,Under 65s -MH  Home Care Purch,Other Small Contracts,Helping Hands Homecare,31.68, 11-Nov-2015
944,Revenue,CCHD,Home care - Elderly MH - North,Other Small Contracts,Helping Hands Homecare,31.68, 11-Nov-2015
945,Revenue,CCHD,Home Care - Elderly - South,Day Care / Social Activities,Helping Hands Homecare,158.40, 27-Nov-2015
946,Revenue,CCHD,Home Care - Elderly - South,Other Small Contracts,Helping Hands Homecare,1714.68, 27-Nov-2015
947,Revenue,CCHD,Home Care - Elderly - North,Day Care / Social Activities,Helping Hands Homecare,198.00, 27-Nov-2015
948,Revenue,CCHD,Home Care - Elderly - North,Other Small Contracts,Helping Hands Homecare,2308.68, 27-Nov-2015
949,Revenue,CCHD,Day Care - North,Day Care / Social Activities,Helping Hands Homecare,95.04, 27-Nov-2015
950,Revenue,CCHD,Under 65s -MH  Home Care Purch,Other Small Contracts,Helping Hands Homecare,23.76, 27-Nov-2015
951,Revenue,CCHD,Home care - Elderly MH - North,Other Small Contracts,Helping Hands Homecare,31.68, 27-Nov-2015
952,Revenue,CCHD,Home Care - Elderly - South,Day Care / Social Activities,Helping Hands Homecare,31.68, 27-Nov-2015
953,Revenue,CCHD,Home Care - Elderly - South,Other Small Contracts,Helping Hands Homecare,1417.68, 27-Nov-2015
954,Revenue,CCHD,Home Care - Elderly - North,Day Care / Social Activities,Helping Hands Homecare,194.04, 27-Nov-2015
955,Revenue,CCHD,Home Care - Elderly - North,Other Small Contracts,Helping Hands Homecare,2221.56, 27-Nov-2015
956,Revenue,CCHD,Day Care - North,Day Care / Social Activities,Helping Hands Homecare,47.52, 27-Nov-2015
957,Revenue,CCHD,Under 65s -MH  Home Care Purch,Other Small Contracts,Helping Hands Homecare,31.68, 27-Nov-2015
958,Revenue,CCHD,Home care - Elderly MH - North,Other Small Contracts,Helping Hands Homecare,63.36, 27-Nov-2015
959,Revenue,CCHD,S117 Placements PCT,Permanent Residential,Hesley Hall,18406.20, 24-Nov-2015
960,Revenue,CCHD,Bed Purchasing - Southmead Hospital,Permanent Residential,High Border Lodge,1442.40, 24-Nov-2015
961,Revenue,CCHD,Bed Purchasing - Southmead Hospital,Permanent Residential,Highfield House,2092.56, 24-Nov-2015
962,Revenue,CCHD,Bed Purchasing - Southmead Hospital,Permanent Residential,Highgate Studios,1179.08, 24-Nov-2015
963,Revenue,CCHD,Bed Purchasing - North,Permanent Residential,Holmleigh Care Homes Ltd,4115.32, 24-Nov-2015
964,Revenue,CCHD,Bed Purchasing - South,Permanent Residential,Holmleigh Care Homes Ltd,5079.96, 24-Nov-2015
965,Revenue,CCHD,Bed Purchasing - North,Permanent Residential,Home Farm Trust Ltd  5-6 Brook Office Pa,2700.52, 24-Nov-2015
966,Revenue,CCHD,Bed Purchasing - South,Permanent Residential,Home Farm Trust Ltd  5-6 Brook Office Pa,5174.76, 24-Nov-2015
967,Revenue,CCHD,Bed Purchasing - North,Permanent Residential,Home Farm Trust Ltd  5-6 Brook Office Pa,3386.32, 24-Nov-2015
968,Revenue,CCHD,Bed Purchasing - South,Permanent Residential,Home Farm Trust Ltd  5-6 Brook Office Pa,5607.24, 24-Nov-2015
969,Revenue,CCHD,18-25 Year Olds,Permanent Residential,Home From Home Care Ltd,9086.16, 24-Nov-2015
970,Revenue,CCHD,Home Care - Elderly - South,Other Small Contracts,Homecare 4U,717.79, 09-Nov-2015
971,Revenue,CCHD,Home Care - Elderly - North,Other Small Contracts,Homecare 4U,982.45, 09-Nov-2015
972,Revenue,CCHD,Bed Purchasing - North,Permanent Residential,Homes Caring For Autism Ltd  Churchill H,10015.24, 24-Nov-2015
973,Revenue,CCHD,18-25 Year Olds,Permanent Residential,Homes Caring For Autism Ltd  Churchill H,13043.96, 24-Nov-2015
974,Revenue,CCHD,Bed Purchasing - North,Respite Planned - Nursing,Horfield Care Limited,2291.08, 09-Nov-2015
975,Revenue,CCHD,Bed Purchasing - North,Respite Planned - Nursing,Horfield Care Limited,1108.59, 09-Nov-2015
976,Revenue,CCHD,Bed Purchasing - North,Respite Planned - Nursing,Horfield Care Limited,1078.87, 09-Nov-2015
977,Revenue,CCHD,Bed Purchasing - Southmead Hospital,Permanent Nursing,Horfield Care Limited,1476.22, 09-Nov-2015
978,Revenue,CCHD,Bed Purchasing - Southmead Hospital,Permanent Nursing,Horfield Care Limited,1847.56, 09-Nov-2015
979,Revenue,CCHD,Bed Purchasing - Frenchay Hospital,Permanent Nursing,Horfield Care Limited,1366.92, 09-Nov-2015
980,Revenue,CCHD,Bed Purchasing - South,Permanent Nursing,Horfield Care Limited,1364.40, 09-Nov-2015
981,Revenue,CCHD,Bed Purchasing - Southmead Hospital,Respite Planned - Nursing,Horfield Care Limited,2291.08, 09-Nov-2015
982,Revenue,CCHD,Home Care - Elderly - North,Other Supplies & Services,Housing & Care 21,4218.04, 02-Nov-2015
983,Revenue,CCHD,Home Care - Elderly - North,Private & Voluntary Home Care,Housing 21,38183.98, 10-Nov-2015
984,Revenue,CCHD,Social Lettings Agency,Fees - General,Individual,12.22, 11-Nov-2015
985,Revenue,CCHD,Social Lettings Agency,Other Supplies & Services,Individual,690.32, 11-Nov-2015
986,Revenue,CCHD,Training - Adult Services,Training Expenses,Jo Williams,996.00, 06-Nov-2015
987,Revenue,CCHD,NHS Health Checks & Tobacco Control,Drugs & Medical Supplies,JRW Billing,1217.31, 16-Nov-2015
988,Revenue,CCHD,Home Care - Elderly - South,Supported Living,Julia Simone- Supp. Ind.,1178.36, 24-Nov-2015
989,Revenue,CCHD,Younger MH non-res purchasing,Supported Living,Julia Simone- Supp. Ind.,1178.36, 24-Nov-2015
990,Revenue,CCHD,Home Care - Elderly - North,Supported Living,Julia Simone- Supp. Ind.,1212.32, 24-Nov-2015
991,Revenue,CCHD,Younger MH non-res purchasing,Supported Living,Julia Simone- Supp. Ind.,1178.20, 24-Nov-2015
992,Revenue,CCHD,Bed Purchasing - South,Permanent Residential,Julia Simone- Supp. Ind.,4004.36, 24-Nov-2015
993,Revenue,CCHD,Bed purchasing -S28A  Under 65 - North,Permanent Residential,Julia Simone- Supp. Ind.,3533.32, 24-Nov-2015
994,Revenue,CCHD,Community Support - North,Preventative Assistance,KCC Cleaning Services Limited,688.25, 03-Nov-2015
995,Revenue,CCHD,Home Care - Elderly - South,Other Small Contracts,Kensington Community Care,924.60, 17-Nov-2015
996,Revenue,CCHD,Home Care - Elderly - North,Other Small Contracts,Kensington Community Care,3899.40, 17-Nov-2015
997,Revenue,CCHD,Home Care - Elderly - South,Other Small Contracts,Kensington Community Care,707.52, 18-Nov-2015
998,Revenue,CCHD,Home Care - Elderly - North,Other Small Contracts,Kensington Community Care,3710.46, 18-Nov-2015
999,Revenue,CCHD,Home Care - Elderly - South,Other Small Contracts,Kensington Community Care,824.10, 27-Nov-2015
1000,Revenue,CCHD,Home Care - Elderly - North,Other Small Contracts,Kensington Community Care,3798.90, 27-Nov-2015
1001,Revenue,CCHD,Home Care - Elderly - South,Other Small Contracts,Kensington Community Care,968.82, 30-Nov-2015
1002,Revenue,CCHD,Home Care - Elderly - North,Other Small Contracts,Kensington Community Care,3947.64, 30-Nov-2015
1003,Revenue,CCHD,Day Care - South,Day Care / Social Activities,Kenver House,541.00, 23-Nov-2015
1004,Revenue,CCHD,Bed Purchasing - Southmead Hospital,Permanent Residential,Kenver House Residential Home,1664.04, 24-Nov-2015
1005,Revenue,CCHD,Bed Purchasing - Southmead Hospital,Permanent Residential,Kenver House Residential Home,1685.08, 24-Nov-2015
1006,Revenue,CCHD,Bed Purchasing - South,Permanent Residential,Kenver House Residential Home,1539.20, 24-Nov-2015
1007,Revenue,CCHD,Bed Purchasing - South,Permanent Residential,Kenver House Residential Home,1153.00, 24-Nov-2015
1008,Revenue,CCHD,Bed Purchasing - South,Permanent Residential,Kenver House Residential Home,1388.84, 24-Nov-2015
1009,Revenue,CCHD,Bed Purchasing - South,Permanent Residential,Kenver House Residential Home,1685.08, 24-Nov-2015
1010,Revenue,CCHD,Bed Purchasing - Southmead Hospital,Respite Planned - Residential,Kenver House Residential Home,2190.28, 24-Nov-2015
1011,Revenue,CCHD,Bed Purchasing - South,Permanent Residential,Kenver House Residential Home,1294.36, 24-Nov-2015
1012,Revenue,CCHD,Bed Purchasing - South,Permanent Residential,Kenver House Residential Home,1277.20, 24-Nov-2015
1013,Revenue,CCHD,Bed Purchasing - Southmead Hospital,Permanent Residential,Kenver House Residential Home,1685.00, 24-Nov-2015
1014,Revenue,CCHD,Bed Purchasing - South,Permanent Residential,Kenver House Residential Home,1685.08, 24-Nov-2015
1015,Revenue,CCHD,Bed Purchasing - North,Permanent Nursing,Kingfisher Lodge Care Centre,2531.88, 24-Nov-2015
1016,Revenue,CCHD,Community Care Contact Centre,Office Supplies & Equipment,Kinnarps UK Limited (Invoice Account),447.85, 03-Nov-2015
1017,Revenue,CCHD,Bed Purchasing - North,Permanent Residential,Kisimul Group,11512.80, 24-Nov-2015
1018,Revenue,CCHD,Home Care - Elderly - South,Other Small Contracts,Kumari Care Limited,2072.30, 13-Nov-2015
1019,Revenue,CCHD,Home Care - Elderly - North,Other Small Contracts,Kumari Care Limited,833.86, 13-Nov-2015
1020,Revenue,CCHD,Home Care - Elderly - South,Other Small Contracts,Kumari Care Limited,2044.93, 03-Nov-2015
1021,Revenue,CCHD,Home Care - Elderly - North,Other Small Contracts,Kumari Care Limited,833.91, 03-Nov-2015
1022,Revenue,CCHD,Home Care - Elderly - South,Other Small Contracts,Kumari Care Limited,2033.20, 09-Nov-2015
1023,Revenue,CCHD,Home Care - Elderly - North,Other Small Contracts,Kumari Care Limited,833.86, 09-Nov-2015
1024,Revenue,CCHD,Home Care - Elderly - South,Other Small Contracts,Kumari Care Limited,2041.02, 17-Nov-2015
1025,Revenue,CCHD,Home Care - Elderly - North,Other Small Contracts,Kumari Care Limited,833.86, 17-Nov-2015
1026,Revenue,CCHD,Home Care - Elderly - South,Other Small Contracts,Kumari Care Limited,2041.02, 17-Nov-2015
1027,Revenue,CCHD,Home Care - Elderly - North,Other Small Contracts,Kumari Care Limited,833.86, 17-Nov-2015
1028,Revenue,CCHD,Home Care - Elderly - South,Other Small Contracts,Kumari Care Limited,2041.02, 24-Nov-2015
1029,Revenue,CCHD,Home Care - Elderly - North,Other Small Contracts,Kumari Care Limited,833.27, 24-Nov-2015
1030,Revenue,CCHD,Bed Purchasing - North,Permanent Nursing,Leonard Cheshire  National Account Centr,5090.88, 24-Nov-2015
1031,Revenue,CCHD,Bed Purchasing - North,Permanent Residential,Leonard Cheshire  National Account Centr,2948.64, 24-Nov-2015
1032,Revenue,CCHD,Bed Purchasing - South,Permanent Residential,Leonard Cheshire  National Account Centr,3376.16, 24-Nov-2015
1033,Revenue,CCHD,Bed Purchasing - North,Permanent Nursing,Leonard Cheshire  National Account Centr,3559.68, 24-Nov-2015
1034,Revenue,CCHD,Bed Purchasing - North,Permanent Nursing,Leonard Cheshire  National Account Centr,2858.32, 24-Nov-2015
1035,Revenue,CCHD,18-25 Year Olds,Permanent Residential,Leonard Cheshire  National Account Centr,3231.92, 24-Nov-2015
1036,Revenue,CCHD,Bed Purchasing - North,Permanent Residential,Leonard Cheshire  National Account Centr,6024.88, 24-Nov-2015
1037,Revenue,CCHD,Bed Purchasing - North,Permanent Residential,Leonard Cheshire  National Account Centr,6023.32, 24-Nov-2015
1038,Revenue,CCHD,Bed Purchasing - South,Permanent Residential,Leonard Cheshire  National Account Centr,4544.12, 24-Nov-2015
1039,Revenue,CCHD,Bed Purchasing - North,Permanent Nursing,Leonard Cheshire  National Account Centr,2913.28, 24-Nov-2015
1040,Revenue,CCHD,Bed Purchasing - North,Permanent Nursing,Leonard Cheshire  National Account Centr,3912.16, 24-Nov-2015
1041,Revenue,CCHD,Bed Purchasing - North,Permanent Residential,Leonard Cheshire  National Account Centr,2965.36, 24-Nov-2015
1042,Revenue,CCHD,Bed Purchasing - North,Permanent Nursing,Leonard Cheshire  National Account Centr,3306.84, 24-Nov-2015
1043,Revenue,CCHD,Bed Purchasing - North,Permanent Nursing,Leonard Cheshire  National Account Centr,5663.60, 24-Nov-2015
1044,Revenue,CCHD,Bed Purchasing - South,Permanent Nursing,Leonard Cheshire  National Account Centr,2940.92, 24-Nov-2015
1045,Revenue,CCHD,Bed Purchasing - Southmead Hospital,Permanent Nursing,Leonard Cheshire  National Account Centr,3075.12, 24-Nov-2015
1046,Revenue,CCHD,South Glos Users in all other LA Homes,Permanent Nursing,Leonard Cheshire  National Account Centr,616.56, 24-Nov-2015
1047,Revenue,CCHD,Bed Purchasing - North,Permanent Nursing,Leonard Cheshire  National Account Centr,3363.96, 24-Nov-2015
1048,Revenue,CCHD,Bed Purchasing - North,Permanent Nursing,Leonard Cheshire  National Account Centr,4167.96, 24-Nov-2015
1049,Revenue,CCHD,Supported Living - North,Private & Voluntary Home Care,Lifeways Community Care (Gloucester) Ltd,2105.64, 05-Nov-2015
1050,Revenue,CCHD,Supported Living - North,Private & Voluntary Home Care,Lifeways Community Care (Gloucester) Ltd,11758.56, 27-Nov-2015
1051,Revenue,CCHD,Supported Living - North,Private & Voluntary Home Care,Lifeways Community Care (Gloucester) Ltd,1795.89, 27-Nov-2015
1052,Revenue,CCHD,Bed Purchasing - Southmead Hospital,Permanent Residential,Little Croft,1085.24, 24-Nov-2015
1053,Revenue,CCHD,Bed Purchasing - Southmead Hospital,Permanent Residential,Little Croft,1269.32, 24-Nov-2015
1054,Revenue,CCHD,Bed Purchasing - North,Permanent Residential,Little Croft,1230.92, 24-Nov-2015
1055,Revenue,CCHD,Bed Purchasing - Southmead Hospital,Permanent Residential,Little Croft,1278.80, 24-Nov-2015
1056,Revenue,CCHD,Bed Purchasing - North,Permanent Residential,Little Croft,1217.96, 24-Nov-2015
1057,Revenue,CCHD,Bed Purchasing - Southmead Hospital,Permanent Residential,Little Croft,1244.93, 24-Nov-2015
1058,Revenue,CCHD,Bed Purchasing - Southmead Hospital,Permanent Residential,Little Croft,21063.94, 24-Nov-2015
1059,Revenue,CCHD,Bed Purchasing - Southmead Hospital,Permanent Residential,Little Croft,1694.80, 24-Nov-2015
1060,Revenue,CCHD,Bed Purchasing - South,Permanent Residential,Little Croft,908.60, 24-Nov-2015
1061,Revenue,CCHD,Bed Purchasing - Southmead Hospital,Permanent Residential,Little Croft,1763.48, 24-Nov-2015
1062,Revenue,CCHD,Bed Purchasing - Southmead Hospital,Permanent Residential,Little Croft,6850.29, 24-Nov-2015
1063,Revenue,CCHD,Bed Purchasing - Southmead Hospital,Permanent Residential,Little Croft,1478.80, 24-Nov-2015
1064,Revenue,CCHD,Bed Purchasing - Southmead Hospital,Permanent Residential,Little Croft,1442.80, 24-Nov-2015
1065,Revenue,CCHD,Bed Purchasing - Southmead Hospital,Permanent Residential,Little Croft,1233.68, 24-Nov-2015
1066,Revenue,CCHD,Bed Purchasing - North,Permanent Residential,Little Croft,1075.60, 24-Nov-2015
1067,Revenue,CCHD,Bed Purchasing - South,Permanent Residential,Little Croft,1241.84, 24-Nov-2015
1068,Revenue,CCHD,Bed Purchasing - South,Permanent Residential,Little Croft,1422.92, 24-Nov-2015
1069,Revenue,CCHD,Bed Purchasing - Southmead Hospital,Permanent Residential,Little Croft,1270.80, 24-Nov-2015
1070,Revenue,CCHD,Bed Purchasing - North,Permanent Residential,Little Croft,1408.44, 24-Nov-2015
1071,Revenue,CCHD,Bed Purchasing - Southmead Hospital,Permanent Residential,Little Croft,1270.80, 24-Nov-2015
1072,Revenue,CCHD,Bed Purchasing - Southmead Hospital,Permanent Residential,Little Croft,1494.80, 24-Nov-2015
1073,Revenue,CCHD,Bed Purchasing - North,Permanent Residential,Littlecroft Residential Homes  Longcroft,6478.92, 24-Nov-2015
1074,Revenue,CCHD,Home Care - Elderly - South,Day Care / Social Activities,Lloyds TSB Commercial Finance Limited,4354.90, 24-Nov-2015
1075,Revenue,CCHD,Home Care - Elderly - South,Other Small Contracts,Lloyds TSB Commercial Finance Limited,3916.77, 24-Nov-2015
1076,Revenue,CCHD,Home Care - Elderly - South,Supported Living,Lloyds TSB Commercial Finance Limited,7334.74, 24-Nov-2015
1077,Revenue,CCHD,Home Care - Elderly - North,Day Care / Social Activities,Lloyds TSB Commercial Finance Limited,407.00, 24-Nov-2015
1078,Revenue,CCHD,Home Care - Elderly - North,Supported Living,Lloyds TSB Commercial Finance Limited,1436.71, 24-Nov-2015
1079,Revenue,CCHD,Younger MH non-res purchasing,Other Small Contracts,Lloyds TSB Commercial Finance Limited,10596.12, 24-Nov-2015
1080,Revenue,CCHD,Younger MH non-res purchasing,Supported Living,Lloyds TSB Commercial Finance Limited,105.20, 24-Nov-2015
1081,Revenue,CCHD,Home Care - Elderly - South,Day Care / Social Activities,Lloyds TSB Commercial Finance Limited,4574.68, 24-Nov-2015
1082,Revenue,CCHD,Home Care - Elderly - South,Other Small Contracts,Lloyds TSB Commercial Finance Limited,3785.65, 24-Nov-2015
1083,Revenue,CCHD,Home Care - Elderly - South,Supported Living,Lloyds TSB Commercial Finance Limited,7304.05, 24-Nov-2015
1084,Revenue,CCHD,Home Care - Elderly - North,Day Care / Social Activities,Lloyds TSB Commercial Finance Limited,407.00, 24-Nov-2015
1085,Revenue,CCHD,Home Care - Elderly - North,Supported Living,Lloyds TSB Commercial Finance Limited,1823.36, 24-Nov-2015
1086,Revenue,CCHD,Younger MH non-res purchasing,Other Small Contracts,Lloyds TSB Commercial Finance Limited,10646.82, 24-Nov-2015
1087,Revenue,CCHD,Younger MH non-res purchasing,Supported Living,Lloyds TSB Commercial Finance Limited,105.20, 24-Nov-2015
1088,Revenue,CCHD,Home Care - Elderly - South,Day Care / Social Activities,Lloyds TSB Commercial Finance Limited,4733.41, 24-Nov-2015
1089,Revenue,CCHD,Home Care - Elderly - South,Other Small Contracts,Lloyds TSB Commercial Finance Limited,5357.52, 24-Nov-2015
1090,Revenue,CCHD,Home Care - Elderly - South,Supported Living,Lloyds TSB Commercial Finance Limited,7938.15, 24-Nov-2015
1091,Revenue,CCHD,Home Care - Elderly - North,Day Care / Social Activities,Lloyds TSB Commercial Finance Limited,407.00, 24-Nov-2015
1092,Revenue,CCHD,Home Care - Elderly - North,Supported Living,Lloyds TSB Commercial Finance Limited,1448.92, 24-Nov-2015
1093,Revenue,CCHD,Younger MH non-res purchasing,Other Small Contracts,Lloyds TSB Commercial Finance Limited,10641.56, 24-Nov-2015
1094,Revenue,CCHD,Younger MH non-res purchasing,Supported Living,Lloyds TSB Commercial Finance Limited,105.20, 24-Nov-2015
1095,Revenue,CCHD,Home Care - Elderly - South,Day Care / Social Activities,Lloyds TSB Commercial Finance Limited,4733.41, 24-Nov-2015
1096,Revenue,CCHD,Home Care - Elderly - South,Other Small Contracts,Lloyds TSB Commercial Finance Limited,5169.17, 24-Nov-2015
1097,Revenue,CCHD,Home Care - Elderly - South,Supported Living,Lloyds TSB Commercial Finance Limited,7983.73, 24-Nov-2015
1098,Revenue,CCHD,Home Care - Elderly - North,Day Care / Social Activities,Lloyds TSB Commercial Finance Limited,407.00, 24-Nov-2015
1099,Revenue,CCHD,Home Care - Elderly - North,Supported Living,Lloyds TSB Commercial Finance Limited,1444.85, 24-Nov-2015
1100,Revenue,CCHD,Younger MH non-res purchasing,Other Small Contracts,Lloyds TSB Commercial Finance Limited,10620.52, 24-Nov-2015
1101,Revenue,CCHD,Younger MH non-res purchasing,Supported Living,Lloyds TSB Commercial Finance Limited,105.20, 24-Nov-2015
1102,Revenue,CCHD,Home Care - Elderly - South,Day Care / Social Activities,Lloyds TSB Commercial Finance Limited,4684.57, 24-Nov-2015
1103,Revenue,CCHD,Home Care - Elderly - South,Other Small Contracts,Lloyds TSB Commercial Finance Limited,5333.29, 24-Nov-2015
1104,Revenue,CCHD,Home Care - Elderly - South,Supported Living,Lloyds TSB Commercial Finance Limited,8249.49, 24-Nov-2015
1105,Revenue,CCHD,Home Care - Elderly - North,Day Care / Social Activities,Lloyds TSB Commercial Finance Limited,411.07, 24-Nov-2015
1106,Revenue,CCHD,Home Care - Elderly - North,Supported Living,Lloyds TSB Commercial Finance Limited,1416.36, 24-Nov-2015
1107,Revenue,CCHD,Younger MH non-res purchasing,Other Small Contracts,Lloyds TSB Commercial Finance Limited,10631.04, 24-Nov-2015
1108,Revenue,CCHD,Younger MH non-res purchasing,Supported Living,Lloyds TSB Commercial Finance Limited,105.20, 24-Nov-2015
1109,Revenue,CCHD,Home Care - Elderly - North,Day Care / Social Activities,Lower Kilcott,1481.84, 24-Nov-2015
1110,Revenue,CCHD,Home Care - Elderly - North,Day Care / Social Activities,Lower Kilcott,710.16, 24-Nov-2015
1111,Revenue,CCHD,Home Care - Elderly - North,Day Care / Social Activities,Lower Kilcott,566.68, 24-Nov-2015
1112,Revenue,CCHD,TSG Practice Placements,Training Expenses,Individual,765.00, 16-Nov-2015
1113,Revenue,CCHD,NHS Health Checks & Tobacco Control,Drugs & Medical Supplies,M J Williams Ltd T/ A Abbotswood Pharmacy,689.31, 17-Nov-2015
1114,Revenue,CCHD,Bed Purchasing - Southmead Hospital,Permanent Nursing,Majestic 3 Limited,1004.20, 24-Nov-2015
1115,Revenue,CCHD,18-25 Year Olds,Day Care / Social Activities,Make it Mentoring CIC Ltd,1008.00, 26-Nov-2015
1116,Revenue,CCHD,Bed Purchasing - South,Permanent Residential,Manor Cottage,1865.68, 24-Nov-2015
1117,Revenue,CCHD,Bed Purchasing - Southmead Hospital,Permanent Residential,Manor Cottage,1270.80, 24-Nov-2015
1118,Revenue,CCHD,Bed Purchasing - Southmead Hospital,Permanent Residential,Manor Cottage,1041.92, 24-Nov-2015
1119,Revenue,CCHD,Bed Purchasing - South,Permanent Residential,Manor Cottage,1464.20, 24-Nov-2015
1120,Revenue,CCHD,Bed Purchasing - South,Permanent Residential,Manor Cottage,1516.40, 24-Nov-2015
1121,Revenue,CCHD,Bed Purchasing - North,Permanent Residential,Manton Hall Residential Home,1542.80, 24-Nov-2015
1122,Revenue,CCHD,Home Care - Elderly - South,Supported Living,Maples Community Care Limited,1400.00, 24-Nov-2015
1123,Revenue,CCHD,Home Care - Elderly - South,Supported Living,Maples Community Care Limited,1400.00, 24-Nov-2015
1124,Revenue,CCHD,Younger MH non-res purchasing,Supported Living,Maples Community Care Limited,1400.00, 24-Nov-2015
1125,Revenue,CCHD,Younger MH non-res purchasing,Supported Living,Maples Community Care Limited,1400.00, 24-Nov-2015
1126,Revenue,CCHD,Younger MH non-res purchasing,Supported Living,Maples Community Care Limited,1400.00, 24-Nov-2015
1127,Revenue,CCHD,Social Lettings Agency,Fees - General,Individual,12.22, 20-Nov-2015
1128,Revenue,CCHD,Social Lettings Agency,Other Supplies & Services,Individual,690.32, 20-Nov-2015
1129,Revenue,CCHD,Tenancy Start Up Scheme,Other Supplies & Services,Individual,1400.00, 19-Nov-2015
1130,Revenue,CCHD,Bed Purchasing - South,Permanent Residential,Marsden Healthcare Ltd,1276.04, 24-Nov-2015
1131,Revenue,CCHD,Bed Purchasing - South,Permanent Residential,Marsden Healthcare Ltd,3278.84, 24-Nov-2015
1132,Revenue,CCHD,Bed Purchasing - South,Permanent Residential,Marsden Healthcare Ltd,1538.08, 24-Nov-2015
1133,Revenue,CCHD,Bed Purchasing - South,Permanent Nursing,Meadow Care Home,1552.32, 24-Nov-2015
1134,Revenue,CCHD,Bed Purchasing - Elderly S117- North,Permanent Nursing,Meadow Care Home,3800.00, 24-Nov-2015
1135,Revenue,CCHD,Bed purchasing - Elderly S117 - South,Permanent Nursing,Meadow Care Home,2420.00, 24-Nov-2015
1136,Revenue,CCHD,Bed Purchasing - Elderly S117- North,Permanent Nursing,Meadow Care Home,3800.00, 24-Nov-2015
1137,Revenue,CCHD,Home Care - Elderly - South,Day Care / Social Activities,Mears Care,93.60, 09-Nov-2015
1138,Revenue,CCHD,Home Care - Elderly - South,Other Small Contracts,Mears Care,1521.00, 09-Nov-2015
1139,Revenue,CCHD,Home Care - Elderly - North,Other Small Contracts,Mears Care,3003.00, 09-Nov-2015
1140,Revenue,CCHD,Under 65s -MH  Home Care Purch,Other Small Contracts,Mears Care,117.00, 09-Nov-2015
1141,Revenue,CCHD,Home Care - Elderly - South,Day Care / Social Activities,Mears Care,89.70, 09-Nov-2015
1142,Revenue,CCHD,Home Care - Elderly - South,Other Small Contracts,Mears Care,1556.10, 09-Nov-2015
1143,Revenue,CCHD,Home Care - Elderly - North,Other Small Contracts,Mears Care,2870.40, 09-Nov-2015
1144,Revenue,CCHD,Under 65s -MH  Home Care Purch,Other Small Contracts,Mears Care,117.00, 09-Nov-2015
1145,Revenue,CCHD,Home Care - Elderly - South,Day Care / Social Activities,Mears Care,89.70, 09-Nov-2015
1146,Revenue,CCHD,Home Care - Elderly - South,Other Small Contracts,Mears Care,1638.00, 09-Nov-2015
1147,Revenue,CCHD,Home Care - Elderly - North,Other Small Contracts,Mears Care,2827.50, 09-Nov-2015
1148,Revenue,CCHD,Under 65s -MH  Home Care Purch,Other Small Contracts,Mears Care,124.80, 09-Nov-2015
1149,Revenue,CCHD,Home Care - Elderly - South,Private & Voluntary Home Care,Mears Care,49770.25, 27-Nov-2015
1150,Revenue,CCHD,Home Care - Elderly - South,Other Small Contracts,Medacs Home Care,67.26, 13-Nov-2015
1151,Revenue,CCHD,Home Care - Elderly - North,Other Small Contracts,Medacs Home Care,637.20, 13-Nov-2015
1152,Revenue,CCHD,Home Care - Elderly - South,Other Small Contracts,Medacs Home Care,92.04, 13-Nov-2015
1153,Revenue,CCHD,Home Care - Elderly - North,Other Small Contracts,Medacs Home Care,690.30, 13-Nov-2015
1154,Revenue,CCHD,Home Care - Elderly - South,Other Small Contracts,Medacs Home Care,88.50, 13-Nov-2015
1155,Revenue,CCHD,Home Care - Elderly - North,Other Small Contracts,Medacs Home Care,725.70, 13-Nov-2015
1156,Revenue,CCHD,ICES / NRS Contract,Daily Living Equipment,Medequip Assistive Technology Ltd,323.13, 19-Nov-2015
1157,Revenue,CCHD,ICES / NRS Contract,Daily Living Equipment,Medequip Assistive Technology Ltd,484.69, 19-Nov-2015
1158,Revenue,CCHD,ICES / NRS Contract,Daily Living Equipment,Medequip Assistive Technology Ltd,22965.00, 19-Nov-2015
1159,Revenue,CCHD,ICES / NRS Contract,Daily Living Equipment,Medequip Assistive Technology Ltd,124486.00, 19-Nov-2015
1160,Revenue,CCHD,Bed Purchasing - South,Permanent Residential,Mencap,2277.84, 24-Nov-2015
1161,Revenue,CCHD,Supported Living (S28a) South,Private & Voluntary Home Care,Mencap - PS Central & Cymru,3841.88, 02-Nov-2015
1162,Revenue,CCHD,Supported Living (S28a) South,Private & Voluntary Home Care,Mencap - PS Central & Cymru,3841.88, 02-Nov-2015
1163,Revenue,CCHD,Supported Living (S28a) South,Private & Voluntary Home Care,Mencap - PS Central & Cymru,3841.88, 24-Nov-2015
1164,Revenue,CCHD,Intermediate Care Accommodation,Other Supplies & Services,Merlin Housing Society,491.12, 10-Nov-2015
1165,Revenue,CCHD,Home Care - Elderly - South,Supported Living,Mike Durrant - Cherry Orchards,1394.88, 24-Nov-2015
1166,Revenue,CCHD,Home Care - Elderly - South,Supported Living,Milestones - Unit 10,3631.76, 24-Nov-2015
1167,Revenue,CCHD,Home Care - Elderly - North,Supported Living,Milestones - Unit 10,4322.12, 24-Nov-2015
1168,Revenue,CCHD,Home Care - Elderly - South,Supported Living,Milestones - Unit 10,3631.76, 24-Nov-2015
1169,Revenue,CCHD,Supported Living (S28a) North,Private & Voluntary Home Care,Milestones - Unit 10,4076.32, 24-Nov-2015
1170,Revenue,CCHD,Home Care - Elderly - South,Supported Living,Milestones - Unit 10,3643.60, 24-Nov-2015
1171,Revenue,CCHD,Home Care - Elderly - South,Supported Living,Milestones - Unit 10,2317.68, 24-Nov-2015
1172,Revenue,CCHD,Home Care - Elderly - South,Supported Living,Milestones - Unit 10,2786.64, 24-Nov-2015
1173,Revenue,CCHD,Supported Living (S28a) North,Private & Voluntary Home Care,Milestones - Unit 10,1011.41, 24-Nov-2015
1174,Revenue,CCHD,Home Care - Elderly - South,Other Small Contracts,Milestones - Unit 10,2789.64, 24-Nov-2015
1175,Revenue,CCHD,Supported Living (S28a) North,Private & Voluntary Home Care,Milestones - Unit 10,1011.41, 24-Nov-2015
1176,Revenue,CCHD,Supported Living (S28a) North,Private & Voluntary Home Care,Milestones - Unit 10,4076.32, 24-Nov-2015
1177,Revenue,CCHD,Supported Living (S28a) South,Supported Living,Milestones - Unit 10,3881.32, 24-Nov-2015
1178,Revenue,CCHD,Supported Living (S28a) North,Private & Voluntary Home Care,Milestones - Unit 10,3603.08, 24-Nov-2015
1179,Revenue,CCHD,Supported Living (S28a) North,Private & Voluntary Home Care,Milestones - Unit 10,3603.08, 24-Nov-2015
1180,Revenue,CCHD,Home Care - Elderly - South,Supported Living,Milestones - Unit 10,1251.04, 24-Nov-2015
1181,Revenue,CCHD,Supported Living (S28a) South,Supported Living,Milestones - Unit 10,5505.80, 24-Nov-2015
1182,Revenue,CCHD,Home Care - Elderly - South,Supported Living,Milestones - Unit 10,2232.52, 24-Nov-2015
1183,Revenue,CCHD,Supported Living (S28a) South,Supported Living,Milestones - Unit 10,2232.52, 24-Nov-2015
1184,Revenue,CCHD,Supported Living (S28a) North,Private & Voluntary Home Care,Milestones - Unit 10,2175.10, 24-Nov-2015
1185,Revenue,CCHD,Home Care - Elderly - North,Supported Living,Milestones - Unit 10,2152.08, 24-Nov-2015
1186,Revenue,CCHD,Supported Living (S28a) North,Private & Voluntary Home Care,Milestones - Unit 10,3615.20, 24-Nov-2015
1187,Revenue,CCHD,Supported Living (S28a) South,Supported Living,Milestones - Unit 10,2232.52, 24-Nov-2015
1188,Revenue,CCHD,Supported Living (S28a) South,Supported Living,Milestones - Unit 10,2232.52, 24-Nov-2015
1189,Revenue,CCHD,South Glos Users in South Glos Homes,Permanent Nursing,Milestones - Unit 10,4000.00, 24-Nov-2015
1190,Revenue,CCHD,South Glos Users in South Glos Homes,Permanent Nursing,Milestones - Unit 10,4938.09, 24-Nov-2015
1191,Revenue,CCHD,South Glos Users in South Glos Homes,Permanent Nursing,Milestones - Unit 10,11506.88, 24-Nov-2015
1192,Revenue,CCHD,Bed Purchasing - North,Permanent Residential,Milestones - Unit 10,3496.32, 24-Nov-2015
1193,Revenue,CCHD,Bed Purchasing - South,Permanent Residential,Milestones - Unit 10,4921.56, 24-Nov-2015
1194,Revenue,CCHD,Bed Purchasing - South,Permanent Residential,Milestones - Unit 10,5502.32, 24-Nov-2015
1195,Revenue,CCHD,Bed Purchasing - South,Permanent Nursing,Milestones - Unit 10,2763.44, 24-Nov-2015
1196,Revenue,CCHD,Bed Purchasing - South,Permanent Nursing,Milestones - Unit 10,1286.44, 24-Nov-2015
1197,Revenue,CCHD,Bed Purchasing - South,Permanent Residential,Milestones - Unit 10,3640.84, 24-Nov-2015
1198,Revenue,CCHD,Bed purchasing - Elderly S117 - South,Permanent Nursing,Milestones - Unit 10,17278.14, 24-Nov-2015
1199,Revenue,CCHD,Bed Purchasing - North,Permanent Nursing,Milestones - Unit 10,1440.08, 24-Nov-2015
1200,Revenue,CCHD,Bed Purchasing - North,Permanent Residential,Milestones - Unit 10,8845.08, 24-Nov-2015
1201,Revenue,CCHD,Bed Purchasing - North,Permanent Residential,Milestones - Unit 10,3158.95, 24-Nov-2015
1202,Revenue,CCHD,Bed Purchasing - South,Permanent Residential,Milestones - Unit 10,4165.64, 24-Nov-2015
1203,Revenue,CCHD,Bed Purchasing - North,Permanent Nursing,Milestones - Unit 10,4246.80, 24-Nov-2015
1204,Revenue,CCHD,Bed purchasing -S28A  Under 65 - North,Permanent Residential,Milestones - Unit 10,5387.68, 24-Nov-2015
1205,Revenue,CCHD,Bed purchasing - S28A Under 65 - South,Permanent Residential,Milestones - Unit 10,5588.64, 24-Nov-2015
1206,Revenue,CCHD,Bed Purchasing - South,Permanent Residential,Milestones - Unit 10,1317.44, 24-Nov-2015
1207,Revenue,CCHD,Bed Purchasing - South,Permanent Residential,Milestones - Unit 10,5042.32, 24-Nov-2015
1208,Revenue,CCHD,Bed Purchasing - South,Permanent Residential,Milestones - Unit 10,5595.76, 24-Nov-2015
1209,Revenue,CCHD,Bed purchasing - S28A Under 65 - South,Permanent Nursing,Milestones - Unit 10,7369.04, 24-Nov-2015
1210,Revenue,CCHD,MH Purchasing - Younger,Permanent Residential,Milestones - Unit 10,866.80, 24-Nov-2015
1211,Revenue,CCHD,Bed Purchasing - South,Permanent Residential,Milestones - Unit 10,5175.80, 24-Nov-2015
1212,Revenue,CCHD,Bed Purchasing - North,Permanent Residential,Milestones - Unit 10,4062.96, 24-Nov-2015
1213,Revenue,CCHD,Bed purchasing -S28A  Under 65 - North,Permanent Residential,Milestones - Unit 10,5316.80, 24-Nov-2015
1214,Revenue,CCHD,Bed Purchasing - North,Permanent Residential,Milestones - Unit 10,4685.96, 24-Nov-2015
1215,Revenue,CCHD,Bed purchasing -S28A  Under 65 - North,Permanent Residential,Milestones - Unit 10,7136.00, 24-Nov-2015
1216,Revenue,CCHD,Bed purchasing -S28A  Under 65 - North,Permanent Nursing,Milestones - Unit 10,5865.04, 24-Nov-2015
1217,Revenue,CCHD,Bed Purchasing - South,Permanent Residential,Milestones - Unit 10,5942.72, 24-Nov-2015
1218,Revenue,CCHD,Bed Purchasing - South,Permanent Residential,Milestones - Unit 10,3245.72, 24-Nov-2015
1219,Revenue,CCHD,Bed purchasing -S28A  Under 65 - North,Permanent Residential,Milestones - Unit 10,6829.12, 24-Nov-2015
1220,Revenue,CCHD,Bed purchasing - S28A Under 65 - South,Permanent Residential,Milestones - Unit 10,4575.80, 24-Nov-2015
1221,Revenue,CCHD,Bed Purchasing - S28A - Over 65- North,Permanent Residential,Milestones - Unit 10,6670.00, 24-Nov-2015
1222,Revenue,CCHD,Bed purchasing -S28A  Under 65 - North,Permanent Residential,Milestones - Unit 10,7089.20, 24-Nov-2015
1223,Revenue,CCHD,Bed purchasing -S28A  Under 65 - North,Permanent Residential,Milestones - Unit 10,7136.20, 24-Nov-2015
1224,Revenue,CCHD,Bed Purchasing - LD S28A- Over 65- South,Permanent Residential,Milestones - Unit 10,4134.48, 24-Nov-2015
1225,Revenue,CCHD,Bed purchasing - S28A Under 65 - South,Permanent Residential,Milestones - Unit 10,4527.72, 24-Nov-2015
1226,Revenue,CCHD,Bed purchasing - S28A Under 65 - South,Permanent Residential,Milestones - Unit 10,3704.60, 24-Nov-2015
1227,Revenue,CCHD,Bed Purchasing - LD S28A- Over 65- South,Permanent Residential,Milestones - Unit 10,5142.04, 24-Nov-2015
1228,Revenue,CCHD,Bed Purchasing - LD S28A- Over 65- South,Permanent Residential,Milestones - Unit 10,4968.40, 24-Nov-2015
1229,Revenue,CCHD,Bed Purchasing - LD S28A- Over 65- South,Permanent Residential,Milestones - Unit 10,5126.08, 24-Nov-2015
1230,Revenue,CCHD,Bed Purchasing - LD S28A- Over 65- South,Permanent Residential,Milestones - Unit 10,4396.24, 24-Nov-2015
1231,Revenue,CCHD,Bed Purchasing - LD S28A- Over 65- South,Permanent Residential,Milestones - Unit 10,5222.00, 24-Nov-2015
1232,Revenue,CCHD,Bed Purchasing - S28A - Over 65- North,Permanent Residential,Milestones - Unit 10,2902.08, 24-Nov-2015
1233,Revenue,CCHD,Section 117 Placements MH Younger,Permanent Residential,Milestones - Unit 10,1372.00, 24-Nov-2015
1234,Revenue,CCHD,Bed Purchasing - South,Permanent Residential,Milestones - Unit 10,866.80, 24-Nov-2015
1235,Revenue,CCHD,Bed purchasing - S28A Under 65 - South,Permanent Residential,Milestones - Unit 10,4988.84, 24-Nov-2015
1236,Revenue,CCHD,Bed Purchasing - North,Permanent Residential,Milestones - Unit 10,4349.92, 24-Nov-2015
1237,Revenue,CCHD,Bed Purchasing - North,Permanent Nursing,Milestones - Unit 10,6971.80, 24-Nov-2015
1238,Revenue,CCHD,Bed Purchasing - North,Permanent Nursing,Milestones - Unit 10,1108.84, 24-Nov-2015
1239,Revenue,CCHD,Bed Purchasing - South,Permanent Residential,Milestones - Unit 10,4318.72, 24-Nov-2015
1240,Revenue,CCHD,Bed purchasing -S28A  Under 65 - North,Permanent Residential,Milestones - Unit 10,5737.92, 24-Nov-2015
1241,Revenue,CCHD,Bed Purchasing - S28A - Over 65- North,Permanent Residential,Milestones - Unit 10,3633.92, 24-Nov-2015
1242,Revenue,CCHD,MH Purchasing - Younger,Permanent Residential,Milestones - Unit 10,1050.20, 24-Nov-2015
1243,Revenue,CCHD,Bed Purchasing - S28A - Over 65- North,Permanent Residential,Milestones - Unit 10,3245.24, 24-Nov-2015
1244,Revenue,CCHD,Bed Purchasing - LD S28A- Over 65- South,Permanent Residential,Milestones - Unit 10,3919.96, 24-Nov-2015
1245,Revenue,CCHD,Bed purchasing - S28A Under 65 - South,Permanent Residential,Milestones - Unit 10,5228.28, 24-Nov-2015
1246,Revenue,CCHD,Bed purchasing - S28A Under 65 - South,Permanent Nursing,Milestones - Unit 10,5239.84, 24-Nov-2015
1247,Revenue,CCHD,Bed Purchasing - LD S28A- Over 65- South,Permanent Nursing,Milestones - Unit 10,5277.92, 24-Nov-2015
1248,Revenue,CCHD,Bed Purchasing - LD S28A- Over 65- South,Permanent Residential,Milestones - Unit 10,4800.72, 24-Nov-2015
1249,Revenue,CCHD,Bed Purchasing - LD S28A- Over 65- South,Permanent Residential,Milestones - Unit 10,4645.48, 24-Nov-2015
1250,Revenue,CCHD,Bed purchasing - S28A Under 65 - South,Permanent Residential,Milestones - Unit 10,6111.04, 24-Nov-2015
1251,Revenue,CCHD,Bed Purchasing - LD S28A- Over 65- South,Permanent Residential,Milestones - Unit 10,4713.52, 24-Nov-2015
1252,Revenue,CCHD,Bed Purchasing - S28A - Over 65- North,Permanent Residential,Milestones - Unit 10,4776.40, 24-Nov-2015
1253,Revenue,CCHD,Bed Purchasing - South,Permanent Nursing,Milestones - Unit 10,3319.80, 24-Nov-2015
1254,Revenue,CCHD,Bed Purchasing - S28A - Over 65- North,Permanent Residential,Milestones - Unit 10,4634.04, 24-Nov-2015
1255,Revenue,CCHD,Bed Purchasing - S28A - Over 65- North,Permanent Residential,Milestones - Unit 10,4806.64, 24-Nov-2015
1256,Revenue,CCHD,Bed purchasing - S28A Under 65 - South,Permanent Residential,Milestones - Unit 10,4808.68, 24-Nov-2015
1257,Revenue,CCHD,Bed Purchasing - S28A - Over 65- North,Permanent Residential,Milestones - Unit 10,4547.76, 24-Nov-2015
1258,Revenue,CCHD,Bed purchasing -S28A  Under 65 - North,Permanent Residential,Milestones - Unit 10,7136.20, 24-Nov-2015
1259,Revenue,CCHD,Bed purchasing -S28A  Under 65 - North,Permanent Residential,Milestones - Unit 10,3340.76, 24-Nov-2015
1260,Revenue,CCHD,Bed Purchasing - North,Permanent Residential,Milestones - Unit 10,3162.44, 24-Nov-2015
1261,Revenue,CCHD,Bed Purchasing - S28A - Over 65- North,Permanent Residential,Milestones - Unit 10,3464.24, 24-Nov-2015
1262,Revenue,CCHD,Bed Purchasing - LD S28A- Over 65- South,Permanent Residential,Milestones - Unit 10,4227.93, 24-Nov-2015
1263,Revenue,CCHD,Bed Purchasing - North,Respite Emergency - Residential,Milestones - Unit 10,33567.22, 24-Nov-2015
1264,Revenue,CCHD,Bed Purchasing - North,Permanent Nursing,Milestones - Unit 10,1330.80, 24-Nov-2015
1265,Revenue,CCHD,MH Purchasing - Younger,Permanent Nursing,Milestones - Unit 10,950.96, 24-Nov-2015
1266,Revenue,CCHD,MH Purchasing - Younger,Permanent Nursing,Milestones - Unit 10,958.80, 24-Nov-2015
1267,Revenue,CCHD,Bed Purchasing - South,Permanent Residential,Milestones - Unit 10,3285.36, 24-Nov-2015
1268,Revenue,CCHD,Bed purchasing - S28A Under 65 - South,Permanent Residential,Milestones - Unit 10,5984.08, 24-Nov-2015
1269,Revenue,CCHD,Bed purchasing - S28A Under 65 - South,Permanent Residential,Milestones - Unit 10,6071.04, 24-Nov-2015
1270,Revenue,CCHD,Bed Purchasing - LD S28A- Over 65- South,Permanent Residential,Milestones - Unit 10,4396.24, 24-Nov-2015
1271,Revenue,CCHD,Bed Purchasing - South,Permanent Residential,Milestones - Unit 10,5984.52, 24-Nov-2015
1272,Revenue,CCHD,Bed Purchasing - LD S28A- Over 65- South,Permanent Nursing,Milestones - Unit 10,5277.92, 24-Nov-2015
1273,Revenue,CCHD,Bed Purchasing - LD S28A- Over 65- South,Permanent Residential,Milestones - Unit 10,3575.16, 24-Nov-2015
1274,Revenue,CCHD,Bed Purchasing - South,Permanent Residential,Milestones - Unit 10,1239.36, 24-Nov-2015
1275,Revenue,CCHD,Bed purchasing -S28A  Under 65 - North,Permanent Nursing,Milestones - Unit 10,7697.08, 24-Nov-2015
1276,Revenue,CCHD,Bed Purchasing - Southmead Hospital,Permanent Nursing,Milestones - Unit 10,1368.08, 24-Nov-2015
1277,Revenue,CCHD,Bed Purchasing - South,Permanent Residential,Milestones - Unit 10,5319.52, 24-Nov-2015
1278,Revenue,CCHD,Bed Purchasing - North,Permanent Nursing,Milestones - Unit 10,1460.24, 24-Nov-2015
1279,Revenue,CCHD,Bed Purchasing - North,Permanent Nursing,Milestones - Unit 10,834.36, 24-Nov-2015
1280,Revenue,CCHD,18-25 Year Olds,Permanent Residential,Milestones - Unit 10,9919.20, 24-Nov-2015
1281,Revenue,CCHD,Section 117 Placements MH Younger,Permanent Residential,Milestones - Unit 10,1372.00, 24-Nov-2015
1282,Revenue,CCHD,Bed Purchasing - South,Permanent Nursing,Milestones - Unit 10,3399.64, 24-Nov-2015
1283,Revenue,CCHD,Bed Purchasing - LD S28A- Over 65- South,Permanent Nursing,Milestones - Unit 10,3017.84, 24-Nov-2015
1284,Revenue,CCHD,Bed Purchasing - South,Permanent Nursing,Milestones - Unit 10,2808.92, 24-Nov-2015
1285,Revenue,CCHD,Bed Purchasing - LD S28A- Over 65- South,Permanent Nursing,Milestones - Unit 10,2793.28, 24-Nov-2015
1286,Revenue,CCHD,Bed Purchasing - S28A - Over 65- North,Permanent Nursing,Milestones - Unit 10,3670.84, 24-Nov-2015
1287,Revenue,CCHD,Bed Purchasing - S28A - Over 65- North,Permanent Nursing,Milestones - Unit 10,3666.84, 24-Nov-2015
1288,Revenue,CCHD,MH Purchasing - Younger,Respite Planned - Residential,Milestones - Unit 10,3774.80, 24-Nov-2015
1289,Revenue,CCHD,Home Care - Elderly - South,Day Care / Social Activities,Milestones Homecare & Dementia Service,31.44, 12-Nov-2015
1290,Revenue,CCHD,Home Care - Elderly - South,Other Small Contracts,Milestones Homecare & Dementia Service,1575.93, 12-Nov-2015
1291,Revenue,CCHD,Home Care - Elderly - North,Other Small Contracts,Milestones Homecare & Dementia Service,1692.98, 12-Nov-2015
1292,Revenue,CCHD,Home care - Elderly MH - North,Other Small Contracts,Milestones Homecare & Dementia Service,43.23, 12-Nov-2015
1293,Revenue,CCHD,Home Care - Elderly - South,Day Care / Social Activities,Milestones Homecare & Dementia Service,31.44, 13-Nov-2015
1294,Revenue,CCHD,Home Care - Elderly - South,Other Small Contracts,Milestones Homecare & Dementia Service,1670.25, 13-Nov-2015
1295,Revenue,CCHD,Home Care - Elderly - North,Other Small Contracts,Milestones Homecare & Dementia Service,1787.10, 13-Nov-2015
1296,Revenue,CCHD,Home care - Elderly MH - North,Other Small Contracts,Milestones Homecare & Dementia Service,39.30, 13-Nov-2015
1297,Revenue,CCHD,Home Care - Elderly - South,Day Care / Social Activities,Milestones Homecare & Dementia Service,31.44, 18-Nov-2015
1298,Revenue,CCHD,Home Care - Elderly - South,Other Small Contracts,Milestones Homecare & Dementia Service,1367.64, 18-Nov-2015
1299,Revenue,CCHD,Home Care - Elderly - North,Other Small Contracts,Milestones Homecare & Dementia Service,1535.18, 18-Nov-2015
1300,Revenue,CCHD,Home care - Elderly MH - North,Other Small Contracts,Milestones Homecare & Dementia Service,58.95, 18-Nov-2015
1301,Revenue,CCHD,Home Care - Elderly - South,Day Care / Social Activities,Milestones Supported Living Services,6930.41, 11-Nov-2015
1302,Revenue,CCHD,Home Care - Elderly - South,Other Small Contracts,Milestones Supported Living Services,2188.86, 11-Nov-2015
1303,Revenue,CCHD,Home Care - Elderly - South,Supported Living,Milestones Supported Living Services,2906.96, 11-Nov-2015
1304,Revenue,CCHD,Home Care - Elderly - North,Day Care / Social Activities,Milestones Supported Living Services,3038.75, 11-Nov-2015
1305,Revenue,CCHD,Home Care - Elderly - North,Other Small Contracts,Milestones Supported Living Services,326.39, 11-Nov-2015
1306,Revenue,CCHD,Home Care - Elderly - North,Supported Living,Milestones Supported Living Services,162.40, 11-Nov-2015
1307,Revenue,CCHD,Day Care - South,Day Care / Social Activities,Milestones Supported Living Services,109.44, 11-Nov-2015
1308,Revenue,CCHD,Day Care - North,Day Care / Social Activities,Milestones Supported Living Services,172.40, 11-Nov-2015
1309,Revenue,CCHD,Home care - Elderly MH - North,Other Small Contracts,Milestones Supported Living Services,64.56, 11-Nov-2015
1310,Revenue,CCHD,Home Care - Elderly - South,Day Care / Social Activities,Milestones Supported Living Services,7446.84, 11-Nov-2015
1311,Revenue,CCHD,Home Care - Elderly - South,Other Small Contracts,Milestones Supported Living Services,2277.14, 11-Nov-2015
1312,Revenue,CCHD,Home Care - Elderly - South,Supported Living,Milestones Supported Living Services,1900.08, 11-Nov-2015
1313,Revenue,CCHD,Home Care - Elderly - North,Day Care / Social Activities,Milestones Supported Living Services,3234.08, 11-Nov-2015
1314,Revenue,CCHD,Home Care - Elderly - North,Other Small Contracts,Milestones Supported Living Services,284.48, 11-Nov-2015
1315,Revenue,CCHD,Home Care - Elderly - North,Supported Living,Milestones Supported Living Services,162.40, 11-Nov-2015
1316,Revenue,CCHD,Day Care - South,Day Care / Social Activities,Milestones Supported Living Services,114.00, 11-Nov-2015
1317,Revenue,CCHD,Day Care - North,Day Care / Social Activities,Milestones Supported Living Services,158.72, 11-Nov-2015
1318,Revenue,CCHD,Younger MH non-res purchasing,Day Care / Social Activities,Milestones Supported Living Services,27.36, 11-Nov-2015
1319,Revenue,CCHD,Home care - Elderly MH - North,Other Small Contracts,Milestones Supported Living Services,112.83, 11-Nov-2015
1320,Revenue,CCHD,Home Care - Elderly - South,Day Care / Social Activities,Milestones Supported Living Services,6689.08, 03-Nov-2015
1321,Revenue,CCHD,Home Care - Elderly - South,Other Small Contracts,Milestones Supported Living Services,2459.84, 03-Nov-2015
1322,Revenue,CCHD,Home Care - Elderly - South,Supported Living,Milestones Supported Living Services,1827.00, 03-Nov-2015
1323,Revenue,CCHD,Home Care - Elderly - North,Day Care / Social Activities,Milestones Supported Living Services,3132.18, 03-Nov-2015
1324,Revenue,CCHD,Home Care - Elderly - North,Other Small Contracts,Milestones Supported Living Services,284.48, 03-Nov-2015
1325,Revenue,CCHD,Home Care - Elderly - North,Supported Living,Milestones Supported Living Services,162.40, 03-Nov-2015
1326,Revenue,CCHD,Day Care - South,Day Care / Social Activities,Milestones Supported Living Services,109.44, 03-Nov-2015
1327,Revenue,CCHD,Day Care - North,Day Care / Social Activities,Milestones Supported Living Services,135.92, 03-Nov-2015
1328,Revenue,CCHD,Home care - Elderly MH - North,Other Small Contracts,Milestones Supported Living Services,133.13, 03-Nov-2015
1329,Revenue,CCHD,Supported Living - North,Private & Voluntary Home Care,Milestones Trust,577.61, 30-Nov-2015
1330,Revenue,CCHD,Purchase of Non-Res Care - South,Day Care / Social Activities,Milestones Trust,1776.02, 27-Nov-2015
1331,Revenue,CCHD,Bed Purchasing - North,Permanent Residential,Millennium House,1429.56, 24-Nov-2015
1332,Revenue,CCHD,Bed Purchasing - Southmead Hospital,Permanent Residential,Mostyn Lodge Residential Home,1143.20, 24-Nov-2015
1333,Revenue,CCHD,Bed Purchasing - North,Permanent Residential,Mostyn Lodge Residential Home,1239.80, 24-Nov-2015
1334,Revenue,CCHD,Supported Living - South,Private & Voluntary Home Care,Moving On,3303.07, 27-Nov-2015
1335,Revenue,CCHD,Supported Living - South,Private & Voluntary Home Care,Moving On,2022.82, 27-Nov-2015
1336,Revenue,CCHD,Supported Living - South,Private & Voluntary Home Care,Moving On,5374.77, 27-Nov-2015
1337,Revenue,CCHD,Supported Living - South,Private & Voluntary Home Care,Moving On,3203.36, 27-Nov-2015
1338,Revenue,CCHD,Day Care - South,Day Care / Social Activities,Moving On,1041.39, 30-Nov-2015
1339,Revenue,CCHD,Day Care - South,Day Care / Social Activities,Moving On,677.73, 27-Nov-2015
1340,Revenue,CCHD,Supported Living - South,Private & Voluntary Home Care,Moving On,1341.36, 27-Nov-2015
1341,Revenue,CCHD,Supported Living - South,Private & Voluntary Home Care,Moving On,745.20, 27-Nov-2015
1342,Revenue,CCHD,Section 117 Placements MH Younger,Day Care / Social Activities,Moving On,1487.70, 27-Nov-2015
1343,Revenue,CCHD,Section 117 Placements MH Younger,Day Care / Social Activities,Moving On,892.62, 27-Nov-2015
1344,Revenue,CCHD,Social Lettings Agency,Fees - General,Individual,10.53, 06-Nov-2015
1345,Revenue,CCHD,Social Lettings Agency,Other Supplies & Services,Individual,595.11, 06-Nov-2015
1346,Revenue,CCHD,Social Lettings Agency,Fees - General,Individual,10.00, 12-Nov-2015
1347,Revenue,CCHD,Social Lettings Agency,Other Supplies & Services,Individual,595.11, 12-Nov-2015
1348,Revenue,CCHD,Social Lettings Agency,Fees - General,Individual,10.53, 06-Nov-2015
1349,Revenue,CCHD,Social Lettings Agency,Other Supplies & Services,Individual,595.11, 06-Nov-2015
1350,Revenue,CCHD,Social Lettings Agency,Fees - General,Individual,10.53, 06-Nov-2015
1351,Revenue,CCHD,Social Lettings Agency,Other Supplies & Services,Individual,595.11, 06-Nov-2015
1352,Revenue,CCHD,Social Lettings Agency,Fees - General,Individual,10.00, 20-Nov-2015
1353,Revenue,CCHD,Social Lettings Agency,Other Supplies & Services,Individual,565.00, 20-Nov-2015
1354,Revenue,CCHD,Social Lettings Agency,Fees - General,Individual,8.60, 20-Nov-2015
1355,Revenue,CCHD,Social Lettings Agency,Other Supplies & Services,Individual,582.00, 20-Nov-2015
1356,Revenue,CCHD,Homeless - Private Sector Leasing,Other Supplies & Services,Mr D G & Mrs L K Jenkins,565.00, 23-Nov-2015
1357,Revenue,CCHD,Social Lettings Agency,Fees - General,Individual,10.53, 06-Nov-2015
1358,Revenue,CCHD,Social Lettings Agency,Other Supplies & Services,Individual,595.11, 06-Nov-2015
1359,Revenue,CCHD,Social Lettings Agency,Fees - General,Individual,12.22, 10-Nov-2015
1360,Revenue,CCHD,Social Lettings Agency,Other Supplies & Services,Individual,690.32, 10-Nov-2015
1361,Revenue,CCHD,Social Lettings Agency,Fees - General,Individual,12.22, 02-Nov-2015
1362,Revenue,CCHD,Social Lettings Agency,Other Supplies & Services,Individual,690.32, 02-Nov-2015
1363,Revenue,CCHD,Social Lettings Agency,Fees - General,Individual,10.53, 20-Nov-2015
1364,Revenue,CCHD,Social Lettings Agency,Other Supplies & Services,Individual,595.11, 20-Nov-2015
1365,Revenue,CCHD,Social Lettings Agency,Fees - General,Individual,10.53, 20-Nov-2015
1366,Revenue,CCHD,Social Lettings Agency,Other Supplies & Services,Individual,595.11, 20-Nov-2015
1367,Revenue,CCHD,Social Lettings Agency,Fees - General,Individual,16.85, 20-Nov-2015
1368,Revenue,CCHD,Social Lettings Agency,Other Supplies & Services,Individual,519.74, 20-Nov-2015
1369,Revenue,CCHD,Social Lettings Agency,Other Supplies & Services,Individual,1850.30, 27-Nov-2015
1370,Revenue,CCHD,Social Lettings Agency,Fees - General,Individual,12.22, 20-Nov-2015
1371,Revenue,CCHD,Social Lettings Agency,Other Supplies & Services,Individual,680.32, 20-Nov-2015
1372,Revenue,CCHD,Social Lettings Agency,Fees - General,Individual,10.53, 30-Nov-2015
1373,Revenue,CCHD,Social Lettings Agency,Other Supplies & Services,Individual,595.11, 30-Nov-2015
1374,Revenue,CCHD,Home Care - Elderly - South,Day Care / Social Activities,Mrs B Kimber -  CM2000,2031.68, 09-Nov-2015
1375,Revenue,CCHD,Home Care - Elderly - South,Other Small Contracts,Mrs B Kimber -  CM2000,10053.76, 09-Nov-2015
1376,Revenue,CCHD,Home Care - Elderly - South,Supported Living,Mrs B Kimber -  CM2000,33.28, 09-Nov-2015
1377,Revenue,CCHD,Home Care - Elderly - North,Day Care / Social Activities,Mrs B Kimber -  CM2000,432.64, 09-Nov-2015
1378,Revenue,CCHD,Home Care - Elderly - North,Other Small Contracts,Mrs B Kimber -  CM2000,5566.08, 09-Nov-2015
1379,Revenue,CCHD,Under 65s -MH  Home Care Purch,Other Small Contracts,Mrs B Kimber -  CM2000,66.56, 09-Nov-2015
1380,Revenue,CCHD,Home Care - Elderly - South,Day Care / Social Activities,Mrs B Kimber -  CM2000,1973.44, 13-Nov-2015
1381,Revenue,CCHD,Home Care - Elderly - South,Other Small Contracts,Mrs B Kimber -  CM2000,10483.52, 13-Nov-2015
1382,Revenue,CCHD,Home Care - Elderly - South,Supported Living,Mrs B Kimber -  CM2000,33.28, 13-Nov-2015
1383,Revenue,CCHD,Home Care - Elderly - North,Day Care / Social Activities,Mrs B Kimber -  CM2000,266.24, 13-Nov-2015
1384,Revenue,CCHD,Home Care - Elderly - North,Other Small Contracts,Mrs B Kimber -  CM2000,6081.92, 13-Nov-2015
1385,Revenue,CCHD,Under 65s -MH  Home Care Purch,Other Small Contracts,Mrs B Kimber -  CM2000,66.56, 13-Nov-2015
1386,Revenue,CCHD,Home Care - Elderly - South,Day Care / Social Activities,Mrs B Kimber -  CM2000,2106.88, 27-Nov-2015
1387,Revenue,CCHD,Home Care - Elderly - South,Other Small Contracts,Mrs B Kimber -  CM2000,10775.92, 27-Nov-2015
1388,Revenue,CCHD,Home Care - Elderly - South,Supported Living,Mrs B Kimber -  CM2000,33.28, 27-Nov-2015
1389,Revenue,CCHD,Home Care - Elderly - North,Day Care / Social Activities,Mrs B Kimber -  CM2000,432.64, 27-Nov-2015
1390,Revenue,CCHD,Home Care - Elderly - North,Other Small Contracts,Mrs B Kimber -  CM2000,5603.52, 27-Nov-2015
1391,Revenue,CCHD,Under 65s -MH  Home Care Purch,Other Small Contracts,Mrs B Kimber -  CM2000,66.56, 27-Nov-2015
1392,Revenue,CCHD,Social Lettings Agency,Fees - General,Individual,10.53, 13-Nov-2015
1393,Revenue,CCHD,Social Lettings Agency,Other Supplies & Services,Individual,595.11, 13-Nov-2015
1394,Revenue,CCHD,Social Lettings Agency,Fees - General,Individual,10.00, 24-Nov-2015
1395,Revenue,CCHD,Social Lettings Agency,Other Supplies & Services,Individual,565.00, 24-Nov-2015
1396,Revenue,CCHD,Supported Living - North,Permanent Residential,Mrs I M Bowerman,1630.86, 11-Nov-2015
1397,Revenue,CCHD,Social Lettings Agency,Fees - General,Individual,10.53, 13-Nov-2015
1398,Revenue,CCHD,Social Lettings Agency,Other Supplies & Services,Individual,595.11, 13-Nov-2015
1399,Revenue,CCHD,Social Lettings Agency,Fees - General,Individual,10.53, 12-Nov-2015
1400,Revenue,CCHD,Social Lettings Agency,Other Supplies & Services,Individual,595.11, 12-Nov-2015
1401,Revenue,CCHD,Supported Living - North,Permanent Residential,Mrs Julie Taylor,619.08, 11-Nov-2015
1402,Revenue,CCHD,Carers Direct Payments,One-off Planned Direct Payment,Individual,800.00, 20-Nov-2015
1403,Revenue,CCHD,Social Lettings Agency,Fees - General,Individual,10.53, 06-Nov-2015
1404,Revenue,CCHD,Social Lettings Agency,Other Supplies & Services,Individual,595.11, 06-Nov-2015
1405,Revenue,CCHD,Social Lettings Agency,Fees - General,Individual,17.13, 11-Nov-2015
1406,Revenue,CCHD,Social Lettings Agency,Other Supplies & Services,Individual,611.08, 11-Nov-2015
1407,Revenue,CCHD,Community Support - North,Legal Fees,Individual,1250.00, 23-Nov-2015
1408,Revenue,CCHD,Alexandra Way,Cleaning & Domestic Services,Muzzell Healthcare,531.15, 16-Nov-2015
1409,Revenue,CCHD,Alexandra Way,Cleaning & Domestic Services,Muzzell Healthcare,511.70, 27-Nov-2015
1410,Revenue,CCHD,Home Care - Elderly - South,Day Care / Social Activities,NAS Services Limited,607.32, 19-Nov-2015
1411,Revenue,CCHD,Home Care - Elderly - South,Supported Living,NAS Services Limited,28.92, 19-Nov-2015
1412,Revenue,CCHD,Home Care - Elderly - North,Day Care / Social Activities,NAS Services Limited,626.60, 19-Nov-2015
1413,Revenue,CCHD,Home Care - Elderly - North,Supported Living,NAS Services Limited,347.04, 19-Nov-2015
1414,Revenue,CCHD,Younger MH non-res purchasing,Day Care / Social Activities,NAS Services Limited,501.28, 19-Nov-2015
1415,Revenue,CCHD,Home Care - Elderly - South,Day Care / Social Activities,NAS Services Limited,491.64, 30-Nov-2015
1416,Revenue,CCHD,Home Care - Elderly - South,Supported Living,NAS Services Limited,19.28, 30-Nov-2015
1417,Revenue,CCHD,Home Care - Elderly - North,Day Care / Social Activities,NAS Services Limited,920.62, 30-Nov-2015
1418,Revenue,CCHD,Home Care - Elderly - North,Supported Living,NAS Services Limited,347.04, 30-Nov-2015
1419,Revenue,CCHD,Younger MH non-res purchasing,Day Care / Social Activities,NAS Services Limited,193.80, 30-Nov-2015
1420,Revenue,CCHD,Home Care - Elderly - South,Day Care / Social Activities,NAS Services Limited,544.66, 30-Nov-2015
1421,Revenue,CCHD,Home Care - Elderly - South,Supported Living,NAS Services Limited,28.92, 30-Nov-2015
1422,Revenue,CCHD,Home Care - Elderly - North,Day Care / Social Activities,NAS Services Limited,1041.12, 30-Nov-2015
1423,Revenue,CCHD,Home Care - Elderly - North,Supported Living,NAS Services Limited,347.04, 30-Nov-2015
1424,Revenue,CCHD,Younger MH non-res purchasing,Day Care / Social Activities,NAS Services Limited,145.46, 30-Nov-2015
1425,Revenue,CCHD,Purchase of Non-Res Care - North,Day Care / Social Activities,NAS Services Limited,1142.40, 19-Nov-2015
1426,Revenue,CCHD,18-25 Year Olds,Day Care / Social Activities,NAS Services Limited,618.80, 19-Nov-2015
1427,Revenue,CCHD,Home Care - Elderly - North,Day Care / Social Activities,NAS Services Limited,874.35, 19-Nov-2015
1428,Revenue,CCHD,Home Care - Elderly - North,Day Care / Social Activities,NAS Services Limited,1107.51, 19-Nov-2015
1429,Revenue,CCHD,Home Care - Elderly - South,Day Care / Social Activities,NAS Services Limited,427.46, 30-Nov-2015
1430,Revenue,CCHD,Younger MH non-res purchasing,Day Care / Social Activities,NAS Services Limited,470.64, 30-Nov-2015
1431,Revenue,CCHD,Younger MH non-res purchasing,Day Care / Social Activities,NAS Services Limited,660.62, 30-Nov-2015
1432,Revenue,CCHD,Home Care - Elderly - South,Day Care / Social Activities,NAS Services Limited,816.06, 30-Nov-2015
1433,Revenue,CCHD,Home Care - Elderly - North,Day Care / Social Activities,NAS Services Limited,867.60, 19-Nov-2015
1434,Revenue,CCHD,Home Care - Elderly - North,Day Care / Social Activities,NAS Services Limited,1098.96, 19-Nov-2015
1435,Revenue,CCHD,Home Care - Elderly - South,Day Care / Social Activities,NAS Services Limited,424.16, 19-Nov-2015
1436,Revenue,CCHD,Home Care - Elderly - North,Day Care / Social Activities,NAS Services Limited,462.72, 19-Nov-2015
1437,Revenue,CCHD,18-25 Year Olds,Day Care / Social Activities,NAS Services Limited,578.40, 19-Nov-2015
1438,Revenue,CCHD,Home Care - Elderly - South,Day Care / Social Activities,NAS Services Limited,655.52, 19-Nov-2015
1439,Revenue,CCHD,Home Care - Elderly - South,Day Care / Social Activities,NAS Services Limited,809.76, 19-Nov-2015
1440,Revenue,CCHD,Bed Purchasing - Southmead Hospital,Permanent Residential,Nashley House Retirement Home,1270.80, 24-Nov-2015
1441,Revenue,CCHD,Training - Adult Services,Training Expenses,National Autistic Society,2583.64, 20-Nov-2015
1442,Revenue,CCHD,Training - Adult Services,Training Expenses,National Autistic Society,2803.84, 20-Nov-2015
1443,Revenue,CCHD,Newton House,Security Systems,National Security Group,161.67, 13-Nov-2015
1444,Revenue,CCHD,Drug/Alcohol Residential Rehab,Security Systems,National Security Group,21.67, 19-Nov-2015
1445,Revenue,CCHD,Newton House,Security Systems,National Security Group,78.95, 13-Nov-2015
1446,Revenue,CCHD,Drug/Alcohol Residential Rehab,Security Systems,National Security Group,21.67, 13-Nov-2015
1447,Revenue,CCHD,Bed Purchasing - North,Permanent Residential,National Star College,5035.04, 24-Nov-2015
1448,Revenue,CCHD,Home Care - Elderly - South,Day Care / Social Activities,Nestor T/A Allied Healthcare,73.15, 09-Nov-2015
1449,Revenue,CCHD,Home Care - Elderly - South,Other Small Contracts,Nestor T/A Allied Healthcare,2731.09, 09-Nov-2015
1450,Revenue,CCHD,Home Care - Elderly - North,Other Small Contracts,Nestor T/A Allied Healthcare,7311.15, 09-Nov-2015
1451,Revenue,CCHD,Day Care - North,Day Care / Social Activities,Nestor T/A Allied Healthcare,73.15, 09-Nov-2015
1452,Revenue,CCHD,Home care - Elderly MH - North,Other Small Contracts,Nestor T/A Allied Healthcare,53.89, 09-Nov-2015
1453,Revenue,CCHD,Home Care - Elderly - South,Day Care / Social Activities,Nestor T/A Allied Healthcare,69.30, 09-Nov-2015
1454,Revenue,CCHD,Home Care - Elderly - South,Other Small Contracts,Nestor T/A Allied Healthcare,2669.45, 09-Nov-2015
1455,Revenue,CCHD,Home Care - Elderly - North,Other Small Contracts,Nestor T/A Allied Healthcare,7669.20, 09-Nov-2015
1456,Revenue,CCHD,Day Care - North,Day Care / Social Activities,Nestor T/A Allied Healthcare,69.30, 09-Nov-2015
1457,Revenue,CCHD,Home care - Elderly MH - North,Other Small Contracts,Nestor T/A Allied Healthcare,53.90, 09-Nov-2015
1458,Revenue,CCHD,Home Care - Elderly - South,Day Care / Social Activities,Nestor T/A Allied Healthcare,69.30, 11-Nov-2015
1459,Revenue,CCHD,Home Care - Elderly - South,Other Small Contracts,Nestor T/A Allied Healthcare,2796.46, 11-Nov-2015
1460,Revenue,CCHD,Home Care - Elderly - North,Other Small Contracts,Nestor T/A Allied Healthcare,7592.20, 11-Nov-2015
1461,Revenue,CCHD,Day Care - North,Day Care / Social Activities,Nestor T/A Allied Healthcare,69.30, 11-Nov-2015
1462,Revenue,CCHD,Home care - Elderly MH - North,Other Small Contracts,Nestor T/A Allied Healthcare,53.90, 11-Nov-2015
1463,Revenue,CCHD,Home Care - Elderly - South,Day Care / Social Activities,Nestor T/A Allied Healthcare,69.30, 11-Nov-2015
1464,Revenue,CCHD,Home Care - Elderly - South,Other Small Contracts,Nestor T/A Allied Healthcare,2642.50, 11-Nov-2015
1465,Revenue,CCHD,Home Care - Elderly - North,Other Small Contracts,Nestor T/A Allied Healthcare,7507.50, 11-Nov-2015
1466,Revenue,CCHD,Day Care - North,Day Care / Social Activities,Nestor T/A Allied Healthcare,69.30, 11-Nov-2015
1467,Revenue,CCHD,Home care - Elderly MH - North,Other Small Contracts,Nestor T/A Allied Healthcare,53.90, 11-Nov-2015
1468,Revenue,CCHD,Home Care - Elderly - South,Day Care / Social Activities,Nestor T/A Allied Healthcare,73.15, 24-Nov-2015
1469,Revenue,CCHD,Home Care - Elderly - South,Other Small Contracts,Nestor T/A Allied Healthcare,2773.92, 24-Nov-2015
1470,Revenue,CCHD,Home Care - Elderly - North,Other Small Contracts,Nestor T/A Allied Healthcare,7353.50, 24-Nov-2015
1471,Revenue,CCHD,Day Care - North,Day Care / Social Activities,Nestor T/A Allied Healthcare,69.30, 24-Nov-2015
1472,Revenue,CCHD,Home care - Elderly MH - North,Other Small Contracts,Nestor T/A Allied Healthcare,53.90, 24-Nov-2015
1473,Revenue,CCHD,Home Care - Elderly - South,Day Care / Social Activities,Nestor T/A Allied Healthcare,69.30, 24-Nov-2015
1474,Revenue,CCHD,Home Care - Elderly - South,Other Small Contracts,Nestor T/A Allied Healthcare,2696.43, 24-Nov-2015
1475,Revenue,CCHD,Home Care - Elderly - North,Other Small Contracts,Nestor T/A Allied Healthcare,7546.00, 24-Nov-2015
1476,Revenue,CCHD,Day Care - North,Day Care / Social Activities,Nestor T/A Allied Healthcare,69.30, 24-Nov-2015
1477,Revenue,CCHD,Home care - Elderly MH - North,Other Small Contracts,Nestor T/A Allied Healthcare,53.90, 24-Nov-2015
1478,Revenue,CCHD,Home Care - Elderly - South,Day Care / Social Activities,Nestor T/A Allied Healthcare,73.15, 24-Nov-2015
1479,Revenue,CCHD,Home Care - Elderly - South,Other Small Contracts,Nestor T/A Allied Healthcare,2403.80, 24-Nov-2015
1480,Revenue,CCHD,Home Care - Elderly - North,Other Small Contracts,Nestor T/A Allied Healthcare,7438.20, 24-Nov-2015
1481,Revenue,CCHD,Day Care - North,Day Care / Social Activities,Nestor T/A Allied Healthcare,73.15, 24-Nov-2015
1482,Revenue,CCHD,Home care - Elderly MH - North,Other Small Contracts,Nestor T/A Allied Healthcare,53.90, 24-Nov-2015
1483,Revenue,CCHD,Home Care - Elderly - South,Day Care / Social Activities,Nestor T/A Allied Healthcare,69.30, 24-Nov-2015
1484,Revenue,CCHD,Home Care - Elderly - South,Other Small Contracts,Nestor T/A Allied Healthcare,2457.54, 24-Nov-2015
1485,Revenue,CCHD,Home Care - Elderly - North,Other Small Contracts,Nestor T/A Allied Healthcare,7615.30, 24-Nov-2015
1486,Revenue,CCHD,Day Care - North,Day Care / Social Activities,Nestor T/A Allied Healthcare,69.30, 24-Nov-2015
1487,Revenue,CCHD,Home care - Elderly MH - North,Other Small Contracts,Nestor T/A Allied Healthcare,50.04, 24-Nov-2015
1488,Revenue,CCHD,Home Care - Elderly - South,Other Small Contracts,Network Health & Social Care,1354.12, 03-Nov-2015
1489,Revenue,CCHD,Home Care - Elderly - North,Day Care / Social Activities,Network Health & Social Care,81.48, 03-Nov-2015
1490,Revenue,CCHD,Home Care - Elderly - North,Other Small Contracts,Network Health & Social Care,2176.68, 03-Nov-2015
1491,Revenue,CCHD,Home Care - Elderly - South,Other Small Contracts,Network Health & Social Care,1183.40, 04-Nov-2015
1492,Revenue,CCHD,Home Care - Elderly - North,Day Care / Social Activities,Network Health & Social Care,85.36, 04-Nov-2015
1493,Revenue,CCHD,Home Care - Elderly - North,Other Small Contracts,Network Health & Social Care,2215.48, 04-Nov-2015
1494,Revenue,CCHD,Home Care - Elderly - South,Other Small Contracts,Network Health & Social Care,1113.56, 03-Nov-2015
1495,Revenue,CCHD,Home Care - Elderly - North,Day Care / Social Activities,Network Health & Social Care,81.48, 03-Nov-2015
1496,Revenue,CCHD,Home Care - Elderly - North,Other Small Contracts,Network Health & Social Care,2165.04, 03-Nov-2015
1497,Revenue,CCHD,Home Care - Elderly - South,Other Small Contracts,Network Health & Social Care,1016.56, 03-Nov-2015
1498,Revenue,CCHD,Home Care - Elderly - North,Day Care / Social Activities,Network Health & Social Care,85.36, 03-Nov-2015
1499,Revenue,CCHD,Home Care - Elderly - North,Other Small Contracts,Network Health & Social Care,2068.04, 03-Nov-2015
1500,Revenue,CCHD,Home Care - Elderly - South,Other Small Contracts,Network Health & Social Care,791.52, 09-Nov-2015
1501,Revenue,CCHD,Home Care - Elderly - North,Day Care / Social Activities,Network Health & Social Care,38.80, 09-Nov-2015
1502,Revenue,CCHD,Home Care - Elderly - North,Other Small Contracts,Network Health & Social Care,2029.24, 09-Nov-2015
1503,Revenue,CCHD,Home Care - Elderly - South,Other Small Contracts,Network Health & Social Care,1109.68, 09-Nov-2015
1504,Revenue,CCHD,Home Care - Elderly - North,Other Small Contracts,Network Health & Social Care,1978.80, 09-Nov-2015
1505,Revenue,CCHD,Home Care - Elderly - South,Other Small Contracts,Network Health & Social Care,1136.84, 11-Nov-2015
1506,Revenue,CCHD,Home Care - Elderly - North,Other Small Contracts,Network Health & Social Care,2079.68, 11-Nov-2015
1507,Revenue,CCHD,Home Care - Elderly - South,Other Small Contracts,Network Health & Social Care,1210.56, 09-Nov-2015
1508,Revenue,CCHD,Home Care - Elderly - North,Other Small Contracts,Network Health & Social Care,1943.88, 09-Nov-2015
1509,Revenue,CCHD,Home Care - Elderly - South,Other Small Contracts,Network Health & Social Care,977.76, 24-Nov-2015
1510,Revenue,CCHD,Home Care - Elderly - North,Other Small Contracts,Network Health & Social Care,2002.08, 24-Nov-2015
1511,Revenue,CCHD,Home Care - Elderly - South,Other Small Contracts,Network Health & Social Care,873.00, 24-Nov-2015
1512,Revenue,CCHD,Home Care - Elderly - North,Other Small Contracts,Network Health & Social Care,2079.68, 24-Nov-2015
1513,Revenue,CCHD,Home Care - Elderly - South,Other Small Contracts,Network Health & Social Care,799.28, 24-Nov-2015
1514,Revenue,CCHD,Home Care - Elderly - North,Other Small Contracts,Network Health & Social Care,2122.36, 24-Nov-2015
1515,Revenue,CCHD,Social Lettings Agency,Fees - General,Individual,10.00, 04-Nov-2015
1516,Revenue,CCHD,Social Lettings Agency,Other Supplies & Services,Individual,565.00, 04-Nov-2015
1517,Revenue,CCHD,NHS Health Checks & Tobacco Control,Other Small Contracts,North 51 Limited,875.00, 12-Nov-2015
1518,Revenue,CCHD,Children & Young People�s Health,Other Small Contracts,North Bristol NHS Trust,587583.00, 30-Nov-2015
1519,Revenue,CCHD,Information Systems - Software,Software Support & Maintenance,Northgate Public Services (UK) Ltd,3750.00, 19-Nov-2015
1520,Revenue,CCHD,Sexual Health,Other Small Contracts,Northville Family Practice,1053.02, 30-Nov-2015
1521,Revenue,CCHD,Bed Purchasing - South,Permanent Residential,Norwood   Broadway House,5027.16, 24-Nov-2015
1522,Revenue,CCHD,Bed Purchasing - North,Permanent Residential,Notaro Homes Ltd  Queensmead Court,3355.15, 24-Nov-2015
1523,Revenue,CCHD,Bed Purchasing - North,Permanent Residential,Notaro Homes Ltd  Queensmead Court,3238.83, 24-Nov-2015
1524,Revenue,CCHD,Bed Purchasing - Southmead Hospital,Respite Emergency - Residential,Notaro Homes Ltd  Queensmead Court,3080.00, 24-Nov-2015
1525,Revenue,CCHD,Bed Purchasing - South,Permanent Residential,Notaro Homes Ltd  Queensmead Court,1905.16, 24-Nov-2015
1526,Revenue,CCHD,Bed Purchasing - Southmead Hospital,Permanent Residential,Notaro Homes Ltd  Queensmead Court,1399.96, 24-Nov-2015
1527,Revenue,CCHD,MH Purchasing - Younger,Permanent Residential,Notaro Homes Ltd  Queensmead Court,3032.40, 24-Nov-2015
1528,Revenue,CCHD,Bed Purchasing - South,Permanent Residential,Nova House Care Home,954.84, 24-Nov-2015
1529,Revenue,CCHD,Home Care - Elderly - South,Other Small Contracts,Nursing Solutions Limited,1230.70, 27-Nov-2015
1530,Revenue,CCHD,Home Care - Elderly - South,Day Care / Social Activities,Nursing Solutions Limited,63.52, 27-Nov-2015
1531,Revenue,CCHD,Home Care - Elderly - South,Other Small Contracts,Nursing Solutions Limited,1175.12, 27-Nov-2015
1532,Revenue,CCHD,Home Care - Elderly - South,Day Care / Social Activities,Nursing Solutions Limited,59.55, 27-Nov-2015
1533,Revenue,CCHD,Home Care - Elderly - South,Other Small Contracts,Nursing Solutions Limited,1191.00, 27-Nov-2015
1534,Revenue,CCHD,Home Care - Elderly - South,Day Care / Social Activities,Nursing Solutions Limited,63.52, 27-Nov-2015
1535,Revenue,CCHD,Home Care - Elderly - South,Other Small Contracts,Nursing Solutions Limited,1191.00, 27-Nov-2015
1536,Revenue,CCHD,Home Care - Elderly - South,Day Care / Social Activities,Nursing Solutions Limited,63.52, 27-Nov-2015
1537,Revenue,CCHD,Home Care - Elderly - South,Other Small Contracts,Nursing Solutions Limited,1222.76, 27-Nov-2015
1538,Revenue,CCHD,Section 117 Placements MH Younger,Permanent Nursing,Oaklands,6154.56, 24-Nov-2015
1539,Revenue,CCHD,Alexandra Way,Refuse Collection Charges,OCS Group UK Ltd,481.26, 03-Nov-2015
1540,Revenue,CCHD,Bed purchasing -S28A  Under 65 - North,Permanent Residential,Orchard End Limited,7645.60, 24-Nov-2015
1541,Revenue,CCHD,Bed Purchasing - North,Permanent Residential,Osbourne Court,2006.64, 24-Nov-2015
1542,Revenue,CCHD,Bed Purchasing - North,Permanent Residential,Osbourne Court,2006.16, 24-Nov-2015
1543,Revenue,CCHD,Bed Purchasing - Southmead Hospital,Permanent Residential,Osbourne Court,973.08, 24-Nov-2015
1544,Revenue,CCHD,Bed Purchasing - North,Permanent Residential,Osbourne Court,2204.80, 24-Nov-2015
1545,Revenue,CCHD,Bed Purchasing - North,Permanent Residential,Osbourne Court,1831.04, 24-Nov-2015
1546,Revenue,CCHD,Bed Purchasing - North,Permanent Residential,Osbourne Court,2063.12, 24-Nov-2015
1547,Revenue,CCHD,Bed Purchasing - North,Permanent Residential,Osbourne Court,2774.80, 24-Nov-2015
1548,Revenue,CCHD,Bed Purchasing - Southmead Hospital,Respite Planned - Residential,Osbourne Court,1522.86, 24-Nov-2015
1549,Revenue,CCHD,Bed Purchasing - Elderly S117- North,Permanent Residential,Osbourne Court,1948.00, 24-Nov-2015
1550,Revenue,CCHD,Bed purchasing - S28A Under 65 - South,Permanent Residential,Osprey Court,4370.60, 24-Nov-2015
1551,Revenue,CCHD,Bed Purchasing - South,Permanent Residential,Osprey Court,7835.00, 24-Nov-2015
1552,Revenue,CCHD,Bed purchasing - S28A Under 65 - South,Permanent Residential,Osprey Court,6461.08, 24-Nov-2015
1553,Revenue,CCHD,Bed purchasing - Elderly S117 - South,Permanent Residential,Osprey Court,11450.92, 24-Nov-2015
1554,Revenue,CCHD,Breakthrough and Inclusion Work,Other Supplies & Services,P3D,3446.85, 13-Nov-2015
1555,Revenue,CCHD,Bed Purchasing - Southmead Hospital,Permanent Nursing,Palm Court Nursing Home,1617.72, 24-Nov-2015
1556,Revenue,CCHD,Bed Purchasing - South,Permanent Residential,Park Farm House,1800.16, 24-Nov-2015
1557,Revenue,CCHD,Bed Purchasing - North,Permanent Residential,Park Farm House,826.76, 24-Nov-2015
1558,Revenue,CCHD,Bed Purchasing - South,Permanent Residential,Park Farm House,1627.56, 24-Nov-2015
1559,Revenue,CCHD,Bed Purchasing - Southmead Hospital,Permanent Residential,Park Farm House,2600.00, 24-Nov-2015
1560,Revenue,CCHD,Bed Purchasing - South,Permanent Residential,Park Hall,5617.76, 24-Nov-2015
1561,Revenue,CCHD,Bed Purchasing - North,Permanent Residential,Park Hall,5258.76, 24-Nov-2015
1562,Revenue,CCHD,Bed Purchasing - South,Permanent Residential,Park Hall,5069.64, 24-Nov-2015
1563,Revenue,CCHD,Bed Purchasing - South,Permanent Residential,Park Hall,2579.24, 24-Nov-2015
1564,Revenue,CCHD,Bed purchasing - S28A Under 65 - South,Permanent Residential,Park Hall,4734.56, 24-Nov-2015
1565,Revenue,CCHD,Bed Purchasing - South,Permanent Residential,Park Hall,4966.56, 24-Nov-2015
1566,Revenue,CCHD,Bed Purchasing - North,Permanent Residential,Park Hall,4371.04, 24-Nov-2015
1567,Revenue,CCHD,Bed Purchasing - South,Permanent Residential,Park Hall,10884.24, 24-Nov-2015
1568,Revenue,CCHD,Bed purchasing -S28A  Under 65 - North,Permanent Residential,Park Hall,5996.24, 24-Nov-2015
1569,Revenue,CCHD,Bed purchasing - S28A Under 65 - South,Permanent Residential,Park Hall,5733.80, 24-Nov-2015
1570,Revenue,CCHD,18-25 Year Olds,Permanent Residential,Park Hall,7259.36, 24-Nov-2015
1571,Revenue,CCHD,Social Lettings Agency,Fees - General,Individual,10.00, 27-Nov-2015
1572,Revenue,CCHD,Social Lettings Agency,Other Supplies & Services,Individual,565.00, 27-Nov-2015
1573,Revenue,CCHD,Bed Purchasing - South,Permanent Residential,Penleigh House Care Home,4610.80, 24-Nov-2015
1574,Revenue,CCHD,Bed Purchasing - South,Permanent Residential,Penleigh House Care Home,6501.16, 24-Nov-2015
1575,Revenue,CCHD,Bed Purchasing - South,Permanent Residential,Penleigh House Care Home,4361.48, 24-Nov-2015
1576,Revenue,CCHD,Bed purchasing - S28A Under 65 - South,Permanent Residential,Penleigh House Care Home,5558.12, 24-Nov-2015
1577,Revenue,CCHD,Bed Purchasing - South,Permanent Residential,Penleigh House Care Home,5020.84, 24-Nov-2015
1578,Revenue,CCHD,Information Systems - Software,Software Purchase,Phoenix Software Limited,158.33, 23-Nov-2015
1579,Revenue,CCHD,Home Care - Elderly - North,Day Care / Social Activities,Premier Homecare Limited,147.52, 09-Nov-2015
1580,Revenue,CCHD,Home Care - Elderly - North,Other Small Contracts,Premier Homecare Limited,12825.02, 09-Nov-2015
1581,Revenue,CCHD,Home care - Elderly MH - North,Other Small Contracts,Premier Homecare Limited,142.91, 09-Nov-2015
1582,Revenue,CCHD,Elderly MH Day Care North,Day Care / Social Activities,Premier Homecare Limited,73.76, 09-Nov-2015
1583,Revenue,CCHD,Home Care - Elderly - North,Day Care / Social Activities,Premier Homecare Limited,142.91, 11-Nov-2015
1584,Revenue,CCHD,Home Care - Elderly - North,Other Small Contracts,Premier Homecare Limited,12880.34, 11-Nov-2015
1585,Revenue,CCHD,Home care - Elderly MH - North,Other Small Contracts,Premier Homecare Limited,129.08, 11-Nov-2015
1586,Revenue,CCHD,Elderly MH Day Care North,Day Care / Social Activities,Premier Homecare Limited,78.37, 11-Nov-2015
1587,Revenue,CCHD,Home Care - Elderly - North,Day Care / Social Activities,Premier Homecare Limited,133.69, 20-Nov-2015
1588,Revenue,CCHD,Home Care - Elderly - North,Other Small Contracts,Premier Homecare Limited,13193.82, 20-Nov-2015
1589,Revenue,CCHD,Home care - Elderly MH - North,Other Small Contracts,Premier Homecare Limited,129.08, 20-Nov-2015
1590,Revenue,CCHD,Elderly MH Day Care North,Day Care / Social Activities,Premier Homecare Limited,73.76, 20-Nov-2015
1591,Revenue,CCHD,Home Care - Elderly - North,Day Care / Social Activities,Premier Homecare Limited,138.30, 24-Nov-2015
1592,Revenue,CCHD,Home Care - Elderly - North,Other Small Contracts,Premier Homecare Limited,12718.99, 24-Nov-2015
1593,Revenue,CCHD,Home care - Elderly MH - North,Other Small Contracts,Premier Homecare Limited,129.08, 24-Nov-2015
1594,Revenue,CCHD,Elderly MH Day Care North,Day Care / Social Activities,Premier Homecare Limited,69.15, 24-Nov-2015
1595,Revenue,CCHD,Minor Adaptations Service,Premises Maintenance by Contractor,Premier Service & Installation,435.08, 27-Nov-2015
1596,Revenue,CCHD,Home Care - Elderly - South,Other Small Contracts,Prestige Nursing,491.73, 24-Nov-2015
1597,Revenue,CCHD,Home Care - Elderly - North,Other Small Contracts,Prestige Nursing,1633.11, 24-Nov-2015
1598,Revenue,CCHD,Day Care - South,Day Care / Social Activities,Prestige Nursing,124.04, 24-Nov-2015
1599,Revenue,CCHD,Home Care - Elderly - South,Other Small Contracts,Prestige Nursing,518.31, 24-Nov-2015
1600,Revenue,CCHD,Home Care - Elderly - North,Other Small Contracts,Prestige Nursing,2207.70, 24-Nov-2015
1601,Revenue,CCHD,Day Care - South,Day Care / Social Activities,Prestige Nursing,124.04, 24-Nov-2015
1602,Revenue,CCHD,Home Care - Elderly - South,Other Small Contracts,Prestige Nursing,522.74, 20-Nov-2015
1603,Revenue,CCHD,Home Care - Elderly - North,Other Small Contracts,Prestige Nursing,2204.58, 20-Nov-2015
1604,Revenue,CCHD,Day Care - South,Day Care / Social Activities,Prestige Nursing,119.61, 20-Nov-2015
1605,Revenue,CCHD,Alexandra Way,Agency Staff (Operational)/PCT Pay,Prestige Nursing,512.74, 20-Nov-2015
1606,Revenue,CCHD,Kingswood Centre - Maple Suite,Agency Staff (Operational)/PCT Pay,Prestige Nursing,941.85, 09-Nov-2015
1607,Revenue,CCHD,Kingswood Centre - Maple Suite,Agency Staff (Operational)/PCT Pay,Prestige Nursing,1342.28, 09-Nov-2015
1608,Revenue,CCHD,Kingswood Centre - Maple Suite,Agency Staff (Operational)/PCT Pay,Prestige Nursing,1046.50, 09-Nov-2015
1609,Revenue,CCHD,Kingswood Centre - Maple Suite,Agency Staff (Operational)/PCT Pay,Prestige Nursing,1239.70, 11-Nov-2015
1610,Revenue,CCHD,Kingswood Centre - Maple Suite,Agency Staff (Operational)/PCT Pay,Prestige Nursing,1143.10, 11-Nov-2015
1611,Revenue,CCHD,Turnberries,Agency Staff (Operational)/PCT Pay,Prestige Nursing,1159.20, 13-Nov-2015
1612,Revenue,CCHD,Turnberries,Agency Staff (Operational)/PCT Pay,Prestige Nursing,1432.90, 26-Nov-2015
1613,Revenue,CCHD,Bed Purchasing - North,Permanent Residential,Priory House,1474.28, 24-Nov-2015
1614,Revenue,CCHD,Bed Purchasing - North,Permanent Nursing,Ravenswood,2218.80, 24-Nov-2015
1615,Revenue,CCHD,Bed Purchasing - Elderly S117- North,Permanent Residential,Real Life Options,6704.28, 24-Nov-2015
1616,Revenue,CCHD,Bed Purchasing - Elderly S117- North,Permanent Nursing,Redholme Memory Care Limited,2013.36, 24-Nov-2015
1617,Revenue,CCHD,Bed Purchasing - Southmead Hospital,Permanent Nursing,Regent House,1306.84, 24-Nov-2015
1618,Revenue,CCHD,Bed Purchasing - South,Permanent Nursing,Regent House,2121.60, 24-Nov-2015
1619,Revenue,CCHD,Bed Purchasing - South,Permanent Nursing,Regent House,2412.72, 24-Nov-2015
1620,Revenue,CCHD,Bed Purchasing - South,Permanent Nursing,Regent House,1684.88, 24-Nov-2015
1621,Revenue,CCHD,Bed Purchasing - South,Permanent Nursing,Regent House,1992.36, 24-Nov-2015
1622,Revenue,CCHD,Bed Purchasing - South,Permanent Nursing,Regent House,2038.84, 24-Nov-2015
1623,Revenue,CCHD,Bed Purchasing - South,Permanent Nursing,Regent House,1695.80, 24-Nov-2015
1624,Revenue,CCHD,Bed Purchasing - South,Permanent Nursing,Regent House,1766.68, 24-Nov-2015
1625,Revenue,CCHD,Bed Purchasing - Southmead Hospital,Permanent Nursing,Regent House,2007.40, 24-Nov-2015
1626,Revenue,CCHD,Bed Purchasing - North,Permanent Nursing,Regent House,2018.20, 24-Nov-2015
1627,Revenue,CCHD,Bed Purchasing - North,Permanent Nursing,Regent House,2081.48, 24-Nov-2015
1628,Revenue,CCHD,Bed Purchasing - South,Permanent Nursing,Regent House,1687.76, 24-Nov-2015
1629,Revenue,CCHD,South Glos Users in South Glos Homes,Permanent Nursing,Regent House,2819.77, 24-Nov-2015
1630,Revenue,CCHD,Swift Dump Code,Permanent Residential,Regent House,560.57, 24-Nov-2015
1631,Revenue,CCHD,Bed Purchasing - North,Permanent Nursing,Regent House,2543.60, 24-Nov-2015
1632,Revenue,CCHD,Bed Purchasing - South,Permanent Nursing,Regent House,1202.68, 24-Nov-2015
1633,Revenue,CCHD,Bed Purchasing - South,Permanent Nursing,Regent House,2374.16, 24-Nov-2015
1634,Revenue,CCHD,Alexandra Way,Premises Maintenance by Contractor,Rentokil Specialist Hygiene,380.00, 12-Nov-2015
1635,Revenue,CCHD,Woodleaze,Premises Maintenance by Contractor,Rentokil Specialist Hygiene,600.00, 12-Nov-2015
1636,Revenue,CCHD,Bed Purchasing - South,Permanent Residential,Ridgeway House,3540.96, 24-Nov-2015
1637,Revenue,CCHD,Bed Purchasing - South,Permanent Residential,Riverside House,3651.08, 24-Nov-2015
1638,Revenue,CCHD,Bed Purchasing - Southmead Hospital,Permanent Nursing,Riversway Nursing Home,896.00, 24-Nov-2015
1639,Revenue,CCHD,Bed Purchasing - Southmead Hospital,Permanent Nursing,Riversway Nursing Home,2715.32, 24-Nov-2015
1640,Revenue,CCHD,Bed Purchasing - LD S28A- Over 65- South,Permanent Residential,Rockleaze,2100.48, 24-Nov-2015
1641,Revenue,CCHD,Bed Purchasing - South,Permanent Residential,Rockleaze,2437.00, 24-Nov-2015
1642,Revenue,CCHD,Bed Purchasing - South,Permanent Residential,Rockleaze,1438.16, 24-Nov-2015
1643,Revenue,CCHD,Bed Purchasing - South,Permanent Residential,Rosedale House,1527.28, 24-Nov-2015
1644,Revenue,CCHD,Bed Purchasing - South,Permanent Residential,Rosewood Lodge & Brook House,4620.12, 24-Nov-2015
1645,Revenue,CCHD,Leadership and Business Support,Consultants Fees,Ruth Woolley Ltd,2077.84, 20-Nov-2015
1646,Revenue,CCHD,Leadership and Business Support,Consultants Fees,Ruth Woolley Ltd,1830.00, 20-Nov-2015
1647,Revenue,CCHD,Leadership and Business Support,Consultants Fees,Ruth Woolley Ltd,937.84, 20-Nov-2015
1648,Revenue,CCHD,Bed Purchasing - South,Permanent Residential,Salters Hill Barn,2027.52, 24-Nov-2015
1649,Revenue,CCHD,Tenancy Start Up Scheme,Other Supplies & Services,Individual,1231.01, 04-Nov-2015
1650,Revenue,CCHD,Bed Purchasing - Southmead Hospital,Permanent Residential,Sanctuary Care Ltd,1924.64, 24-Nov-2015
1651,Revenue,CCHD,Woodleaze,"Provisions (Food, etc)",School Milk Services Limited,567.73, 30-Nov-2015
1652,Revenue,CCHD,Bed Purchasing - South,Permanent Residential,Scope   Accounts Dept,3107.40, 24-Nov-2015
1653,Revenue,CCHD,Supported Living - North,Private & Voluntary Home Care,SeeAbility,3970.16, 09-Nov-2015
1654,Revenue,CCHD,Day Care - North,Day Care / Social Activities,SeeAbility,1879.29, 19-Nov-2015
1655,Revenue,CCHD,Supported Living - North,Private & Voluntary Home Care,SeeAbility,1298.49, 09-Nov-2015
1656,Revenue,CCHD,Supported Living - North,Private & Voluntary Home Care,SeeAbility,9590.01, 09-Nov-2015
1657,Revenue,CCHD,Supported Living - North,Private & Voluntary Home Care,SeeAbility,907.50, 09-Nov-2015
1658,Revenue,CCHD,Supported Living - North,Private & Voluntary Home Care,SeeAbility,4102.50, 30-Nov-2015
1659,Revenue,CCHD,Day Care - North,Day Care / Social Activities,SeeAbility,1941.93, 30-Nov-2015
1660,Revenue,CCHD,Supported Living - North,Private & Voluntary Home Care,SeeAbility,1341.77, 30-Nov-2015
1661,Revenue,CCHD,Supported Living - North,Private & Voluntary Home Care,SeeAbility,9909.68, 30-Nov-2015
1662,Revenue,CCHD,Supported Living - North,Private & Voluntary Home Care,SeeAbility,937.75, 30-Nov-2015
1663,Revenue,CCHD,Purchase of Non-Res Care - North,Day Care / Social Activities,Selborne Care Ltd,1377.00, 06-Nov-2015
1664,Revenue,CCHD,Purchase of Non-Res Care - North,Day Care / Social Activities,Selborne Care Ltd,952.00, 06-Nov-2015
1665,Revenue,CCHD,Purchase of Non-Res Care - North,Day Care / Social Activities,Selborne Care Ltd,816.00, 06-Nov-2015
1666,Revenue,CCHD,Purchase of Non-Res Care - North,Day Care / Social Activities,Selborne Care Ltd,748.00, 06-Nov-2015
1667,Revenue,CCHD,Supported Living (S28a) South,Private & Voluntary Home Care,Selborne Care Ltd,3491.36, 06-Nov-2015
1668,Revenue,CCHD,Purchase of Non-Res Care - North,Day Care / Social Activities,Selborne Care Ltd,1360.00, 27-Nov-2015
1669,Revenue,CCHD,Purchase of Non-Res Care - North,Day Care / Social Activities,Selborne Care Ltd,952.00, 20-Nov-2015
1670,Revenue,CCHD,Purchase of Non-Res Care - North,Day Care / Social Activities,Selborne Care Ltd,816.00, 27-Nov-2015
1671,Revenue,CCHD,Home Care - Elderly - South,Supported Living,Selborrne House,1820.92, 24-Nov-2015
1672,Revenue,CCHD,Home Care - Elderly - South,Supported Living,Selborrne House,3491.36, 24-Nov-2015
1673,Revenue,CCHD,Home Care - Elderly - South,Supported Living,Selborrne House,3491.36, 24-Nov-2015
1674,Revenue,CCHD,Home Care - Elderly - South,Supported Living,Selborrne House,1820.92, 24-Nov-2015
1675,Revenue,CCHD,Hospital Promoting Independence Team,Care Management/Assessment Staff Pay,Seven Resourcing Ltd,1202.50, 11-Nov-2015
1676,Revenue,CCHD,Hospital Promoting Independence Team,Care Management/Assessment Staff Pay,Seven Resourcing Ltd,1202.50, 23-Nov-2015
1677,Revenue,CCHD,Hospital Promoting Independence Team,Care Management/Assessment Staff Pay,Seven Resourcing Ltd,991.25, 23-Nov-2015
1678,Revenue,CCHD,Hospital Promoting Independence Team,Care Management/Assessment Staff Pay,Seven Resourcing Ltd,1202.50, 23-Nov-2015
1679,Revenue,CCHD,Hospital Promoting Independence Team,Care Management/Assessment Staff Pay,Seven Resourcing Ltd,999.38, 23-Nov-2015
1680,Revenue,CCHD,Hospital Promoting Independence Team,Care Management/Assessment Staff Pay,Seven Resourcing Ltd,1202.50, 23-Nov-2015
1681,Revenue,CCHD,Hospital Promoting Independence Team,Care Management/Assessment Staff Pay,Seven Resourcing Ltd,1202.50, 12-Nov-2015
1682,Revenue,CCHD,Bed Purchasing - South,Permanent Residential,Shaldon House (Positive Care Ltd),2252.04, 24-Nov-2015
1683,Revenue,CCHD,Bed Purchasing - South,Permanent Nursing,Shaw Healthcare Ltd,2158.28, 24-Nov-2015
1684,Revenue,CCHD,Bed Purchasing - South,Permanent Nursing,Shaw Healthcare Ltd,2110.72, 24-Nov-2015
1685,Revenue,CCHD,Bed Purchasing - South,Permanent Nursing,Shaw Healthcare Ltd,2100.88, 24-Nov-2015
1686,Revenue,CCHD,Bed purchasing - S28A Under 65 - South,Permanent Residential,Shaw Healthcare Ltd,9998.32, 24-Nov-2015
1687,Revenue,CCHD,Bed purchasing - S28A Under 65 - South,Permanent Residential,Shaw Healthcare Ltd,9865.72, 24-Nov-2015
1688,Revenue,CCHD,Bed Purchasing - South,Permanent Residential,Shaw Healthcare Ltd,10013.56, 24-Nov-2015
1689,Revenue,CCHD,Bed Purchasing - South,Permanent Residential,Shaw Healthcare Ltd,4001.68, 24-Nov-2015
1690,Revenue,CCHD,Bed Purchasing - S28A - Over 65- North,Permanent Residential,Shaw Healthcare Ltd,4325.44, 24-Nov-2015
1691,Revenue,CCHD,Bed Purchasing - S28A - Over 65- North,Permanent Residential,Shaw Healthcare Ltd,4360.12, 24-Nov-2015
1692,Revenue,CCHD,Bed Purchasing - LD S28A- Over 65- South,Permanent Residential,Shaw Healthcare Ltd,4879.20, 24-Nov-2015
1693,Revenue,CCHD,Bed Purchasing - LD S28A- Over 65- South,Permanent Residential,Shaw Healthcare Ltd,4537.04, 24-Nov-2015
1694,Revenue,CCHD,Bed Purchasing - S28A - Over 65- North,Permanent Residential,Shaw Healthcare Ltd,6895.88, 24-Nov-2015
1695,Revenue,CCHD,Bed Purchasing - North,Permanent Residential,Shaw Healthcare Ltd,4185.36, 24-Nov-2015
1696,Revenue,CCHD,Bed Purchasing - Elderly S117- North,Permanent Nursing,Shaw Healthcare Ltd,2872.00, 24-Nov-2015
1697,Revenue,CCHD,Minor Adaptations Service,Daily Living Equipment,Shaw Trust Limited,525.00, 30-Nov-2015
1698,Revenue,CCHD,Day Care - North,Day Care / Social Activities,Silva Care Limited,964.59, 04-Nov-2015
1699,Revenue,CCHD,Supported Living - South,Private & Voluntary Home Care,Silva Care Limited,4415.44, 25-Nov-2015
1700,Revenue,CCHD,Purchase of Non-Res Care - North,Day Care / Social Activities,Silva Care Limited,5359.36, 30-Nov-2015
1701,Revenue,CCHD,Turnberries,Legal Fees,Simon Mundy,12000.00, 30-Nov-2015
1702,Revenue,CCHD,Social Lettings Agency,Fees - General,Individual,19.09, 11-Nov-2015
1703,Revenue,CCHD,Social Lettings Agency,Other Supplies & Services,Individual,649.09, 11-Nov-2015
1704,Revenue,CCHD,Social Lettings Agency,Other Supplies & Services,Individual,640.72, 03-Nov-2015
1705,Revenue,CCHD,Social Lettings Agency,Other Supplies & Services,Individual,640.72, 02-Nov-2015
1706,Revenue,CCHD,18-25 Year Olds,Permanent Residential,Small House Homes Limited,18210.08, 24-Nov-2015
1707,Revenue,CCHD,Home Care - Elderly - North,Supported Living,Smile Ind Living Support Limited,3060.80, 24-Nov-2015
1708,Revenue,CCHD,Home Care - Elderly - North,Supported Living,Smile Ind Living Support Limited,3060.80, 24-Nov-2015
1709,Revenue,CCHD,Home Care - Elderly - North,Supported Living,Smile Ind Living Support Limited,3060.80, 24-Nov-2015
1710,Revenue,CCHD,Home Care - Elderly - South,Day Care / Social Activities,Smile Independent Living Support Limited,579.08, 02-Nov-2015
1711,Revenue,CCHD,Home Care - Elderly - South,Other Small Contracts,Smile Independent Living Support Limited,228.83, 02-Nov-2015
1712,Revenue,CCHD,Home Care - Elderly - North,Day Care / Social Activities,Smile Independent Living Support Limited,737.86, 02-Nov-2015
1713,Revenue,CCHD,Home Care - Elderly - North,Supported Living,Smile Independent Living Support Limited,210.15, 02-Nov-2015
1714,Revenue,CCHD,Home Care - Elderly - South,Day Care / Social Activities,Smile Independent Living Support Limited,565.07, 02-Nov-2015
1715,Revenue,CCHD,Home Care - Elderly - South,Other Small Contracts,Smile Independent Living Support Limited,270.86, 02-Nov-2015
1716,Revenue,CCHD,Home Care - Elderly - North,Day Care / Social Activities,Smile Independent Living Support Limited,728.52, 02-Nov-2015
1717,Revenue,CCHD,Home Care - Elderly - North,Supported Living,Smile Independent Living Support Limited,205.48, 02-Nov-2015
1718,Revenue,CCHD,Home Care - Elderly - South,Day Care / Social Activities,Smile Independent Living Support Limited,569.74, 09-Nov-2015
1719,Revenue,CCHD,Home Care - Elderly - South,Other Small Contracts,Smile Independent Living Support Limited,233.50, 09-Nov-2015
1720,Revenue,CCHD,Home Care - Elderly - North,Day Care / Social Activities,Smile Independent Living Support Limited,737.86, 09-Nov-2015
1721,Revenue,CCHD,Home Care - Elderly - North,Supported Living,Smile Independent Living Support Limited,210.15, 09-Nov-2015
1722,Revenue,CCHD,Home Care - Elderly - South,Day Care / Social Activities,Smile Independent Living Support Limited,298.88, 25-Nov-2015
1723,Revenue,CCHD,Home Care - Elderly - South,Other Small Contracts,Smile Independent Living Support Limited,317.56, 25-Nov-2015
1724,Revenue,CCHD,Home Care - Elderly - North,Day Care / Social Activities,Smile Independent Living Support Limited,742.53, 25-Nov-2015
1725,Revenue,CCHD,Home Care - Elderly - North,Supported Living,Smile Independent Living Support Limited,219.49, 25-Nov-2015
1726,Revenue,CCHD,Home Care - Elderly - South,Day Care / Social Activities,Smile Independent Living Support Limited,298.88, 25-Nov-2015
1727,Revenue,CCHD,Home Care - Elderly - South,Other Small Contracts,Smile Independent Living Support Limited,233.50, 25-Nov-2015
1728,Revenue,CCHD,Home Care - Elderly - North,Day Care / Social Activities,Smile Independent Living Support Limited,663.14, 25-Nov-2015
1729,Revenue,CCHD,Home Care - Elderly - North,Supported Living,Smile Independent Living Support Limited,210.15, 25-Nov-2015
1730,Revenue,CCHD,Home Care - Elderly - South,Day Care / Social Activities,Smile Independent Living Support Limited,298.88, 30-Nov-2015
1731,Revenue,CCHD,Home Care - Elderly - South,Other Small Contracts,Smile Independent Living Support Limited,270.86, 30-Nov-2015
1732,Revenue,CCHD,Home Care - Elderly - North,Day Care / Social Activities,Smile Independent Living Support Limited,742.53, 30-Nov-2015
1733,Revenue,CCHD,Home Care - Elderly - North,Supported Living,Smile Independent Living Support Limited,219.49, 30-Nov-2015
1734,Revenue,CCHD,Information Systems - Software,Software Support & Maintenance,SoftBox Limited,1095.00, 10-Nov-2015
1735,Revenue,CCHD,Community Care Contact Centre,Other Supplies & Services,South Gloucestershire and Stroud College,995.00, 03-Nov-2015
1736,Revenue,CCHD,Older People's Commissioned Se,Grants to Voluntary Bodies,South Gloucestershire Chinese Association,2925.00, 13-Nov-2015
1737,Revenue,CCHD,Leadership and Business Support,Other Supplies & Services,South West Councils,727.82, 18-Nov-2015
1738,Revenue,CCHD,Minor Adaptations Service,Premises Maintenance by Contractor,SSE Contracting Limited,11.88, 30-Nov-2015
1739,Revenue,CCHD,Minor Adaptations Service,Premises Maintenance by Contractor,SSE Contracting Limited,37.73, 30-Nov-2015
1740,Revenue,CCHD,Minor Adaptations Service,Premises Maintenance by Contractor,SSE Contracting Limited,207.20, 04-Nov-2015
1741,Revenue,CCHD,Minor Adaptations Service,Prop.Serv. General Repairs,SSE Contracting Limited,501.40, 17-Nov-2015
1742,Revenue,CCHD,Bed Purchasing - South,Permanent Residential,St Brigas,2036.64, 24-Nov-2015
1743,Revenue,CCHD,Bed Purchasing - South,Permanent Residential,St Brigas,3053.76, 24-Nov-2015
1744,Revenue,CCHD,Bed Purchasing - South,Permanent Residential,St Brigas,2056.44, 24-Nov-2015
1745,Revenue,CCHD,Bed Purchasing - Southmead Hospital,Permanent Nursing,St George Nursing Home,1330.80, 24-Nov-2015
1746,Revenue,CCHD,Bed Purchasing - South,Permanent Nursing,St George Nursing Home,1330.80, 24-Nov-2015
1747,Revenue,CCHD,Bed Purchasing - Southmead Hospital,Permanent Nursing,St George Nursing Home,1330.80, 24-Nov-2015
1748,Revenue,CCHD,Bed Purchasing - South,Respite Planned - Nursing,St George Nursing Home,1836.00, 24-Nov-2015
1749,Revenue,CCHD,Bed Purchasing - Southmead Hospital,Permanent Nursing,St George Nursing Home,1311.36, 24-Nov-2015
1750,Revenue,CCHD,Home Care - Elderly - South,Day Care / Social Activities,St George Nursing Home,606.48, 24-Nov-2015
1751,Revenue,CCHD,Bed Purchasing - Southmead Hospital,Permanent Nursing,St George Nursing Home,1350.80, 24-Nov-2015
1752,Revenue,CCHD,Bed Purchasing - Southmead Hospital,Permanent Nursing,St George Nursing Home,1330.80, 24-Nov-2015
1753,Revenue,CCHD,Bed Purchasing - South,Permanent Nursing,St George Nursing Home,1633.51, 24-Nov-2015
1754,Revenue,CCHD,Bed Purchasing - North,Permanent Residential,St George Nursing Home,985.16, 24-Nov-2015
1755,Revenue,CCHD,Bed Purchasing - Southmead Hospital,Permanent Nursing,St George Nursing Home,1311.43, 24-Nov-2015
1756,Revenue,CCHD,Bed Purchasing - Southmead Hospital,Permanent Nursing,St George Nursing Home,1836.00, 24-Nov-2015
1757,Revenue,CCHD,Bed Purchasing - North,Permanent Nursing,St Georges Nursing Home,2162.12, 24-Nov-2015
1758,Revenue,CCHD,Bed Purchasing - Southmead Hospital,Permanent Nursing,St Monicas Trust,1691.40, 24-Nov-2015
1759,Revenue,CCHD,18-25 Year Olds,Day Care / Social Activities,St Roses School,918.00, 20-Nov-2015
1760,Revenue,CCHD,18-25 Year Olds,Permanent Nursing,St Roses School,4086.00, 24-Nov-2015
1761,Revenue,CCHD,18-25 Year Olds,Respite Planned - Residential,St Roses School,1384.80, 24-Nov-2015
1762,Revenue,CCHD,18-25 Year Olds,Respite Planned - Residential,St Roses School,2369.50, 24-Nov-2015
1763,Revenue,CCHD,Bed Purchasing - Southmead Hospital,Permanent Nursing,St Teresa`S Nursing Home,2009.88, 24-Nov-2015
1764,Revenue,CCHD,Bed Purchasing - Southmead Hospital,Permanent Nursing,St Teresa`S Nursing Home,1894.80, 24-Nov-2015
1765,Revenue,CCHD,Bed Purchasing - Southmead Hospital,Permanent Nursing,St Teresa`S Nursing Home,7849.89, 24-Nov-2015
1766,Revenue,CCHD,Bed Purchasing - Southmead Hospital,Permanent Nursing,St Teresa`S Nursing Home,1894.80, 24-Nov-2015
1767,Revenue,CCHD,Bed Purchasing - Southmead Hospital,Permanent Nursing,St Teresa`S Nursing Home,7849.89, 24-Nov-2015
1768,Revenue,CCHD,Bed Purchasing - Southmead Hospital,Permanent Nursing,St Teresa`S Nursing Home,919.72, 24-Nov-2015
1769,Revenue,CCHD,Bed Purchasing - North,Permanent Nursing,Stanley House,6432.28, 24-Nov-2015
1770,Revenue,CCHD,Bed Purchasing - South,Permanent Nursing,Stanley House,7456.12, 24-Nov-2015
1771,Revenue,CCHD,MH Purchasing - Younger,Permanent Nursing,Stanley House,4422.40, 24-Nov-2015
1772,Revenue,CCHD,Bed Purchasing - South,Permanent Residential,Stepping Stones Re-Sett. Unit,7679.12, 24-Nov-2015
1773,Revenue,CCHD,Bed Purchasing - North,Permanent Nursing,Stinchcombe Manor,5200.00, 03-Nov-2015
1774,Revenue,CCHD,Information Systems - Software,Computer Equipment - Purchase,Stone Computers Limited,8080.00, 27-Nov-2015
1775,Revenue,CCHD,Information Systems - Software,Computer Equipment - Purchase,Stone Computers Limited,452.00, 02-Nov-2015
1776,Revenue,CCHD,"Strategy, Advice and Public Protection",Computer Equipment - Purchase,Stone Computers Limited,46.00, 24-Nov-2015
1777,Revenue,CCHD,Community Care Contact Centre,Computer Equipment - Purchase,Stone Computers Limited,97.00, 27-Nov-2015
1778,Revenue,CCHD,Hospital Promoting Independence Team,Care Management/Assessment Staff Pay,Sugarman Group Ltd,1539.03, 13-Nov-2015
1779,Revenue,CCHD,Hospital Promoting Independence Team,Care Management/Assessment Staff Pay,Sugarman Group Ltd,1549.02, 13-Nov-2015
1780,Revenue,CCHD,Hospital Promoting Independence Team,Care Management/Assessment Staff Pay,Sugarman Group Ltd,1548.12, 13-Nov-2015
1781,Revenue,CCHD,Hospital Promoting Independence Team,Care Management/Assessment Staff Pay,Sugarman Group Ltd,1546.28, 13-Nov-2015
1782,Revenue,CCHD,Hospital Promoting Independence Team,Care Management/Assessment Staff Pay,Sugarman Group Ltd,1339.02, 13-Nov-2015
1783,Revenue,CCHD,Hospital Promoting Independence Team,Care Management/Assessment Staff Pay,Sugarman Group Ltd,1536.24, 13-Nov-2015
1784,Revenue,CCHD,Hospital Promoting Independence Team,Care Management/Assessment Staff Pay,Sugarman Group Ltd,1038.00, 13-Nov-2015
1785,Revenue,CCHD,Hospital Promoting Independence Team,Care Management/Assessment Staff Pay,Sugarman Group Ltd,1420.34, 13-Nov-2015
1786,Revenue,CCHD,Hospital Promoting Independence Team,Care Management/Assessment Staff Pay,Sugarman Group Ltd,1552.98, 13-Nov-2015
1787,Revenue,CCHD,Hospital Promoting Independence Team,Other Supplies & Services,Sunnymead Manor,1240.60, 16-Nov-2015
1788,Revenue,CCHD,Hospital Promoting Independence Team,Other Supplies & Services,Sunnymead Manor,541.29, 16-Nov-2015
1789,Revenue,CCHD,Hospital Promoting Independence Team,Other Supplies & Services,Sunnymead Manor,559.33, 16-Nov-2015
1790,Revenue,CCHD,Hospital Promoting Independence Team,Other Supplies & Services,Sunnymead Manor,559.33, 16-Nov-2015
1791,Revenue,CCHD,Hospital Promoting Independence Team,Other Supplies & Services,Sunnymead Manor,541.29, 16-Nov-2015
1792,Revenue,CCHD,Supported Living - North,Private & Voluntary Home Care,Supported Independence Ltd,996.82, 04-Nov-2015
1793,Revenue,CCHD,Supported Living - North,Private & Voluntary Home Care,Supported Independence Ltd,789.36, 27-Nov-2015
1794,Revenue,CCHD,Section 117 Placements MH Younger,Day Care / Social Activities,Supported Independence Ltd,2383.26, 27-Nov-2015
1795,Revenue,CCHD,Section 117 Placements MH Younger,Day Care / Social Activities,Supported Independence Ltd,1674.86, 27-Nov-2015
1796,Revenue,CCHD,Section 117 Placements MH Younger,Day Care / Social Activities,Supported Independence Ltd,551.54, 27-Nov-2015
1797,Revenue,CCHD,Supported Living - North,Private & Voluntary Home Care,Supported Independence Ltd,1022.12, 27-Nov-2015
1798,Revenue,CCHD,Younger MH non-res purchasing,Day Care / Social Activities,Supported Independence Ltd,1345.96, 27-Nov-2015
1799,Revenue,CCHD,Younger MH non-res purchasing,Day Care / Social Activities,Supported Independence Ltd,531.17, 27-Nov-2015
1800,Revenue,CCHD,Supported Living - South,Private & Voluntary Home Care,Supported Independence Ltd,2509.76, 25-Nov-2015
1801,Revenue,CCHD,Supported Living - South,Private & Voluntary Home Care,Supported Independent Living Schemes,642.96, 17-Nov-2015
1802,Revenue,CCHD,Supported Living - South,Private & Voluntary Home Care,Supporting Options,1368.90, 13-Nov-2015
1803,Revenue,CCHD,Planning and Partnerships Procurement,Other Supplies & Services,Telecare Services Association,880.00, 04-Nov-2015
1804,Revenue,CCHD,Bed Purchasing - Elderly S117- North,Permanent Residential,Templemore Care Home,2256.68, 24-Nov-2015
1805,Revenue,CCHD,Home Care - Elderly - North,Day Care / Social Activities,The Ann Coleman Centre,2301.60, 24-Nov-2015
1806,Revenue,CCHD,Home Care - Elderly - North,Day Care / Social Activities,The Ann Coleman Centre,3378.20, 24-Nov-2015
1807,Revenue,CCHD,18-25 Year Olds,Permanent Residential,The Ann Coleman Centre,6122.56, 24-Nov-2015
1808,Revenue,CCHD,Bed Purchasing - North,Permanent Residential,The Beeches,1473.56, 24-Nov-2015
1809,Revenue,CCHD,Bed Purchasing - Southmead Hospital,Permanent Residential,The Beeches,1563.64, 24-Nov-2015
1810,Revenue,CCHD,Bed Purchasing - South,Permanent Residential,The Beeches,1270.80, 24-Nov-2015
1811,Revenue,CCHD,Home Care - Elderly - South,Day Care / Social Activities,The Brandon Trust,4075.32, 04-Nov-2015
1812,Revenue,CCHD,Home Care - Elderly - North,Day Care / Social Activities,The Brandon Trust,698.01, 04-Nov-2015
1813,Revenue,CCHD,Home Care - Elderly - North,Other Small Contracts,The Brandon Trust,140.48, 04-Nov-2015
1814,Revenue,CCHD,Home Care - Elderly - North,Supported Living,The Brandon Trust,1826.72, 04-Nov-2015
1815,Revenue,CCHD,Home Care - Elderly - South,Day Care / Social Activities,The Brandon Trust,4026.49, 11-Nov-2015
